{"text_format":"3","workbook":"xlsx","n_sheets":29,"sheets":["Suma","Część 01","Część 02","Część 03","Część 04","Część 05","Część 06","Część 07","Część 08","Część 09","Część 10","Część 11","Część 12","Część 13","Część 14","Część 15","Część 16","Część 17","Część 18","Część 19","Część 20","Część 21","Część 22","Część 23","Część 24","Część 25","Część 26","Część 27","Część 28"],"not_rendered":{"macros":1,"defined_names":52},"read":"whole","date_system":"1900"}

{"sheet":"Suma","index":0,"n_rows":35,"n_cols":3,"rows_kept":35,"merged":[[1,0,2,0],[1,1,2,1],[1,2,2,2]]}
[]
["odwołanie","Pakiet","Nazwa"]
[]
[{"$f":"HYPERLINK(\"#'Część 01'!A1\",\"przejdz do\")","v":"przejdz do"},{"$f":"'Część 01'!$A$4","v":"Część 01"},{"$f":"'Część 01'!$A$5","v":"Odczynniki do analiz rutynowych"}]
[{"$f":"HYPERLINK(\"#'Część 02'!A1\",\"przejdz do\")","v":"przejdz do"},{"$f":"'Część 02'!$A$4","v":"Część 02"},{"$f":"'Część 02'!$A$5","v":"Odczynniki do analiz instrumentalnych"}]
[{"$f":"HYPERLINK(\"#'Część 03'!A1\",\"przejdz do\")","v":"przejdz do"},{"$f":"'Część 03'!$A$4","v":"Część 03"},{"$f":"'Część 03'!$A$5","v":"Odczynniki i wzorce do chromatografii"}]
[{"$f":"HYPERLINK(\"#'Część 04'!A1\",\"przejdz do\")","v":"przejdz do"},{"$f":"'Część 04'!$A$4","v":"Część 04"},{"$f":"'Część 04'!$A$5","v":"Roztwory buforowe"}]
[{"$f":"HYPERLINK(\"#'Część 05'!A1\",\"przejdz do\")","v":"przejdz do"},{"$f":"'Część 05'!$A$4","v":"Część 05"},{"$f":"'Część 05'!$A$5","v":"Roztwory mianowane, odważki analityczne"}]
[{"$f":"HYPERLINK(\"#'Część 06'!A1\",\"przejdz do\")","v":"przejdz do"},{"$f":"'Część 06'!$A$4","v":"Część 06"},{"$f":"'Część 06'!$A$5","v":"Filtry, sączki, paski wskaźnikowe"}]
[{"$f":"HYPERLINK(\"#'Część 07'!A1\",\"przejdz do\")","v":"przejdz do"},{"$f":"'Część 07'!$A$4","v":"Część 07"},{"$f":"'Część 07'!$A$5","v":"Filtry membranowe, sterylne"}]
[{"$f":"HYPERLINK(\"#'Część 08'!A1\",\"przejdz do\")","v":"przejdz do"},{"$f":"'Część 08'!$A$4","v":"Część 08"},{"$f":"'Część 08'!$A$5","v":"Butelki z tiosiarczanem sodu"}]
[{"$f":"HYPERLINK(\"#'Część 09'!A1\",\"przejdz do\")","v":"przejdz do"},{"$f":"'Część 09'!$A$4","v":"Część 09"},{"$f":"'Część 09'!$A$5","v":"Filrty membranowe, sterylne - średnica porów 0,22 µm"}]
[{"$f":"HYPERLINK(\"#'Część 10'!A1\",\"przejdz do\")","v":"przejdz do"},{"$f":"'Część 10'!$A$4","v":"Część 10"},{"$f":"'Część 10'!$A$5","v":"Materiały referencyjne do HPLC"}]
[{"$f":"HYPERLINK(\"#'Część 11'!A1\",\"przejdz do\")","v":"przejdz do"},{"$f":"'Część 11'!$A$4","v":"Część 11"},{"$f":"'Część 11'!$A$5","v":"Wzorce pH"}]
[{"$f":"HYPERLINK(\"#'Część 12'!A1\",\"przejdz do\")","v":"przejdz do"},{"$f":"'Część 12'!$A$4","v":"Część 12"},{"$f":"'Część 12'!$A$5","v":"Rozpuszczalniki do HPLC"}]
[{"$f":"HYPERLINK(\"#'Część 13'!A1\",\"przejdz do\")","v":"przejdz do"},{"$f":"'Część 13'!$A$4","v":"Część 13"},{"$f":"'Część 13'!$A$5","v":"Wzorce do chromatografii jonowej"}]
[{"$f":"HYPERLINK(\"#'Część 14'!A1\",\"przejdz do\")","v":"przejdz do"},{"$f":"'Część 14'!$A$4","v":"Część 14"},{"$f":"'Część 14'!$A$5","v":"Wzorce do IC kontrolne"}]
[{"$f":"HYPERLINK(\"#'Część 15'!A1\",\"przejdz do\")","v":"przejdz do"},{"$f":"'Część 15'!$A$4","v":"Część 15"},{"$f":"'Część 15'!$A$5","v":"Wzorce do GC"}]
[{"$f":"HYPERLINK(\"#'Część 16'!A1\",\"przejdz do\")","v":"przejdz do"},{"$f":"'Część 16'!$A$4","v":"Część 16"},{"$f":"'Część 16'!$A$5","v":"Wzorce do mikotoksyn oraz witaminy A"}]
[{"$f":"HYPERLINK(\"#'Część 17'!A1\",\"przejdz do\")","v":"przejdz do"},{"$f":"'Część 17'!$A$4","v":"Część 17"},{"$f":"'Część 17'!$A$5","v":"Wzorce do IPC"}]
[{"$f":"HYPERLINK(\"#'Część 18'!A1\",\"przejdz do\")","v":"przejdz do"},{"$f":"'Część 18'!$A$4","v":"Część 18"},{"$f":"'Część 18'!$A$5","v":"Wzorce do analiz instrumentalnych"}]
[{"$f":"HYPERLINK(\"#'Część 19'!A1\",\"przejdz do\")","v":"przejdz do"},{"$f":"'Część 19'!$A$4","v":"Część 19"},{"$f":"'Część 19'!$A$5","v":"Wzorce do analiz instrumentalnych 2"}]
[{"$f":"HYPERLINK(\"#'Część 20'!A1\",\"przejdz do\")","v":"przejdz do"},{"$f":"'Część 20'!$A$4","v":"Część 20"},{"$f":"'Część 20'!$A$5","v":"Scyntylator"}]
[{"$f":"HYPERLINK(\"#'Część 21'!A1\",\"przejdz do\")","v":"przejdz do"},{"$f":"'Część 21'!$A$4","v":"Część 21"},{"$f":"'Część 21'!$A$5","v":"Wzorzec ogólnego węgla organicznego"}]
[{"$f":"HYPERLINK(\"#'Część 22'!A1\",\"przejdz do\")","v":"przejdz do"},{"$f":"'Część 22'!$A$4","v":"Część 22"},{"$f":"'Część 22'!$A$5","v":"Wzorce do przewodnictwa"}]
[{"$f":"HYPERLINK(\"#'Część 23'!A1\",\"przejdz do\")","v":"przejdz do"},{"$f":"'Część 23'!$A$4","v":"Część 23"},{"$f":"'Część 23'!$A$5","v":"Kolumienki do mikotoksyn"}]
[{"$f":"HYPERLINK(\"#'Część 24'!A1\",\"przejdz do\")","v":"przejdz do"},{"$f":"'Część 24'!$A$4","v":"Część 24"},{"$f":"'Część 24'!$A$5","v":"Wzorce do spektrofotometrii"}]
[{"$f":"HYPERLINK(\"#'Część 25'!A1\",\"przejdz do\")","v":"przejdz do"},{"$f":"'Część 25'!$A$4","v":"Część 25"},{"$f":"'Część 25'!$A$5","v":"Wzorce mętności"}]
[{"$f":"HYPERLINK(\"#'Część 26'!A1\",\"przejdz do\")","v":"przejdz do"},{"$f":"'Część 26'!$A$4","v":"Część 26"},{"$f":"'Część 26'!$A$5","v":"Zestaw kalibracyjny do mętności"}]
[{"$f":"HYPERLINK(\"#'Część 27'!A1\",\"przejdz do\")","v":"przejdz do"},{"$f":"'Część 27'!$A$4","v":"Część 27"},{"$f":"'Część 27'!$A$5","v":"Zestaw kuwetowy do oznaczania cyjanków w wodzie"}]
[{"$f":"HYPERLINK(\"#'Część 28'!A1\",\"przejdz do\")","v":"przejdz do"},{"$f":"'Część 28'!$A$4","v":"Część 28"},{"$f":"'Część 28'!$A$5","v":"Kolumienki do WWA"}]
[]
[]
[]
[null,null,"SUMA"]

{"sheet":"Część 01","index":1,"n_rows":116,"n_cols":10,"rows_kept":116,"merged":[[0,6,0,9],[2,0,2,9],[3,0,3,9],[4,0,4,9],[6,1,8,1],[6,2,8,2],[6,3,8,3],[6,4,6,5],[6,6,8,6],[6,7,8,7],[6,8,8,8],[6,9,8,9],[7,4,8,4],[7,5,8,5],[103,1,103,8],[104,2,104,9],[105,2,105,9],[108,2,108,9],[111,2,111,9],[113,3,113,9],[114,3,114,9]]}
[null,null,"AGZ.272.3.2024",{"$nulls":3},"Załącznik 1A do SWZ"]
[]
["OPIS PRZEDMIOTU ZAMÓWIENIA - KALKULACJA CENY OFERTY"]
[{"$f":"MID(CELL(\"nazwa_pliku\",A1),FIND(\"]\",CELL(\"nazwa_pliku\",A1),1)+1,100)","v":"Część 01"}]
["Odczynniki do analiz rutynowych"]
[{"$f":"HYPERLINK(\"#'Suma'!A1\",\"wstecz\")","v":"wstecz"}]
[null,"L.p.","Przedmiot zamówienia","Szczegółowy opis","Opis oferowanego produktu",null,"Jednostka miary","Ilość","Cena jednostkowa brutto [zł] **","Wartość brutto [zł] "]
[{"$nulls":4},"Producent*","Nr katalogowy producenta*"]
[]
[null,"1.","Aceton","• zawartość: min. 99,5 %;\n• stopień czystości: czda;\n• woda - max. 0,4 %;\n• pozostałość po odparowaniu - max. 0,0005%.",null,null,"op.= 1l",3,null,{"$f":"H10*I10","v":{"v":0,"d":"0.00"}}]
[null,"2.","Aceton","• zawartość: min. 99,5 %;\n• stopień czystości: czda;",null,null,"op.= 1l",1,null,{"$f":"H11*I11","v":{"v":0,"d":"0.00"}}]
[null,"3.","Aceton","• zawartość: min. 99, %;\n• stopień czystości: cz.\n",null,null,"op.= 5l",3,null,{"v":0,"d":"0.00"}]
[null,"4.","Amoniak","• zawartość 26 % ± 2 %;\n• stopień czystości: czda;\n• chlorki - max. 0,0001 %;\n• fosforany - max. 0,0001 %;\n• metale ciężkie (j. Pb) - max. 0,00005 %;\n• wapń i magnez (j. Ca) - max. 0,0002 %;\n• żelazo - max. 0,000025 %.\n",null,null,"op.= 1l",2,null,{"v":0,"d":"0.00"}]
[null,"5.","Amoniak","• zawartość 26 % ± 2 %;\n• stopień czystości: czda;\n• chlorki - max. 0,0001 %;\n• fosforany - max. 0,0001 %;\n• metale ciężkie (j. Pb) - max. 0,00005 %;\n• wapń i magnez (j. Ca) - max. 0,0002 %;\n• żelazo - max. 0,000025 %.",null,null,"op.= 1l",1,null,{"v":0,"d":"0.00"}]
[null,"6.","Amonu nadsiarczan","• zawartość min. 98%\n• stopień czystości: czda;\n• substancje nierozp. w wodzie max. 0,01%.\n",null,null,"op.= 250g",1,null,{"v":0,"d":"0.00"}]
[null,"7.","Amonu octan","• zawartość: min. 97 % - max. 100 %;\n• stopień czystości: czda.\n• substancje nierozpuszczalne w wodzie - max. 0,0025 %;\n• pH (5%, 20oC) = 6,7 ÷ 7,3;\n• substancje redukujące KMnO4 - max. 0,007 %;\n• pozostałość po prażeniu - max. 0,01 %.\n",null,null,"op. = 250g",1,null,{"v":0,"d":"0.00"}]
[null,"8.","Azotan srebra"," zawartość: min. 99,9 %;\n• stopień czystości: czda;\n• żelazo (Fe) - max. 0,0005 %;\n• chlorki (Cl) - max. 0,0005 %;\n• siarczany (SO4) - max. 0,005 %.\n",null,null,"op.= 10g",1,null,{"v":0,"d":"0.00"}]
[null,"9.","Błękit bromofenolowy","• wskaźnik;\n• straty po suszeniu - max 2,0%.",null,null,"op. = 5g",1,null,{"v":0,"d":"0.00"}]
[null,"10.","Błękit bromofenolowy","• wskaźnik     \n• straty po suszeniu - max 2,0%",null,null,"op. = 5g",1,null,{"v":0,"d":"0.00"}]
[null,"11.","Błękit bromotymolowy","• wskaźnik;\n• wygląd zewnętrzny: proszek różowy\n z odcieniem fioletowym;\n• straty po suszeniu - max 1,4%.\n",null,null,"op. = 5g",1,null,{"v":0,"d":"0.00"}]
[null,"12.","Chinolina ","• zawartość: min. 95%.\n\n",null,null,"op. = 100 ml",1,null,{"v":0,"d":"0.00"}]
[null,"13.","Czerń eriochromowa","• wskaźnik;                                                    \n• czułość na jony Mg min. 0,00001 g/ml.",null,null,"op.= 5g",1,null,{"v":0,"d":"0.00"}]
[null,"14.","Czerwień metylowa","• wskaźnik;    \n• roztwór 0,1% w etanolu\n",null,null,"op.= 100 ml",1,null,{"v":0,"d":"0.00"}]
[null,"15.","Czerwień metylowa","• wskaźnik;  \n• stopień czystości: czda.\n",null,null,"op.= 5g",1,null,{"v":0,"d":"0.00"}]
[null,"16.","di-Sodu wersenian 2-hydrat (EDTA)","• zawartość: min. 99 % max. 100,5 %;\n• stopień czystości: czda.",null,null,"op.= 100 g",2,null,{"v":0,"d":"0.00"}]
[null,"17.","di-sodu wodorofosforan bezw.","• zawartość: min. 98 %,                               \n• biały krystaliczny proszek;\n• stopień czystości cz.d.a.\n",null,null,"op. = 250g",1,null,{"v":0,"d":"0.00"}]
[null,"18.","di-sodu wodorofosforan bezw.","• zawartość: min. 98 %,                               \n• biały krystaliczny proszek;\n• stopień czystości cz.d.a.\n",null,null,"op. = 250g",1,null,{"v":0,"d":"0.00"}]
[null,"19.","Di-sodu wodorofosforan x 12 hydrat\n","• zawartość: min. 99 %;\n• stopień czystości: czda.\n",null,null,"op. = 1kg",2,null,{"v":0,"d":"0.00"}]
[null,"20.","Di-wodorofosforan potasu\n\n"," • zawartość min. 99 %\n• stopień czystości cz.d.a.\n• substancje nierozp. W wodzie max.0,01 %;\n• żelazo - max 0,001 %.\n",null,null,"op. = 250g",1,null,{"v":0,"d":"0.00"}]
[null,"21.","Etylowy alkohol  96% ","• zawartość - min. 96 %;\n• stopień czystości: czda;\n• metale ciężkie (j. Pb) - max. 0,0001 %;\n• pozostałość nielotna - max. 0,001 %.\n",null,null,"op.= 0,5l",81,null,{"v":0,"d":"0.00"}]
[null,"22.","Etylowy alkohol 96 %","• zawartość - min. 96 %;\n• stopień czystości: czda;\n• metale ciężkie (j. Pb) - max. 0,0001 %;\n• pozostałość nielotna - max. 0,001 %.\n",null,null,"op.= 0,5l",4,null,{"v":0,"d":"0.00"}]
[null,"23.","Etylowy alkohol bezwodny  99,8% ","• zawartość: min. 99,8%;\n• stopień czystości cz.d.a;\n• zawartość wody max. 0,2%.    \n\n",null,null,"op.= 250ml",4,null,{"v":0,"d":"0.00"}]
[null,"24.","Etylowy alkohol bezwodny  99,8% ","• zawartość: min. 99,8%;\n• stopień czystości cz.d.a;\n• zawartość wody max. 0,2%.    \n\n",null,null,"op.= 250ml",2,null,{"v":0,"d":"0.00"}]
[null,"25.","Fenoloftaleina","• wskaźnik     \n",null,null,"op. = 5g",1,null,{"v":0,"d":"0.00"}]
[null,"26.","Hydroksylaminy chlorowodorek ","• zawartość: min. 99 %;\n• stopień czystości: czda;\n• metale ciężkie (j. Pb) - max. 0,0005 %;\n• żelazo - max. 0,0005 %.\n",null,null,"op. = 500g",1,null,{"v":0,"d":"0.00"}]
[null,"27.","Izooktan","• zawartość: min. 99,0% \n• stopień czystości: czda;\n• pozostałość po odparowaniu - max. 0,002%.\n",null,null,"op. = 1l",4,null,{"v":0,"d":"0.00"}]
[null,"28.","Kwas azotowy ","• zawartość: min. 65 %;\n• stopień czystości: czda;\n• pozostałość po prażeniu (j. SO4) - max. 0,002 %;\n• metale ciężkie (j.Pb) - max. 0,0001 %;\n• arsen - max. 0,000002 %;\n• cynk - max. 0,00005 %;\n• glin - max 0,0001 %;\n• magnez - max. 0,00005 %;\n• ołów - max. 0,00005 %;                            \n• żelazo - max. 0,0001 %.",null,null,"op.= 1l",9,null,{"v":0,"d":"0.00"}]
[null,"29.","Kwas azotowy\n\n","• zawartość: min. 65 %;\n• stopień czystości: czda;\n• pozostałość po prażeniu (j. SO4) - max. 0,002 %;\n• metale ciężkie (j.Pb) - max. 0,0001 %;\n• arsen - max. 0,000002 %;\n• cynk - max. 0,00005 %;\n• glin - max 0,0001 %;\n• magnez - max. 0,00005 %;\n• ołów - max. 0,00005 %;                            \n• żelazo - max. 0,0001 %.",null,null,"op.= 1l",1,null,{"v":0,"d":"0.00"}]
[null,"30.","Kwas borowy","• zawartość: min. 99,5 %;\n• stopień czystości: czda;\n• substancje nierozpuszczalne w wodzie - max. 0,01 %.",null,null,"op.= 500g",1,null,{"v":0,"d":"0.00"}]
[null,"31.","Kwas bromowodorowy","• zawartość: min. 47-48 %;\n• stopień czystości: cz.d.a.\n",null,null,"op. = 1l",1,null,{"v":0,"d":"0.00"}]
[null,"32.","Kwas cytrynowy 1 hydrat\n","• Zawartość - min. 99,5 max. 100,5\n• stopień czystosci: czda.",null,null,"op.= 250g",1,null,{"v":0,"d":"0.00"}]
[null,"33.","Kwas L(+) askorbinowy","• zawartość - min. 99,0 %, max. 100,0 %;\n• stopień czystości: czda;\n• metale ciężkie (j.Pb) - max. 0,001 %;\n• arsen - max. 0,0003 %.\n",null,null,"op.= 100g",3,null,{"v":0,"d":"0.00"}]
[null,"34.","Kwas octowy lodowaty \n99,5-99,9%","• zawartość: min  99,5%, max. 99,9 %;\n• stopień czystości: czda;\n• metale ciężkie (j. Pb) - max. 0,0001 %;\n• chlorki - max. 0,0001 %;\n• żelazo - max. 0,00006 %.\n",null,null,"op.= 1l",3,null,{"v":0,"d":"0.00"}]
[null,"35.","Kwas octowy lodowaty \n99,5-99,9%","• zawartość: min  99,5%, max. 99,9 %;\n• stopień czystości: czda;\n• metale ciężkie (j. Pb) - max. 0,0001 %;\n• chlorki - max. 0,0001 %;\n• żelazo - max. 0,00006 %.",null,null,"op.= 1l",1,null,{"v":0,"d":"0.00"}]
[null,"36.","Kwas ortofosforowy\n85%","• zawartość: min. 85 %;\n• stopień czystości: czda;\n• azotany (NO3) - max. 0,0006 %;\n• chlorki (Cl) - max. 0,0005 %;\n• siarczany (SO4) - max. 0,003 %.\n",null,null,"op.= 1l",1,null,{"v":0,"d":"0.00"}]
[null,"37.","Kwas siarkowy  \n95%","• zawartość: min. 95 %;\n• stopień czystości: czda;\n• pozostałość po prażeniu - max. 0,001 %.\n",null,null,"op. = 1l",1,null,{"v":0,"d":"0.00"}]
[null,"38.","Kwas siarkowy  \n95%","• zawartość: min. 95 %;\n• stopień czystości: czda;\n• pozostałość po prażeniu - max. 0,001 %.\n",null,null,"op.= 1l",1,null,{"v":0,"d":"0.00"}]
[null,"39.","Kwas solny \n25%","• zawartość: min. 25%\n• stopień czystości: czda.",null,null,"op.= 1l",1,null,{"v":0,"d":"0.00"}]
[null,"40.","Kwas solny \n35-38%","• zawartość: min. 35 max. 38 %;\n• stopień czystości: czda;\n• arsen - max. 0,000005 %;\n• metale ciężkie (j. Pb) - max. 0,0001 %.\n\n\n",null,null,"op.= 1l",5,null,{"v":0,"d":"0.00"}]
[null,"41.","Kwas solny \n35-38%","• zawartość: min. 35 max. 38 %;\n• stopień czystości: czda;\n• arsen - max. 0,000005 %;\n• metale ciężkie (j. Pb) - max. 0,0001 %.\n\n\n",null,null,"op.= 1l",1,null,{"v":0,"d":"0.00"}]
[null,"42.","Laktoza 1 hydrat \n","• stopień czystości cz.d.a.\n• Skręcalność właściwa (20°C, 10%, H2O) od +54,4 do +55,9°\n• Woda - min. 4,5% max. 5,5 %\nmetale ciężkie (j Pb) - max. 0,0005 %.\n",null,null,"op. = 1kg",2,null,{"v":0,"d":"0.00"}]
[null,"43.","Magnezu di-sodu wersenian ","• zawartość: min. 98,0 %; \n• stopień czystości: czda.\n",null,null,"op. = 10g",1,null,{"v":0,"d":"0.00"}]
[null,"44.","Magnezu di-sodu wersenian ","• zawartość: min. 99 %;\n• stopień czystości: czda;",null,null,"op.= 10g",1,null,{"v":0,"d":"0.00"}]
[null,"45.","Miedzi (II) siarczan (VI) 5 hydrat","• stopień czystości: czda;\n• zawartość min. 98 %;",null,null,"op. = 100g",1,null,{"v":0,"d":"0.00"}]
[null,"46.","Mocznik","• zawartość: min. 99 %;\n• stopień czystości: czda.\n",null,null,"op. = 250g",1,null,{"v":0,"d":"0.00"}]
[null,"47.","Odczynnik Schiffa - do oznaczania aldehydów\n","• przydatny do oznaczania aldehydów",null,null,"op.= 100ml",2,null,{"v":0,"d":"0.00"}]
[null,"48.","Parafina ciekła ","• gęstość: min. 0,83 g/ml;\n• wygląd zewnętrzny: bezbarwna, oleista, przezroczysta ciecz.\n",null,null,"op.= 1l",8,null,{"v":0,"d":"0.00"}]
[null,"49.","Parafina ciekła ","• gęstość: min. 0,83 g/ml;\n• wygląd zewnętrzny: bezbarwna, oleista, przezroczysta ciecz.\n",null,null,"op.= 1l",1,null,{"v":0,"d":"0.00"}]
[null,"50.","Pirydyna","• zawartość: min. 98%;\n• stopień czystości: czda.\n",null,null,"op. = 500ml",1,null,{"v":0,"d":"0.00"}]
[null,"51.","Potasu wodorotlenek \n","• zawartość: min. 85 %;\n• stopień czystości: czda.",null,null,"op. = 1kg",1,null,{"v":0,"d":"0.00"}]
[null,"52.","Potasu wodorotlenek ","• zawartość min 85%;\n• stopień czystości cz.d.a.\n",null,null,"op. = 500g",1,null,{"v":0,"d":"0.00"}]
[null,"53.","Potasu wodorotlenek ","• zawartość min 85%;\n• stopień czystości cz.d.a.\n",null,null,"op. = 1kg",2,null,{"v":0,"d":"0.00"}]
[null,"54.","Potasu  wodorotlenek ","• zawartość min 85%;\n• stopień czystości cz.d.a.\n",null,null,"op. = 1kg",1,null,{"v":0,"d":"0.00"}]
[null,"55.","Potasu Antymonylu winian 0,5 hydrat","• zawartość min. 99,0%\n• stopień czystości: czda.\n",null,null,"op. = 10 g",1,null,{"v":0,"d":"0.00"}]
[null,"56.","Potasu chromian\n","• zawartość: min 99,0 %;\n• stopień czystości: czda;\n• substancje nierozpuszczalne w wodzie - max. 0,005 %;\n• chlorki - max. 0,005 %.",null,null,"op. = 100g",1,null,{"v":0,"d":"0.00"}]
[null,"57.","Potasu jodek","• stopień czystości: czda.\n• zawartość - min. 99,5 %;\n• arsen - max. 0,00001 %;\n• metale ciężkie (j. Pb) - max. 0,0005 %.",null,null,"op. = 100g",1,null,{"v":0,"d":"0.00"}]
[null,"58.","Potasu jodek","• stopień czystości: czda.\n• zawartość - min. 99,5 %;\n• arsen - max. 0,00001 %;\n• metale ciężkie (j. Pb) - max. 0,0005 %.\n",null,null,"op. = 100g",3,null,{"v":0,"d":"0.00"}]
[null,"59.","Purpura bromokrezolowa ","• wygląd zew. brązowy proszek z odcieniem czerwonym,                                                  \n• wskaźnik,\n• stopień czystości cz.d.a.\n",null,null,"op. = 25g",1,null,{"v":0,"d":"0.00"}]
[null,"60.","Rtęci (II) siarczan","• zawartość min. 98%\n• stopień czystości: czda;\n• chlorki max. 0,01%.",null,null,"op.= 100g",1,null,{"v":0,"d":"0.00"}]
[null,"61.","Sacharoza\n","• zawartość: min. 99 %;\n• stopień czystości: czda.\n",null,null,"op.= 100g",1,null,{"v":0,"d":"0.00"}]
[null,"62.","Sacharoza\n","• zawartość: min. 99 %;\n• stopień czystości: czda.\n",null,null,"op. = 100g",1,null,{"v":0,"d":"0.00"}]
[null,"63.","Skrobia rozpuszczalna","• stopień czystości: czda.\n",null,null,"op. = 25g",1,null,{"v":0,"d":"0.00"}]
[null,"64.","Skrobia rozpuszczalna","• roztwór 1 %.\n• stopień czystości: czda.\n",null,null,"op. = 100ml",1,null,{"v":0,"d":"0.00"}]
[null,"65.","Sodu chlorek","• zawartość: min. 99,5 %;\n• stopień czystości: czda.\n",null,null,"op.=\n500g",1,null,{"v":0,"d":"0.00"}]
[null,"66.","Sodu chlorek","• zawartość: min. 99,5 %;\n• stopień czystości: czda.",null,null,"op. = 500g",1,null,{"$f":"H75*I75","v":{"v":0,"d":"0.00"}}]
[null,"67.","Sodu chlorek","• zawartość: min. 99,5 %;\n• stopień czystości: czda.\n",null,null,"op. = 500g",1,null,{"v":0,"d":"0.00"}]
[null,"68.","Sodu diwodorofosforan bezw.","• zawartość: min. 99 %;\n• stopień czystości: czda.\n",null,null,"op. = 250g ",1,null,{"v":0,"d":"0.00"}]
[null,"69.","Sodu molibdenian 2 hydrat","• zawartość - min. 99,5\n• stopień czystosci: czda.\n",null,null,"op. = 250g",1,null,{"v":0,"d":"0.00"}]
[null,"70.","Sodu mrówczan","• zawartość - min. 99,5\n• stopień czystosci: czda.\n",null,null,"op. = 500g",1,null,{"v":0,"d":"0.00"}]
[null,"71.","Sodu octan bezwodny","• zawartość - min. 99,0 %;\n• stopień czystości: czda;\n• substancje nierozpuszczale w wodzie - max.0,01 %.\n",null,null,"op. = 250g",1,null,{"v":0,"d":"0.00"}]
[null,"72.","Sodu octan bezwodny","• zawartość - min. 99,0 %;\n• stopień czystości: czda;\n• substancje nierozpuszczale w wodzie - max.0,01 %.\n\n",null,null,"op.= 250g",1,null,{"v":0,"d":"0.00"}]
[null,"73.","Sodu podchloryn stabilizowany 15%\n","• zawartość aktywnego chloru ok. 15%;\n",null,null,"op. = 1L",2,null,{"v":0,"d":"0.00"}]
[null,"74.","Sodu siarczan (VI) bezwodny","• zawartość: min. 99,0 %;\n• stopień czystości: czda;\n• substancje nierozpuszczalne w wodzie - max. 0,01 %;\n• straty po prażeniu - max. 0,5 %.\n",null,null,"op. = 1kg",1,null,{"v":0,"d":"0.00"}]
[null,"75.","Sodu tiosiarczan 5 hydrat","• zawartość: min. 99,5 %;\n• stopień czystości: cz.d.a.;\n• substancje nierozpuszczalne w wodzie - max. 0,005 %;\n• metale ciężkie (j. Pb) - max. 0,0005 %;\n• chlorki - max. 0,01%.\n",null,null,"op. = 500g",4,null,{"v":0,"d":"0.00"}]
[null,"76.","Sodu tiosiarczan 5 hydrat","• zawartość: min. 99,5 %, max. 100,5%;\n• stopień czystości: czda;\n• Substancje nierozpuszczalne w wodzie  max. 0,005 %;\n• metale ciężkie (j. Pb) - max. 0,0005 %;\n• chlorki - max. 0,01%.\n",null,null,"op. = 250g",1,null,{"v":0,"d":"0.00"}]
[null,"77.","Sodu węglan ","• stopień czystości: czda.\n\n",null,null,"op. = 500g",1,null,{"v":0,"d":"0.00"}]
[null,"78.","Sodu węglan 10-hydrat","• zawartość: min. 99,8 %;\n• stopień czystości: czd.a\n",null,null,"op. = 1kg",2,null,{"v":0,"d":"0.00"}]
[null,"79.","Sodu węglan bezwodny","• zawartość: min. 99,8 %;\n• stopień czystości: czda.\n",null,null,"op. = 100g",2,null,{"v":0,"d":"0.00"}]
[null,"80.","Sodu wodorotlenek (mikrogranulki)","• stopień czystości: czda.\n• zawartość - min. 98,8%;\n• sodu węglan - max. 0,7%;\n• azot ogólny - max. 0,0005%;\n• wygląd zewnętrzny: mikrogranulki o jednorodnej białej barwie.\n",null,null,"op. = 1kg",2,null,{"v":0,"d":"0.00"}]
[null,"81.","Sodu wodorotlenek (mikrogranulki)","• stopień czystości: czda.\n• zawartość - min. 98,8%;\n• sodu węglan - max. 0,7%;\n• azot ogólny - max. 0,0005%;\n• wygląd zewnętrzny: mikrogranulki o jednorodnej białej barwie.\n",null,null,"op. = 1kg",1,null,{"v":0,"d":"0.00"}]
[null,"82.","Sodu wodorowęglan","zawartość: min. 99,5-101 %;                          \n• stopień czystości: czda.\n",null,null,"op. = 250g",2,null,{"v":0,"d":"0.00"}]
[null,"83.","Sulfanilamid","• stopień czystości: czda.\n• zawartość: min. 99%.\n",null,null,"op. = 50g",1,null,{"v":0,"d":"0.00"}]
[null,"84.","Sulfanilamid","• stopień czystości: czda.\n• zawartość: min. 99%.\n",null,null,"op. = 50 g",1,null,{"v":0,"d":"0.00"}]
[null,"85.","Trietanoloamina\n","• zawartość - min. 99,0 %;\n• stopień czystości: czda;\n• Gęstość (20°C) 1,123 – 1,128 g/ml.\n\n\n",null,null,"op.=\n100 ml",1,null,{"v":0,"d":"0.00"}]
[null,"86.","Tri-sodu cytrynian 2 hydrat\n","• zawartość min. 99%; \n• stopień czystości: czda. ",null,null,"op.= 500g",1,null,{"v":0,"d":"0.00"}]
[null,"87.","Wapnia chlorek 2 hydrat \n","• stopień czystości: czda.",null,null,"op. = 250 g",1,null,{"v":0,"d":"0.00"}]
[null,"88.","Wapnia węglan strącony","• zawartość: min. 99%;\n• stopień czystości: czda;\n• magnez - max. 0,05%.\n",null,null,"op. = 25g",1,null,{"v":0,"d":"0.00"}]
[null,"89.","Woda bromowa\n\n","• nasycony roztwór bromu w wodzie - 4%",null,null,"op. = 50ml",1,null,{"v":0,"d":"0.00"}]
[null,"90.","Wodorocytrynian diamonu","• zawartość: min. 98 %, max. 103%;\n• stopień czystości: czda;\n• substancje nierozpuszczalne w wodzie - max. 0,005 %;\n• metale ciężkie (j. Pb) - max. 0,0005 %;\n• arsen - max. 0,00001 %;\n• ołów - max. 0,0005 %;\n• kadm - max. 0,0005 %.\n",null,null,"op. = 500g",1,null,{"v":0,"d":"0.00"}]
[null,"91.","Wodoru nadtlenek roztwór 30%","• stopień czystości cz.d.a.;\n• siarczany (SO4) max. 0,0005 %.                            ",null,null,"op = 1L",1,null,{"v":0,"d":"0.00"}]
[null,"92.","Wskaźnik Taschiro","• wskaźnik;\n• zmiana barwy w zakresie pH: czerwonofioletowa - min. 4,4, zielona - min. 5,8.\n",null,null,"op. = 100ml",1,null,{"v":0,"d":"0.00"}]
[null,"93.","Wskaźnik Taschiro","• wskaźnik;\n• zmiana barwy w zakresie pH: czerwonofioletowa - min. 4,4, zielona - min. 5,8.\n",null,null,"op. = 100ml",1,null,{"v":0,"d":"0.00"}]
[null,"94.","Żelaza (II) siarczan 7 hydrat","• zawartość: min. 99 %;\n• stopień czystości: czda.\n",null,null,"op. = 100g",2,null,{"v":0,"d":"0.00"}]
[null,"Cena oferty (brutto):",{"$nulls":7},{"$f":"SUM(J10:J103)","v":{"v":0,"d":"0.00"}}]
[null,"*","Należy wpisać nazwę producenta oraz numer katalogowy producenta oferowanego produktu. Niepodanie ww. danych będzie skutkować odrzuceniem oferty, chyba że dane te będą jednoznacznie wynikać z innych dokumentów dołączonych do oferty."]
[null,"**","Zawiera podatek od towarów i usług (VAT) wg obowiązującej stawki oraz koszty wszystkich świadczeń niezbędnych do wykonania zamówienia, w szczególności koszty transportu, ubezpieczenia, opakowania (także kaucjonowanego) itp."]
[null,"Wymagania dodatkowe:"]
[]
[null,"1.","Do dostawy wymagany certyfikat jakości /świadectwo kontroli jakości lub inny dokument potwierdzający jakość produktu w języku polskim lub angielskim w formie papierowej lub dostępny w formie elektronicznej w miejscu wskazanym przez wykonawcę (adres strony www). "]
[null,"2.","Dla poz. 73 okres ważności: min. 6 miesięcy od daty dostawy."]
[null,"3.","Dla poz. 31 okres ważności: min. 12 miesięcy od daty dostawy."]
[null,"4.","Dla pozostałych pozycji okres ważności: min. 24 miesięcy od daty dostawy lub min. ¾ okresu ważności deklarowanego przez producenta (zapisanego w certyfikacie jakości / świadectwie kontroli jakości lub innym dokumencie do danej partii, którym mowa w pkt. 1)."]
[null,"5.","Na opakowaniu podana czytelna nazwa odczynnika, zgodna z nazwą podaną w dokumentach, o którym mowa w pkt. 1."]
[null,"6.","Miejsce dostawy:\n","WSSE Kraków  ul. Prądnicka 76, 31-202 Kraków - dla poz. 1, 4, 9, 11, 14, 16, 18-21, 23, 26-28, 30-34, 37, 39, 40, 42, 46-48, 52, 53, 58, 59, 62-65, 67, 68, 70, 72-75, 77-79, 82, 86-90, 93, 94.\n"]
[{"$nulls":3},"WSSE Oddział Laboratoryjny w Tarnowie  ul. Mościckiego 10,  33-100 Tarnów - dla poz.  2, 5-8, 10, 12, 15, 17, 22, 24, 25, 29, 35, 41, 43, 45, 49, 50, 54-57, 60, 61, 66, 69, 76, 80, 83, 91, 92.\n"]
[{"$nulls":3},"WSSE Oddział Laboratoryjny w Wadowicach ul. Teatralna 2, 34-100 Wadowice - dla poz. 3, 13, 36, 38, 44, 51, 71, 81, 84, 85"]

{"sheet":"Część 02","index":2,"n_rows":65,"n_cols":10,"rows_kept":65,"merged":[[0,6,0,9],[2,0,2,9],[3,0,3,9],[4,0,4,9],[6,1,8,1],[6,2,8,2],[6,3,8,3],[6,4,6,5],[6,6,8,6],[6,7,8,7],[6,8,8,8],[6,9,8,9],[7,4,8,4],[7,5,8,5],[48,1,48,8],[49,2,49,9],[50,2,50,9],[51,2,51,9],[55,2,55,9],[56,2,56,9],[60,2,60,9],[61,2,61,9]]}
[null,null,"AGZ.272.3.2024",{"$nulls":3},"Załącznik 1A do SWZ"]
[]
["OPIS PRZEDMIOTU ZAMÓWIENIA - KALKULACJA CENY OFERTY"]
[{"$f":"MID(CELL(\"nazwa_pliku\",A1),FIND(\"]\",CELL(\"nazwa_pliku\",A1),1)+1,100)","v":"Część 02"}]
["Odczynniki do analiz instrumentalnych"]
[{"$f":"HYPERLINK(\"#'Suma'!A1\",\"wstecz\")","v":"wstecz"}]
[null,"L.p.","Przedmiot zamówienia","Szczegółowy opis","Opis oferowanego produktu",null,"Jednostka miary","Ilość","Cena jednostkowa brutto [zł] **","Wartość brutto [zł] "]
[{"$nulls":4},"Producent*","Nr katalogowy producenta*"]
[]
[null,"1.","2,6-di-tert-butylo-4-metylofenol (BHT) do syntezy       \n\n","np. producent: MERCK\nnr kat. 8.22021.0500\nlub produkt równoważny***\n• do syntezy;\n• zawartość: min 99 %.\n",null,null,"op. = \n500g",1,null,{"$f":"H10*I10","v":{"v":0,"d":"0.00"}}]
[null,"2.","Chlorek cezu \n","• czystość min. 99,5%;                              \n• do analizy metali\n• nr CAS 7647-17-8\n",null,null,"op.=\n25g",1,null,{"$f":"H11*I11","v":{"v":0,"d":"0.00"}}]
[null,"3.","Chloroform","• zawartość: min. 98.5 %;\n• bezbarwna, klarowna ciecz\n",null,null,"op.= \n1L",3,null,{"v":0,"d":"0.00"}]
[null,"4.","Cynk metal\n","np. producent: MERCK\nnr kat. 1.08782.0500\nlub produkt równoważny***\n• zawartość: min. 99,9%;\n• wyglad zewnętrzny: srebrzyste laski.\n",null,null,"op. = \n500g",1,null,{"v":0,"d":"0.00"}]
[null,"5.","Cyny (II) chlorek 2 hydrat\n\n\n\n","• zawartość: min. 98 % max. 103 %;\n• siarczany - max. 0,002 %;\n• metale ciężkie (j. Pb) - max 0,005 %;\n• żelazo - max. 0,002 %;\n• arsen - max. 0,0001 %.\n",null,null,"op. =\n250g",1,null,{"v":0,"d":"0.00"}]
[null,"6.","Izobutylometyloketon\n","• zastosowanie: do ekstrakcji;\n• zawartość (GC): min. 99,0 %;\n• identyfikacja (IR);\n• glin - max. 0,00005 %;\n• bor - max. 0,000002 %;\n• wapń - max. 0,00005 %;\n• kadm - max. 0,000005 %;\n• chrom - max. 0,000002 %;\n• miedź - max. 0,000002 %;\n• żelazo - max. 0,00001 %;\n• magnez - max. 0,00001 %;\n• mangan - max. 0,000002 %;\n• nikiel - max. 0,000002 %;\n• ołów - max. 0,00001 %;\n• cyna - max. 0,00001 %;\n• cynk - max. 0,00001 %.\n",null,null,"op.=\n2,5l",4,null,{"v":0,"d":"0.00"}]
[null,"7.","Jodan potasu","np. producent:  Supelco\nnr kat. 1.02404.0103\nlub produkt równoważny***                                                                                  • zawartość: min. 99,0 %\n• wtórny materiał odniesienia do oznaczeń jodometrycznych\n",null,null,"op = \n100 g",1,null,{"v":0,"d":"0.00"}]
[null,"8.","Jodek sodu\n","np. producent:  Merck\nnr kat. 1.06523.0100\nlub produkt równoważny***                                                                                  • zawartość: min. 99,0 %.\n",null,null,"op = \n100 g",1,null,{"v":0,"d":"0.00"}]
[null,"9.","Kwas azotowy\n","np. producent: MERCK \nnr kat. 100441\nlub produkt równoważny***\n• zawartość: min. 65 %;\n• stopień czystości: suprapur;\n• miedź - max. 0,5 ppb;\n• chrom - max. 1,0 ppb;\n• rtęć - max. 1,0 ppb;\n• ołów - max. 2 ppb;\n• glin - max. 5,0 ppb;\n• arsen - max. 0,5 ppb;\n• kadm - max. 0,5 ppb;\n• żelazo - max. 2,0 ppb;,\n• nikiel - max. 5,0 ppb\n• sód - max. 10,0 ppb;\n• potas - max. 2,0 ppb;\n• chlorki - max. 50 ppb;\n• fosforany - max. 10 ppb;\n• siarczany - max. 200 ppb.\n",null,null,"op.=\n1 l",4,null,{"v":0,"d":"0.00"}]
[null,"10.","Kwas azotowy\n","np producent: MERCK \nnr kat. 100452\nlub produkt równoważny***\n• zawartość: min. 65 %;\n• stopień czystości: do analizy;\n• miedź - max. 0,01 ppm;\n• rtęć - max. 0,005 ppm;\n• ołów - max. 0,01 ppm;\n• arsen - max. 0,01 ppm;\n• kadm - max. 0,01 ppm;\n• żelazo - max. 0,1 ppm;,\n• nikiel - max. 0,02 ppm;\n• sód - max. 0,2 ppm;\n• potas - max. 0,1 ppm;\n• fosforany - max. 0,2 ppm.\n",null,null,"op.=\n2,5 l",4,null,{"v":0,"d":"0.00"}]
[null,"11.","Kwas octowy (lodowaty)          ","np. producent: MERCK \nnr kat. 1.00063 \nlub produkt równoważny***\n• 100% bezwodny GR;\n• do analizy  EMSURE® ACS,ISO, Reag. Ph Eur, \n• zawartość: min. 99,8%.\n",null,null,"op.= \n1 l",1,null,{"v":0,"d":"0.00"}]
[null,"12.","Kwas ortofosforowy\n","np. producent: MERCK \nnr kat. 100573 \nlub produkt równoważny***\n• zawartość: min. 85 %;\n• do analizy  EMSURE® ACS,ISO, Reag. Ph Eur.\n",null,null,"op.= \n1 l",1,null,{"v":0,"d":"0.00"}]
[null,"13.","Kwas siarkowy\n","np producent: MERCK \nnr kat. 100732\nlub produkt równoważny***\n• zawartość: min. 95 - 97 %;\n• metale ciężkie (j. Pb) - max. 1 ppm;\n• rtęć - max. 0,005 ppm;\n• glin - max. 0,05 ppm;\n• arsen - max. 0,01 ppm;\n• kadm - max. 0,02 ppm.\n",null,null,"op. = \n2,5l",2,null,{"v":0,"d":"0.00"}]
[null,"14.","Kwas solny\n","np producent: MERCK \nnr kat. 100318\nlub produkt równoważny***\n• zawartość: min. 30 %;\n• wapń - max. 5,0 ppb;\n• kadm - max. 0,5 ppb;\n• miedź - max. 1,0 ppb;\n• żelazo - max. 5,0 ppb;\n• magnez - max. 2,0 ppb;\n• nikiel - max. 1,0 ppb;\n• ołów - max. 0,5 ppb;\n• cyna - max. 1,0 ppb;\n• arsen - max. 1,0 ppb.\n",null,null,"op.= \n1 l",1,null,{"v":0,"d":"0.00"}]
[null,"15.","Lantanu azotan 6 hydrat\n","• zastosowanie: do analiz;\n• zawartość: min. 96 %;\n• metale ciężkie (j. Pb) - max. 0,002 %;\n• wapń - max. 0,001 %;\n• żelazo - max. 0,002 %.\n",null,null,"op.=\n100g",1,null,{"v":0,"d":"0.00"}]
[null,"16.","Magnezu azotan 6-hydrat\n","np. producent: MERCK\nnr kat. 105853\nlub produkt równoważny***\n• zawartość: 99,0 - 102,0 %;\n• metale ciężkie (j. Pb) - max. 0,0005 %;\n• arsen - max. 0,0001 %.\n",null,null,"op. = \n500 g",2,null,{"v":0,"d":"0.00"}]
[null,"17.","Magnezu tlenek\n","np. producent: MERCK \nnr kat. 105865\nlub produkt równoważny***\n• zawartość: min. 97,0 %;\n• metale ciężkie (j. Pb) - max. 0,003 %;\n• arsen - max. 0,0001 %.",null,null,"op.=\n100 g",1,null,{"v":0,"d":"0.00"}]
[null,"18.","Modyfikator  azotan magnezowy              ","• zastosowanie: do pieca grafitiwego AAS                                                       • Mg(NO3)2*6H20                                          \n• zawartość: min. 99,99 %\n",null,null,"op.=\n50 ml",1,null,{"v":0,"d":"0.00"}]
[null,"19.","Modyfikator fosforanowy              ","• zastosowanie: do pieca grafitiwego AAS;                                                       • NH4H2PO4 100±2 g/l w wodzie.",null,null,"op.=\n50 ml",1,null,{"v":0,"d":"0.00"}]
[null,"20.","N-(1-Naftylo) etylenodiamina, dichlorowodorek","np. producent: MERCK\nnr kat. 1.06237\nlub produkt równoważny***\n• zawartość: min. 97 %,                                                    \n• wygląd roztworu - rozpuszczalność całkowita,  \n• 1-naftyloamina (HPLC) - max. 0,1% ;                                               \n• 2-naftyloamina (HPLC) - max. 0,01%;                                  \n• zawartośc wody - max. 5,0%.",null,null,"op.=\n5 g",1,null,{"v":0,"d":"0.00"}]
[null,"21.","Odczynnik Nesslera na sole amonowe","• wygląd zewnętrzny : jasno żółta ciecz, bez zapachu, \n• gęstość względna 1,16g/cm3 w 20oC.",null,null,"op.=\n100 ml",1,null,{"v":0,"d":"0.00"}]
[null,"22.","Pirosiarczyn potasu\n","np. producent:  Merck\nnr kat. 1.05057\nlub produkt równoważny***                                                                                  • zawartość: min. 96,0 %.\n\n",null,null,"op = \n500 g",1,null,{"v":0,"d":"0.00"}]
[null,"23.","Roztwór buforowy/ standard/wzorzec \npH=7,0 \n","np. producent: MERCK/Sigma-Aldrich \nnr kat. 109439\nlub produkt równoważny***\n• w temp. 20oC – pH od 6,98 do 7,02\n• niepewność ± 0,02.\n",null,null,"op.= \n1000ml",2,null,{"v":0,"d":"0.00"}]
[null,"24.","Roztwór buforowy/ standard/wzorzec \npH=7,0 \n","np. producent: MERCK/Sigma-Aldrich  \nnr kat. 109439\nlub produkt równoważny***\n• w temp. 20oC – pH od 6,98 do 7,02\n• niepewność ± 0,02.\n",null,null,"op.= \n1000ml",2,null,{"v":0,"d":"0.00"}]
[null,"25.","Roztwór buforowy/ standard/wzorzec\npH=10,0\n","np. producent: MERCK/Sigma-Aldrich \nnr kat.  109400\nlub produkt równoważny***\n• w temp. 20oC - pH od 9,98 do 10,02;\n• niepewność ± 0,03.\n",null,null,"op.= \n500ml",3,null,{"v":0,"d":"0.00"}]
[null,"26.","Roztwór buforowy/ standard/wzorzec\npH=4,0\n\n","np. producent: MERCK/Sigma-Aldrich \nnr kat. 109475\nlub produkt równoważny*** \n• w temp. 20oC - pH od 4,00 do 4,01\n• niepewność ± 0,02.\n",null,null,"op.= \n500ml",2,null,{"v":0,"d":"0.00"}]
[null,"27.","Roztwór buforowy/ standard/wzorzec\npH=4,0\n\n","np. producent: MERCK/Sigma-Aldrich \nnr kat. 109475\nlub produkt równoważny***\n• w temp. 20oC - pH od 4,00 do 4,01\n• niepewność ± 0,02.\n",null,null,"op.= \n500ml",4,null,{"v":0,"d":"0.00"}]
[null,"28.","Sodu salicylan\n","np. producent: MERCK\nnr kat. 106601\nlub produkt równoważny***\n• zawartość: min. 99,5 %\n• chlorki - max. 0,002 %;\n• metale ciężkie (j. Pb) - max. 0,001 %\n• żelazo - max. 0,001 %.",null,null,"op.=\n1 kg",1,null,{"v":0,"d":"0.00"}]
[null,"29.","Tabletki Kjeldahla ","np. producent:  Merck \nnr kat. 1.16469.0250\nlub produkt równoważny***                                                                                  • katalizator Missouri 5,0 g/tabletkę;\n• kolor: niebieskawo-zielonawy;\n",null,null,"op = \n250 szt.",1,null,{"v":0,"d":"0.00"}]
[null,"30.","Tabletki Kjeldahla ","np. producent:  Merck \nnr kat. 1.16469.0250\nlub produkt równoważny***                                                                                  • katalizator Missouri 5,0 g/tabletkę;\n• kolor: niebieskawo-zielonawy;\n",null,null,"op = \n250 szt.",1,null,{"v":0,"d":"0.00"}]
[null,"31.","Tri-sodu cytrynian dwuwodny\n","np. producent:  Merck \nnr kat. 106448\nlub produkt równoważny***\n• zawartość: min. 99,0 % max. 101,0 %;\n• chlorki - max. 0,001 %;\n• azot całkowity - max. 0,001 %;\n• amoniak - max. 0,003 %.\n",null,null,"op = \n1 kg",1,null,{"v":0,"d":"0.00"}]
[null,"32.","Tri-sodu cytrynian dwuwodny\n","np. producent:  Merck \nnr kat. 106448\nlub produkt równoważny***\n• zawartość: min. 99,0 % max. 101,0 %;\n• chlorki - max. 0,001 %;\n• azot całkowity - max. 0,001 %;\n• amoniak - max. 0,003 %.\n",null,null,"op = \n1 kg",1,null,{"v":0,"d":"0.00"}]
[null,"33.","Węgiel drzewny aktywowany ziarnisty \n","np. producent: MERCK                 \nnr kat. 1.02514\nlub produkt równoważny***\n• ekstra czysty;\n• Granulacja około 1,5 mm;                            \n• Substancje nierozpuszczalne w kwasie azotowym  ≤ 5 %;\n• Chlorki (Cl) ≤ 1000 ppm;\n• As (Arsen) ≤ 5 ppm;\n• Fe (Żelazo) ≤ 500 ppm;\n• Pb (ółów) ≤ 20 ppm;\n• Zn (Cynk) ≤ 100 ppm;\n• Adsorpcja z n-heksanu ≥ 30 %;\n• Pozostałość po spaleniu (600 °C) ≤ 10 %;\n• Straty po prażeniu ≤ 10 % .          ",null,null,"op.=\n1 kg",2,null,{"v":0,"d":"0.00"}]
[null,"34.","Woda  do nieorganicznych analiz śladowych\n","np. producent: MERCK \nnr kat. 100473  \nlub produkt równoważny***\n• zastosowanie: do nieorganicznych analiz śladowych;\n• glin - max.1.0 ppb;\n• arsen - max. 1.0 ppb;\n• wapń - max. 1.0 ppb;\n• kadm - max. 1.0 ppb;\n• chrom - max. 1.0 ppb;\n• miedź - max. 1.0 ppb;\n• żelazo - max. 1.0 ppb;\n• rtęć - max. 1.0 ppb;\n• potas - max. 1.0 ppb;\n• magnez - max. 1.0 ppb; \n• mangan - max. 1.0 ppb;\n• sód - max. 1.0 ppb;\n• nikiel - max. 1.0 ppb;\n• ołów - max. 1.0 ppb;\n• cynk - max. 1.0 ppb;\n• cyna - max. 1.0 ppb.\n",null,null,"op. =          5 l",3,null,{"v":0,"d":"0.00"}]
[null,"35.","Wodorosiarczan tetrabutyloamoniowy ","• zastosowanie: do chromatografii jonowo-asocjacyjnej\n• zawartość: min. 99%.\n",null,null,"op.=\n25g",1,null,{"v":0,"d":"0.00"}]
[null,"36.","Wzorzec cyjanków\n","np. producent: Merck\nnr kat. 90157\nlub produkt równoważny***\n• roztwór wodny;\n• stężenie 1000 mg/l;\n• wzorzec do IC.",null,null,"op.=\n100 ml",1,null,{"v":0,"d":"0.00"}]
[null,"37.","Wzorzec Twardości ogólnej\n","np. producent: MERCK\nnr kat. THRD1000\nlub produkt równoważny***\n• stężenie 1000 mg/l;\n• rozpuszczalnik: woda.\n",null,null,"op.=\n500 ml",1,null,{"v":0,"d":"0.00"}]
[null,"38.","Wzorzec Twardości ogólnej\n","np. producent: MERCK\nnr kat. THRD1000\nlub produkt równoważny***\n• stężenie 1000 mg/l;\n• rozpuszczalnik: woda.\n",null,null,"op.=\n500 ml",1,null,{"v":0,"d":"0.00"}]
[null,"39.","Wzorzec Wapnia\n","np. producent: MERCK \nnr kat. HARD1000\nlub produkt równoważny***\n• stężenie 1000 mg/l;\n• rozpuszczalnik: woda.\n",null,null,"op.= \n500ml",1,null,{"$f":"H48*I48","v":{"v":0,"d":"0.00"}}]
[null,"Cena oferty (brutto):",{"$nulls":7},{"$f":"SUM(J10:J48)","v":{"v":0,"d":"0.00"}}]
[null,"*","Należy wpisać nazwę producenta oraz numer katalogowy producenta oferowanego produktu. Niepodanie ww. danych będzie skutkować odrzuceniem oferty, chyba że dane te będą jednoznacznie wynikać z innych dokumentów dołączonych do oferty.\n"]
[null,"**","Zawiera podatek od towarów i usług (VAT) wg obowiązującej stawki oraz koszty wszystkich świadczeń niezbędnych do wykonania zamówienia, w szczególności koszty transportu, ubezpieczenia, opakowania (także kaucjonowanego) itp."]
[null,"***","Wykonawca oferujący produkt innego producenta, o innym numerze katalogowym niż wskazany jako przykład zobowiązany jest dostarczyć certyfikaty potwierdzające równoważność oferowanego produktu z wymaganiami przedstawionymi w tabeli w języku polskim lub angielskim. Wymienione dokumenty nie muszą potwierdzać zastosowania odczynnika oraz wyglądu zewnętrznego."]
[]
[null,"Wymagania dodatkowe:"]
[]
[null,"1.","Dla poz. 7, 23-27, 36-39  do dostawy wymagany certyfikat/świadectwo potwierdzające jakość produktu i wyprodukowanie CRMu/wzorca przez NMI zarejestrowane w bazie BIPM KCDB \nlub przez akredytowanego  producenta materiałów odniesienia w odniesieniu do wymagań normy PN-EN ISO 17034, wydane w języku polskim lub angielskim, w formie papierowej lub dostępny w formie elektronicznej w miejscu wskazanym przez wykonawcę (adres strony www). Certyfikat/świadectwo musi zawierać: wartość parametru wraz z niepewnością."]
[null,"2.","Dla pozostałych pozycji do dostawy wymagany certyfikat jakości / świadectwo kontroli jakości lub inny dokument potwierdzający jakość  produktu w języku polskim lub angielskim, w formie papierowej lub dostępny w formie elektronicznej w miejscu wskazanym przez wykonawcę (adres strony www). "]
[null,"3.","Dla poz. 22 okres ważności: min. 8 miesięcy od daty dostawy."]
[null,"4.","Dla poz. 34 okres ważności: min. 6 miesięcy od daty dostawy."]
[null,"5.","Dla poz. 17, 18, 31, 32 okres ważności : min. 12 miesiecy od daty dostawy."]
[null,"6.","Dla pozostałych pozycji okres ważności min. 18 miesięcy od daty dostawy lub min. ¾ okresu ważności deklarowanego przez producenta (zapisanego w certyfikacie / świadectwie lub innym dokumencie do danej partii, o którym mowa w pkt. 1-2)."]
[null,"7.","Na opakowaniu podana czytelna nazwa odczynnika, zgodna z nazwą podaną w dokumentach, o którym mowa w pkt. 1-2"]
[null,"8.","Miejsce dostawy:\n","WSSE Kraków  ul. Prądnicka 76, 31-202 Kraków - dla poz 1-3, 5, 6, 9-19, 21, 28, 30, 31, 34-39\n"]
[{"$nulls":3},"WSSE Oddział Laboratoryjny w Tarnowie  ul. Mościckiego 10,  33-100 Tarnów - dla poz. 4, 7, 8, 20, 22, 23, 25, 26, 29, 33.\n"]
[{"$nulls":3},"WSSE Oddział Laboratoryjny w Wadowicach  ul. Teatralna 2, 34-100 Wadowice - dla poz. 24, 27, 32, 38\n"]

{"sheet":"Część 03","index":3,"n_rows":58,"n_cols":10,"rows_kept":58,"merged":[[0,6,0,9],[2,0,2,9],[3,0,3,9],[4,0,4,9],[6,1,8,1],[6,2,8,2],[6,3,8,3],[6,4,6,5],[6,6,8,6],[6,7,8,7],[6,8,8,8],[6,9,8,9],[7,4,8,4],[7,5,8,5],[42,1,42,8],[43,2,43,9],[44,2,44,9],[45,2,45,9],[49,2,49,9],[50,2,50,9],[51,2,51,7],[53,2,53,9]]}
[null,null,"AGZ.272.3.2024",{"$nulls":3},"Załącznik 1A do SWZ"]
[]
["OPIS PRZEDMIOTU ZAMÓWIENIA - KALKULACJA CENY OFERTY"]
[{"$f":"MID(CELL(\"nazwa_pliku\",A1),FIND(\"]\",CELL(\"nazwa_pliku\",A1),1)+1,100)","v":"Część 03"}]
["Odczynniki i wzorce do chromatografii"]
[{"$f":"HYPERLINK(\"#'Suma'!A1\",\"wstecz\")","v":"wstecz"}]
[null,"L.p.","Przedmiot zamówienia","Szczegółowy opis","Opis oferowanego produktu",null,"Jednostka miary","Ilość","Cena jednostkowa brutto [zł] **","Wartość brutto [zł] "]
[{"$nulls":4},"Producent*","Nr katalogowy producenta*"]
[]
[null,"1.","1,10-Fenantroliny chlorowodorek\n","np. producent: Sigma-Aldrich/Fluka/Supelco                         \nnr kat.: 77510 \nlub produkt równoważny***\n• zawartość min. 99,5%;\n• stopień czystości: czda.\n• wygląd zewnętrzny: proszek lub kryształy prawie biały lub biały",null,null,"op. = \n5g",2,null,{"$f":"H10*I10","v":{"v":0,"d":"0.00"}}]
[null,"2.","1,10-Fenantroliny chlorowodorek\n","np. producent: Sigma-Aldrich/Fluka/Supelco                         \nnr kat.: 77510 \nlub produkt równoważny***\n• zawartość min. 99,5%\n• stopień czystości: czda;\n• wygląd zewnętrzny: proszek lub kryształy prawie biały lub biały",null,null,"op. = \n5g",2,null,{"$f":"H11*I11","v":{"v":0,"d":"0.00"}}]
[null,"3.","4-(Dimethylamino)benzaldehyde\n","• NR CAS: 100-10-7\n• do syntezy \n",null,null,"op. = \n25g",1,null,{"v":0,"d":"0.00"}]
[null,"4.","Acetyloaceton ( do syntezy) \n","• NR CAS: 123-54-6\n• do syntezy \n• Czystość ≥99%\n",null,null,"op. = \n250ml",1,null,{"v":0,"d":"0.00"}]
[null,"5.","Aflatoksyna M1\n","• zastosowanie: wzorzec analityczny;\n• stężenie ok. 0,5 µg/ml  w acetonitrylu.\n",null,null,"op. = \n2ml",1,null,{"v":0,"d":"0.00"}]
[null,"6.","Alfa-tokoferol (Witamina E)\n","np. producent: Sigma-Aldrich/Fluka/Supelco\nnr kat. PHR1031 \nlub produkt równoważny***\n• nr CAS: 10191-41-0;\n• substancja wzorcowa;\n• zawartość min. 95 %.",null,null,"op.=\n500mg",1,null,{"v":0,"d":"0.00"}]
[null,"7.","Analitical standard -  formaldehyd \n","np. producent: Sigma-Aldrich/Fluka/Supelco                          \nnr kat.: ICS045\nlub produkt równoważny***\n• stężenie: 1000 μg/mL in H2O \n• rozpuszczalnik: woda\n• CAS numer: 50-00-0",null,null,"op.=\n100 ml ",1,null,{"v":0,"d":"0.00"}]
[null,"8.","Cholekalcyferol (Witamina D3)","np. producent: Sigma-Aldrich/Fluka/Supelco \nnr kat. PHR1237\nlub produkt równoważny***\n• Nr CAS: 67-97-0;\n• certyfikowany materiał referencyjny;\n• zawartość min. 95%.",null,null,"op. = 500mg",1,null,{"v":0,"d":"0.00"}]
[null,"9.","Dansylu chlorek\n\n","• stężenie min. 99 % (HPLC).\n• nr CAS: 605-65-2.\n",null,null,"op.= \n5g",1,null,{"v":0,"d":"0.00"}]
[null,"10.","Deoxynivalenol \n","• zastosowanie: certyfikowany materiał referencyjny;\n• stężenie 200 µg/ml; \n• rozpuszczalnik: octan etylu : metanol 95:5.\n",null,null,"op.=\n1ml",1,null,{"v":0,"d":"0.00"}]
[null,"11.","Diwodorofosforan sodowy bezwodny              ","• zastosowanie: odczynnik do chromatografii;\n• stopień czystości: min. 99%.\n",null,null,"op.= 250g",1,null,{"v":0,"d":"0.00"}]
[null,"12.","Kwas dichloroizocyjanurowy\n","np. producent: Sigma-Aldrich/Fluka/Supelco\nnr kat. 35915                         \nlub produkt równoważny***\n• zawartość min. 98,0%.",null,null,"op.= \n50g",1,null,{"v":0,"d":"0.00"}]
[null,"13.","kwas nalidyksowy","np. producent: Sigma-Aldrich/Fluka/Supelco                         \nNr kat N8878-5g\nlub produkt równoważny***\n• Chemioterapeutyk z grupy antybiotyków chinolonowych o działaniu bakteriobójczym, wykazujący swoje działanie poprzez zaburzanie replikacji DNA bakterii w wyniku zahamowania syntezy DNA;\n• nr CAS: 389-08-2.",null,null,"op. = \n5 g",1,null,{"v":0,"d":"0.00"}]
[null,"14.","Kwas solny\n","np. producent: Supelco \nnr kat. 1003161011\nlub produkt równoważny***\n• zawartość: min. 25 %;\n• stopień czystości: czysty do analizy;                                      • arsen - max. 0,01 ppm;\n• ołów - max. 0,020 ppm.\n",null,null,"op.= \n1 l",1,null,{"v":0,"d":"0.00"}]
[null,"15.","Mieszanina WWA (PAH Calibration Mix) \n","np. producent: Supelco\nnr kat. CRM47940\nlub produkt równoważny***\n• zastosowanie: certyfikowany materiał referencyjny\n• stężenie 10 µg/ml dla każdego związku;\n• skład mieszaniny:\n naphthalene, acenaphthylene, acenaphthene, fluorene, phenanthrene, anthracene, fluoranthene, pyrene, benzo(a)anthracene, chrysene, benzo(b)fluoranthene, benzo(k)fluoranthene, benzo(a)pyrene, dibenzo(a,h)anthracene, benzo(g,h,i)perylene, indeno(1,2,3-cd)pyrene\n• rozpuszczalnik: acetonitryl.",null,null,"op.=\n1ml",1,null,{"v":0,"d":"0.00"}]
[null,"16.","n-Pentan\n","np. producent: Sigma-Aldrich/Fluka/Supelco                         \nnr kat. 100882                                                               lub produkt równoważny***                     \n• zastosowanie: do analizy wysoce lotnych halogenowanych węglowodorów;\n• zawartość: min. 99,0 % (GC);\n• woda - max. 0,02 %;\n• zawartość związków interferujących w zakresie zw. chloroorganicznych metodą GC-ECD, nie może przekraczać 5 µg/l. ",null,null,"op.= \n1 l",5,null,{"v":0,"d":"0.00"}]
[null,"17.","Ochratoksyna A","• zastosowanie: certyfikowany materiał referencyjny;\n• stężenie 50 µg/ml; \n• rozpuszczalnik: benzen : kwas octowy 99:1.\n",null,null,"op. = \n1ml",1,null,{"v":0,"d":"0.00"}]
[null,"18.","Ochratoksyna A\n","• zastosowanie: wzorzec do analizy HPLC;\n• stężenie 10 µg/ml; \n• rozpuszczalnik acetonitryl.\n",null,null,"op. = \n2ml",1,null,{"v":0,"d":"0.00"}]
[null,"19.","Patulina \n","• zastosowanie: certyfikowany materiał referencyjny;\n• stężenie 100 µg/ml;\n• rozpuszczalnik: chloroform.\n",null,null,"op. = \n1ml",1,null,{"v":0,"d":"0.00"}]
[null,"20.","Pirosiarczyn potasu","np. producent: Sigma-Aldrich/Fluka/Supelco                         \nnr kat 55777-1G\nlub produkt równoważny***\n• NR CAS: 16731-55-8\n• standard analityczny.",null,null,"op.= 1g",1,null,{"v":0,"d":"0.00"}]
[null,"21.","Retinol                    \n","np. producent: Sigma-Aldrich/Fluka/Supelco\nnr kat R7632-100MG \nlub produkt równoważny***\n• nr CAS 68-26-8;\n• czystość min. 95 %;                               \n• substancja wzorcowa.",null,null,"op.=\n100mg",2,null,{"v":0,"d":"0.00"}]
[null,"22.","Roztwór geosminy","np. producent: Merck, Sigma Aldrich \nnr kat. CRM47522 \nlub produkt równoważny***\n• zastosowanie: do zapachu\n• stężenie 100µg/ml w metanolu \n• ampułka 1 ml\n",null,null,"ampułka",1,null,{"v":0,"d":"0.00"}]
[null,"23.","Standard mętności\n\n","np. producent: Sigma-Aldrich/Fluka/Supelco\nnr kat.TURB05-1L\nlub produkt równoważny***\n• zawartość: 0,5 ± 0,05 NTU;\n• wzorzec formazynowy;\n• stabilizowany.",null,null,"op. = \n1000 ml",1,null,{"v":0,"d":"0.00"}]
[null,"24.","Standard mętności\n\n","np. producent: Sigma Aldrich \nnr kat.TURB05-1L\nlub produkt równoważny***\n• zawartość: 0,5 ± 0,05 NTU;\n• wzorzec formazynowy;\n• stabilizowany.\n",null,null,"op. = \n1000 ml",1,null,{"v":0,"d":"0.00"}]
[null,"25.","Węglan sodu\n","np. producent:  Supelco\nnr kat. 1.02405.0080\nlub produkt równoważny***                                                                                  • zawartość: min. 99,0 %\n• wtórny materiał odniesienia do oznaczeń alkacymetrycznych\n",null,null,"op = \n80 g",1,null,{"v":0,"d":"0.00"}]
[null,"26.","Wzorzec boru\n","np. producent: Sigma-Aldrich/Fluka/Supelco                         \nnr kat 01932             \nlub produkt równoważny***\n• zastosowanie : ICP;\n• stężenie 1000 mg/l;;\n ▪ rozpuszczalnik: rozcieńczony kwas azotowy (2-5%).",null,null,"op.= \n100ml",1,null,{"v":0,"d":"0.00"}]
[null,"27.","Wzorzec cynk\n","np. producent: Sigma-Aldrich/Fluka/Supelco                         \nnr kat 18562  \nlub produkt równoważny***\n• zastosowanie : ICP;\n• stężenie 1000 mg/l;;\n ▪ rozpuszczalnik: rozcieńczony kwas azotowy  (2-5%).",null,null,"op.= \n100ml",1,null,{"v":0,"d":"0.00"}]
[null,"28.","Wzorzec do barwy \n","np. producent: Sigma-Aldrich/Fluka/Supelco                         \nnr kat. CLR500-500ml  \nlub produkt równoważny***\n• zawartość: 500 mg/l Pt.",null,null,"op. = 500ml",1,null,{"v":0,"d":"0.00"}]
[null,"29.","Wzorzec do barwy \n","np. producent: Sigma-Aldrich/Fluka/Supelco                         \nnr kat. CLR500-500ml  \nlub produkt równoważny***\n• zawartość: 500 mg/l Pt.",null,null,"op. = 500ml",1,null,{"v":0,"d":"0.00"}]
[null,"30.","Wzorzec glinu\n","np. producent: Sigma-Aldrich/Fluka/Supelco                         \nnr kat 1.19770\nlub produkt równoważny***\n• zastosowanie : ICP;\n• stężenie 1000 mg/l;\n• rozpuszczalnik: 0,5 mol/l HNO3.",null,null,"op.= \n500ml",1,null,{"v":0,"d":"0.00"}]
[null,"31.","Wzorzec manganu\n","np. producent: Sigma-Aldrich/Fluka/Supelco                         \nnr kat 77036\nlub produkt równoważny***\n• zastosowanie : ICP;\n• stężenie 1000 mg/l;\n• rozpuszczalnik: HNO3.",null,null,"op.= \n250ml",1,null,{"v":0,"d":"0.00"}]
[null,"32.","Zearalenon    \n","• zastosowanie: certyfikowany materiał referencyjny;\n• stężenie 50 µg/ml;\n• rozpuszczalnik: acetonitryl.\n\n",null,null,"op.= \n1ml",1,null,{"v":0,"d":"0.00"}]
[null,"33.","D(+)-Raffinoza pentahydrate \n","np. producent: Sigma-Aldrich/Fluka/Supelco                         \nnr kat 83400-25G         \nlub produkt równoważny***\n• zawartość min. 98%;                                  \n• dla mikrobiologii; \n• stopień czystości: czda. ",null,null,"op.= 25g",1,null,{"v":0,"d":"0.00"}]
[null,"Cena oferty (brutto):",{"$nulls":7},{"$f":"SUM(J10:J42)","v":{"v":0,"d":"0.00"}}]
[null,"*","Należy wpisać nazwę producenta oraz numer katalogowy producenta oferowanego produktu. Niepodanie ww. danych będzie skutkować odrzuceniem oferty, chyba że dane te będą jednoznacznie wynikać z innych dokumentów dołączonych do oferty."]
[null,"**","Zawiera podatek od towarów i usług (VAT) wg obowiązującej stawki oraz koszty wszystkich świadczeń niezbędnych do wykonania zamówienia, w szczególności koszty transportu, ubezpieczenia, opakowania (także kaucjonowanego) itp."]
[null,"***","Wykonawca oferujący produkt innego producenta, o innym numerze katalogowym niż wskazany jako przykład zobowiązany jest dostarczyć certyfikaty potwierdzające równoważność oferowanego produktu z wymaganiami przedstawionymi w tabeli w języku polskim lub angielskim. Wymienione dokumenty nie muszą potwierdzać zastosowania odczynnika oraz wyglądu zewnętrznego."]
[]
[null,"Wymagania dodatkowe:"]
[]
[null,"1.","Dla poz. 6, 8, 10, 15, 17, 19, 22, 24-27, 32 do dostawy wymagany certyfikat/świadectwo potwierdzające jakość produktu i wyprodukowanie CRMu/wzorca przez NMI zarejestrowane w bazie BIPM KCDB lub przez akredytowanego  producenta materiałów odniesienia w odniesieniu do wymagań normy PN-EN ISO 17034 wydane w języku polskim lub angielskim w formie papierowej lub dostępny w formie elektronicznej w miejscu wskazanym przez wykonawcę (adres strony www).  Certyfikat/świadectwo musi zawierać: wartość parametru wraz z niepewnością."]
[null,"2.","Dla pozostałych pozycji do dostawy wymagany certyfikat jakości / świadectwo kontroli jakości lub inny dokument potwierdzający jakość  produktu w języku polskim lub angielskim, w formie papierowej lub dostępny w formie elektronicznej w miejscu wskazanym przez wykonawcę (adres strony www). "]
[null,"3.","Dla poz. 21 okres ważności: min. 3 miesiące od daty dostawy"]
[null,"4.","Dla poz. 1, 2, 16, 17,  okres ważnosci min. 10 miesiecy od daty dostawy."]
[null,"5.","Dla pozostałych pozycji okres ważności: min. 12 miesięcy od daty dostawy  lub min. ¾ okresu ważności deklarowanego przez producenta (zapisanego w certyfikacie / świadectwie lub innym dokumencie do danej partii, o którym mowa w pkt. 1-2)    "]
[null,"6.","Na opakowaniu podana czytelna nazwa odczynnika, zgodna z nazwą podaną w dokumentach, o którym mowa w pkt. 1-2"]
[null,"7.","Miejsce dostawy:\n","WSSE Kraków  ul. Prądnicka 76, 31-202 Kraków - dla poz. 3-11, , 13-22, 24, 26, 27, 32, 33.\n"]
[{"$nulls":3},"WSSE Oddział Laboratoryjny w Tarnowie  ul. Mościckiego 10,  33-100 Tarnów- dla poz. 1, 12, 23, 25, 29-31\n"]
[{"$nulls":3},"WSSE Oddział Laboratoryjny w Wadowicach  ul. Teatralna 2, 34-100 Wadowice - dla poz. 2, 28"]

{"sheet":"Część 04","index":4,"n_rows":24,"n_cols":10,"rows_kept":24,"merged":[[0,6,0,9],[2,0,2,9],[3,0,3,9],[4,0,4,9],[6,1,8,1],[6,2,8,2],[6,3,8,3],[6,4,6,5],[6,6,8,6],[6,7,8,7],[6,8,8,8],[6,9,8,9],[7,4,8,4],[7,5,8,5],[13,1,13,8],[14,2,14,9],[15,2,15,9],[19,2,19,9],[20,2,20,9]]}
[null,null,"AGZ.272.3.2024",{"$nulls":3},"Załącznik 1A do SWZ"]
[]
["OPIS PRZEDMIOTU ZAMÓWIENIA - KALKULACJA CENY OFERTY"]
[{"$f":"MID(CELL(\"nazwa_pliku\",A1),FIND(\"]\",CELL(\"nazwa_pliku\",A1),1)+1,100)","v":"Część 04"}]
["Roztwory buforowe"]
[{"$f":"HYPERLINK(\"#'Suma'!A1\",\"wstecz\")","v":"wstecz"}]
[null,"L.p.","Przedmiot zamówienia","Szczegółowy opis","Opis oferowanego produktu",null,"Jednostka miary","Ilość","Cena jednostkowa brutto [zł] **","Wartość brutto [zł] "]
[{"$nulls":4},"Producent*","Nr katalogowy producenta*"]
[]
[null,"1.","Roztwór buforowy pH=4,01","• w temp. 25oC - pH=4,01 ±0,02;\n• butelka z dozownikiem\n",null,null,"op.= \n500ml",3,null,{"$f":"H10*I10","v":{"v":0,"d":"0.00"}}]
[null,"2.","Roztwór buforowy pH=7,00 ","• w temp. 25oC – pH=7,00 ±0,02;\n• butelka z dozownikiem",null,null,"op.= \n500ml",2,null,{"v":0,"d":"0.00"}]
[null,"3.","Roztwór buforowy pH=9,21 ","• w temp. 25oC – pH= 9,21 ±0,02;\n• butelka z dozownikiem\n",null,null,"op.= \n500ml",1,null,{"v":0,"d":"0.00"}]
[null,"4.","Roztwór buforowy \npH=12,00 \n","• temp. 25oC - pH= 12,00 ±0,05;\n• butelka z dozownikiem",null,null,"op.= \n500ml",1,null,{"v":0,"d":"0.00"}]
[null,"Cena oferty (brutto):",{"$nulls":7},{"$f":"SUM(J10:J13)","v":{"v":0,"d":"0.00"}}]
[null,"*","Należy wpisać nazwę producenta oraz numer katalogowy producenta oferowanego produktu. Niepodanie ww. danych będzie skutkować odrzuceniem oferty, chyba że dane te będą jednoznacznie wynikać z innych dokumentów dołączonych do oferty."]
[null,"**","Zawiera podatek od towarów i usług (VAT) wg obowiązującej stawki oraz koszty wszystkich świadczeń niezbędnych do wykonania zamówienia, w szczególności koszty transportu, ubezpieczenia, opakowania (także kaucjonowanego) itp."]
[]
[null,"Wymagania dodatkowe:"]
[]
[null,"1.","Do dostawy wymagany certyfikat/świadectwo potwierdzające jakość produktu zawierające wartość parametru wraz z niepewnością, wydane w języku polskim lub angielskim, w formie papierowej lub dostępne w formie elektronicznej w miejscu wskazanym przez wykonawcę (adres strony www).  "]
[null,"2.","Wymagany okres ważności minimum 12 miesięcy od daty dostawy lub min. ¾ okresu ważności deklarowanego przez producenta (zapisanego w certyfikacie / świadectwie do danej partii, o którym mowa w pkt. 1)."]
[null,"3.","Na opakowaniu podana czytelna nazwa wzorca, zgodna z nazwą podaną na certyfikacie / świadectwie, o którym mowa w pkt. 1."]
[null,"4.","Miejsce dostawy:\n","WSSE Kraków  ul. Prądnicka 76, 31-202 Kraków - dla poz. 1-3\n"]
[{"$nulls":3},"WSSE Oddział Laboratoryjny w Tarnowie  ul. Mościckiego 10,  33-100 Tarnów  - dla poz. 4\n"]

{"sheet":"Część 05","index":5,"n_rows":38,"n_cols":10,"rows_kept":38,"merged":[[0,6,0,9],[2,0,2,9],[3,0,3,9],[4,0,4,9],[6,1,8,1],[6,2,8,2],[6,3,8,3],[6,4,6,5],[6,6,8,6],[6,7,8,7],[6,8,8,8],[6,9,8,9],[7,4,8,4],[7,5,8,5],[26,1,26,8],[27,2,27,9],[28,2,28,9],[32,2,32,9],[33,2,33,9],[34,2,34,9]]}
[null,null,"AGZ.272.3.2024",{"$nulls":3},"Załącznik 1A do SWZ"]
[]
["OPIS PRZEDMIOTU ZAMÓWIENIA - KALKULACJA CENY OFERTY"]
[{"$f":"MID(CELL(\"nazwa_pliku\",A1),FIND(\"]\",CELL(\"nazwa_pliku\",A1),1)+1,100)","v":"Część 05"}]
["Roztwory mianowane, odważki analityczne"]
[{"$f":"HYPERLINK(\"#'Suma'!A1\",\"wstecz\")","v":"wstecz"}]
[null,"L.p.","Przedmiot zamówienia","Szczegółowy opis","Opis oferowanego produktu",null,"Jednostka miary","Ilość","Cena jednostkowa brutto [zł] **","Wartość brutto [zł] "]
[{"$nulls":4},"Producent*","Nr katalogowy producenta*"]
[]
[null,"1.","Di-sodu szczawian","• odważka analityczna;\n• stężenie 0,05 mol/l.\n",null,null,"szt.",1,null,{"$f":"H10*I10","v":{"v":0,"d":"0.00"}}]
[null,"2.","Di-Sodu wersenian","• roztwór mianowany;                            \n• stężenie 0,01 mol/l.                             \n",null,null,"op. = \n1l",3,null,{"$f":"H11*I11","v":{"v":0,"d":"0.00"}}]
[null,"3.","Jod ","• roztwór mianowany;  \n• stężenie 0,05 mol/l\n",null,null,"op. = \n1l",2,null,{"v":0,"d":"0.00"}]
[null,"4.","Kwas solny","• odważka analityczna;\n• stężenie 0,1 mol/l.\n",null,null,"szt.",4,null,{"v":0,"d":"0.00"}]
[null,"5.","Kwas solny","• roztwór mianowany;                            \n• stężenie 0,1 mol/l.                              \n",null,null,"op. = \n1l",1,null,{"v":0,"d":"0.00"}]
[null,"6.","Kwas solny","• roztwór mianowany;                            \n• stężenie 1 mol/l.                              \n",null,null,"op. = \n1L",2,null,{"v":0,"d":"0.00"}]
[null,"7.","Potasu chlorek ","• roztwór mianowany;\n• stężenie 3 mol/l.\n",null,null,"op.= \n250ml",2,null,{"v":0,"d":"0.00"}]
[null,"8.","Potasu nadmanganian","• odważka analityczna;\n• stężenie 0,02 mol/l.\n",null,null,"szt.",1,null,{"v":0,"d":"0.00"}]
[null,"9.","Sodu tiosiarczan","• roztwór mianowany                            \n• stężenie 0,005 mol/l.\n",null,null,"op.= \n1 L",1,null,{"v":0,"d":"0.00"}]
[null,"10.","Sodu tiosiarczan","• roztwór mianowany                            \n• stężenie 0,01 mol/l.\n",null,null,"op.= \n1 L",2,null,{"v":0,"d":"0.00"}]
[null,"11.","Sodu tiosiarczan","• odważka analityczna;                               \n• stężenie 0,1 mol/l.\n",null,null,"szt.",1,null,{"v":0,"d":"0.00"}]
[null,"12.","Sodu wodorotlenek","• odważka analityczna;\n• stężenie 0,1 mol/l.\n",null,null,"szt.",3,null,{"v":0,"d":"0.00"}]
[null,"13.","Sodu wodorotlenek","• roztwór mianowany;\n• stężenie 0,1 mol/l.\n",null,null,"op. = \n1 l",1,null,{"v":0,"d":"0.00"}]
[null,"14.","Sodu wodorotlenek","• roztwór mianowany;\n• stężenie 0,01 mol/l.\n",null,null,"op. = \n1 l",1,null,{"v":0,"d":"0.00"}]
[null,"15.","Srebra azotan","• roztwór mianowany;\n• stężenie 0,02 mol/l.",null,null,"op. = \n1 l",1,null,{"v":0,"d":"0.00"}]
[null,"16.","Srebra azotan","• roztwór mianowany;\n• stężenie 0,1 mol/l.\n",null,null,"op. = \n1 l",1,null,{"v":0,"d":"0.00"}]
[null,"17.","Srebra azotan","• odważka analityczna;\n• stężenie 0,1 mol/l.\n",null,null,"szt.",2,null,{"v":0,"d":"0.00"}]
[null,"Cena oferty (brutto):",{"$nulls":7},{"$f":"SUM(J10:J26)","v":{"v":0,"d":"0.00"}}]
[null,"*","Należy wpisać nazwę producenta oraz numer katalogowy producenta oferowanego produktu. Niepodanie ww. danych będzie skutkować odrzuceniem oferty, chyba że dane te będą jednoznacznie wynikać z innych dokumentów dołączonych do oferty."]
[null,"**","Zawiera podatek od towarów i usług (VAT) wg obowiązującej stawki oraz koszty wszystkich świadczeń niezbędnych do wykonania zamówienia, w szczególności koszty transportu, ubezpieczenia, opakowania (także kaucjonowanego) itp."]
[]
[null,"Wymagania dodatkowe:"]
[]
[null,"1.","Do dostawy wymagany certyfikat jakości /świadectwo kontroli jakości lub inny dokument potwierdzający spełnienie wymagań w języku polskim lub angielskim w formie papierowej lub dostępny w formie elektronicznej w miejscu wskazanym przez wykonawcę (adres strony www). "]
[null,"2.","Okres ważności minimum 12 miesięcy od daty dostawy lub min. ¾ okresu ważności deklarowanego przez producenta (zapisanego w certyfikacie jakości / świadectwie kontroli jakości lub innym dokumencie do danej partii, o którym mowa w pkt. 1)."]
[null,"3.","Na opakowaniu podana czytelna nazwa odczynnika, zgodna z nazwą podaną w dokumentach, o którym mowa w pkt. 1."]
[null,"4.","Miejsce dostawy: \n","WSSE Kraków  ul. Prądnicka 76, 31-202 Kraków - dlapoz. 3, 5, 6, 9, 10, 13, 14, 16, 17.\n"]
[{"$nulls":3},"WSSE Oddział Laboratoryjny w Tarnowie  ul. Mościckiego 10,  33-100 Tarnów - dla poz.  4, 7, 11, 12\n"]
[{"$nulls":3},"WSSE Oddział Laboratoryjny w Wadowicach ul. Teatralna 2, 34-100 Wadowice - dla poz. 1, 2, 8, 15."]

{"sheet":"Część 06","index":6,"n_rows":35,"n_cols":10,"rows_kept":35,"merged":[[0,6,0,9],[2,0,2,9],[3,0,3,9],[4,0,4,9],[6,1,8,1],[6,2,8,2],[6,3,8,3],[6,4,6,5],[6,6,8,6],[6,7,8,7],[6,8,8,8],[6,9,8,9],[7,4,8,4],[7,5,8,5],[24,1,24,8],[25,2,25,9],[26,2,26,9],[27,2,27,9],[31,2,31,9],[32,2,32,9]]}
[null,null,"AGZ.272.3.2024",{"$nulls":3},"Załącznik 1A do SWZ"]
[]
["OPIS PRZEDMIOTU ZAMÓWIENIA - KALKULACJA CENY OFERTY"]
[{"$f":"MID(CELL(\"nazwa_pliku\",A1),FIND(\"]\",CELL(\"nazwa_pliku\",A1),1)+1,100)","v":"Część 06"}]
["Filtry, sączki, paski wskaźnikowe"]
[{"$f":"HYPERLINK(\"#'Suma'!A1\",\"wstecz\")","v":"wstecz"}]
[null,"L.p.","Przedmiot zamówienia","Szczegółowy opis","Opis oferowanego produktu",null,"Jednostka miary","Ilość","Cena jednostkowa brutto [zł] **","Wartość brutto [zł] "]
[{"$nulls":4},"Producent*","Nr katalogowy producenta*"]
[]
[null,"1.","Bibuła jakościowa srednia ","• wymiar: 450x 560\n• szybkosc sączenia średnia\n",null,null,"op=\n100szt",1,null,{"$f":"H10*I10","v":{"v":0,"d":"0.00"}}]
[null,"2.","Filtry membranowe celulozowo-estrowe ","• zastosowanie: oznaczanie barwy w wodzie\n• średnica 47 mm;\n• wielkość porów 0,45 µm;\n• niesterylne, białe, bez siatki.      \n              ",null,null,"op. = 100szt",1,null,{"v":0,"d":"0.00"}]
[null,"3.","Filtry membranowe celulozowo-estrowe ","• zastosowanie: oznaczanie barwy w wodzie\n• średnica 47 mm;\n• wielkość porów 0,45 µm;\n• niesterylne, białe, bez siatki.    \n                ",null,null,"op. = 100szt",2,null,{"v":0,"d":"0.00"}]
[null,"4.","Filtry membranowe nylonowe","• materiał: poliamid/nylon\n• średnica 47 mm;\n• wielkość porów 0,22 µm;\n• niesterylne, białe        \n            ",null,null,"op. = 100szt",3,null,{"$f":"H13*I13","v":{"v":0,"d":"0.00"}}]
[null,"5.","Filtry membranowe nylonowe","• wykonane z nylonu 66\n• średnica 47 mm, \n• wielkość porów 0,45 µm, \n",null,null,"op. = \n100szt",1,null,{"v":0,"d":"0.00"}]
[null,"6.","Naczynka wagowe (łódeczki)\n\n","np. producent: MACHEREY-NAGEL \ntyp MN 808 \nlub produkt równoważny***\n• z pergaminu bez zawartości azotu;\n• 58 x 10 x 10 mm.\n",null,null,"op. = \n100 szt",1,null,{"v":0,"d":"0.00"}]
[null,"7.","Parafilm (folia uszczelniająca)\n","np. producent: Brand  \nnr kat. 701611\nlub produkt równoważny***\n• folia uszczelniająca\n• szerokość 50 mm;\n• długość min. 75 m\n",null,null,"op. = 1 rolka",1,null,{"v":0,"d":"0.00"}]
[null,"8.","Paski wskaźnikowe \npH 5,2 ÷ 6,6\n\n","np. producent: Lyphan            \nnr kat. L665-8                 \nlub produkt równoważny***\n• nie farbujące;\n• skala: 5,2 · 5,4 · 5,6 · 5,8 · 6,0 · 6,2 · 6,4 · 6,6.",null,null,"op. = 200szt",1,null,{"v":0,"d":"0.00"}]
[null,"9.","Sączki filtracyjne Kieselguhr","np producent: HAHNEMUHLE, typ 287,               \nnr kat. LLG-4006210;                                                \nlub produkt równoważny***                                       \n• gramatura 154 g/m2;\n• grubość 0,36 mm;\n• średnica 150 mm,                                                                   • czas filtracji 660 sek.     \n                                            ",null,null,"op. = 100szt",1,null,{"v":0,"d":"0.00"}]
[null,"10.","Sączki ilościowe średnie (70 mm)","• średnica  sączka 70 mm;\n• szybkość sączenia średnia.\n",null,null,"op. = 100szt",5,null,{"v":0,"d":"0.00"}]
[null,"11.","Sączki ilościowe średnie (100 mm)","• średnica  sączka 110 mm;\n• szybkość sączenia średnia.\n",null,null,"op. = 100szt",2,null,{"v":0,"d":"0.00"}]
[null,"12.","Sączki ilościowe średnie (125 mm)","• średnica  sączka 125 mm;\n• szybkość sączenia średnia.\n",null,null,"op. = 100szt",4,null,{"v":0,"d":"0.00"}]
[null,"13.","Sączki ilościowe średnie (185 mm)","• średnica sączka 185 mm;\n• szybkość sączenia średnia.\n",null,null,"op. = 100szt",2,null,{"v":0,"d":"0.00"}]
[null,"14.","Sączki ilościowe średnie (240 mm)","• średnica sączka 240 mm;\n• szybkość sączenia średnia;\n• bezpopiołowe,\n• zawartość popiołu po spaleniu: max. 0,01%.\n",null,null,"op. = 100szt",1,null,{"v":0,"d":"0.00"}]
[null,"15.","Sączki z włókna szklanego\n","np. producent: Whatman; \nTyp: TM GF/A  \nlub produkt równoważny***\n• grubość 260 µm, \n• średnica 90 mm, \n• zatrzymują cząstki powyżej 1.5 µm, \n• bez spoiwa.\n",null,null,"op. = 100szt",1,null,{"v":0,"d":"0.00"}]
[null,"Cena oferty (brutto):",{"$nulls":7},{"$f":"SUM(J10:J24)","v":{"v":0,"d":"0.00"}}]
[null,"*","Należy wpisać nazwę producenta oraz numer katalogowy producenta oferowanego produktu. Niepodanie ww. danych będzie skutkować odrzuceniem oferty, chyba że dane te będą jednoznacznie wynikać z innych dokumentów dołączonych do oferty."]
[null,"**","Zawiera podatek od towarów i usług (VAT) wg obowiązującej stawki oraz koszty wszystkich świadczeń niezbędnych do wykonania zamówienia, w szczególności koszty transportu, ubezpieczenia, opakowania (także kaucjonowanego) itp."]
[null,"***","Wykonawca oferujący produkt innego producenta, o innym numerze katalogowym niż wskazany jako przykład zobowiązany jest dostarczyć certyfikaty potwierdzające równoważność oferowanego produktu z wymaganiami przedstawionymi w tabeli w języku polskim lub angielskim. Wymienione dokumenty nie muszą potwierdzać zastosowania odczynnika."]
[]
[null,"Wymagania dodatkowe:"]
[]
[null,"1.","Okres ważności: min. 12 miesięcy od daty dostawy."]
[null,"2.","Na opakowaniu podana czytelna nazwa produktu, zgodna z nazwą podaną w dokumentach, o którym mowa w pkt. 1."]
[null,"3.","Miejsce dostawy: \n","WSSE Kraków  ul. Prądnicka 76, 31-202 Kraków - dla poz. 1, 3-12, 14, 15"]
[{"$nulls":3},"WSSE Oddział Laboratoryjny w Tarnowie ul. Mościckiego 10, 33-100 Tarnów - dla poz. 2, 13\n"]

{"sheet":"Część 07","index":7,"n_rows":34,"n_cols":10,"rows_kept":34,"merged":[[0,8,0,9],[2,0,2,9],[3,0,3,9],[4,0,4,9],[6,1,8,1],[6,2,8,2],[6,3,8,3],[6,4,6,5],[6,6,8,6],[6,7,8,7],[6,8,8,8],[6,9,8,9],[7,4,8,4],[7,5,8,5],[13,1,13,7],[14,2,14,9],[15,2,15,9],[16,2,16,9],[20,2,20,9],[29,2,29,9],[30,2,30,9]]}
[null,null,"AGZ.272.3.2024",{"$nulls":5},"Załącznik 1A do SWZ"]
[]
["OPIS PRZEDMIOTU ZAMÓWIENIA - KALKULACJA CENY OFERTY"]
[{"$f":"MID(CELL(\"nazwa_pliku\",A1),FIND(\"]\",CELL(\"nazwa_pliku\",A1),1)+1,100)","v":"Część 07"}]
["Filtry membranowe, sterylne"]
[{"$f":"HYPERLINK(\"#'Suma'!A1\",\"wstecz\")","v":"wstecz"}]
[null,"L.p.","Przedmiot zamówienia","Szczegółowy opis","Opis oferowanego produktu",null,"Jednostka miary","Ilość","Cena jednostkowa brutto [zł] **","Wartość brutto [zł] "]
[{"$nulls":4},"Producent*","Nr katalogowy producenta*"]
[]
[null,"1.","Filtry membranowe","np. producent: MERCK \nnr kat. HAWG047S6\nlub produkt równoważny***                                • zastosowanie: do prowadzenia filtracji membranowej w mikrobiologii wody,\n• rodzaj membrany MCE ( mieszane estry celulozy),\n• średnica filtrów 47 mm, \n• średnica porów: 0,45 µm, \n• sterylne, \n• BIAŁE, \n• kratkowane, \n• oddzysk na filtrach testowany za pomocą minimum dwóch szczepów z uznanych kolekcji, np.ATCC. Minimalny oddzysk na poziomie 70%.\n",null,null," szt.",{"v":3000,"d":"3,000"},null,{"$f":"H10*I10","v":{"v":0,"d":"0.00"}}]
[null,"2.","Filtry membranowe","np. producent: MERCK \nnr kat. HAWG047S6\nlub produkt równoważny***                                • zastosowanie: do prowadzenia filtracji membranowej w mikrobiologii wody,\n• rodzaj membrany MCE ( mieszane estry celulozy),\n• średnica filtrów 47 mm, \n• średnica porów: 0,45 µm, \n• sterylne, \n• BIAŁE, \n• kratkowane, \n• oddzysk na filtrach testowany za pomocą minimum dwóch szczepów z uznanych kolekcji, np.ATCC. Minimalny oddzysk na poziomie 70%.\n",null,null,"szt.",2400,null,{"v":0,"d":"0.00"}]
[null,"3.","Filtry membranowe","np. producent: MERCK \nnr kat. HAWG047S6\nlub produkt równoważny***                                • zastosowanie: do prowadzenia filtracji membranowej w mikrobiologii wody,\n• rodzaj membrany MCE ( mieszane estry celulozy),\n• średnica filtrów 47 mm, \n• średnica porów: 0,45 µm, \n• sterylne, \n• BIAŁE, \n• kratkowane, \n• oddzysk na filtrach testowany za pomocą minimum dwóch szczepów z uznanych kolekcji, np.ATCC. Minimalny oddzysk na poziomie 70%.\n",null,null,"szt.",1200,null,{"v":0,"d":"0.00"}]
[null,"4.","Filtry membranowe","np. producent: MERCK \nnr kat. HABG047S6\nlub produkt równoważny***                                • zastosowanie: do prowadzenia filtracji membranowej w mikrobiologii wody,\n• rodzaj membrany MCE ( mieszane estry celulozy),\n• średnica filtrów 47 mm, \n• średnica porów: 0,45 µm, \n• sterylne, \n• CZARNE, \n• kratkowane, \n• oddzysk na filtrach testowany za pomocą minimum dwóch szczepów z uznanych kolekcji, np.ATCC. Minimalny oddzysk na poziomie 70%.\n",null,null,"szt.",3600,null,{"v":0,"d":"0.00"}]
[null,"Cena oferty (brutto):",{"$nulls":7},{"$f":"SUM(J10:J13)","v":{"v":0,"d":"0.00"}}]
[null,"*","Należy wpisać nazwę producenta oraz numer katalogowy producenta oferowanego produktu. Niepodanie ww. danych będzie skutkować odrzuceniem oferty, chyba że dane te będą jednoznacznie wynikać z innych dokumentów dołączonych do oferty."]
[null,"**","Zawiera podatek od towarów i usług (VAT) wg obowiązującej stawki oraz koszty wszystkich świadczeń niezbędnych do wykonania zamówienia, w szczególności koszty transportu, ubezpieczenia, opakowania (także kaucjonowanego) itp."]
[null,"*** ","Wykonawca oferujący produkt innego producenta, o innym numerze katalogowym niż wskazany jako przykład zobowiązany jest dostarczyć certyfikaty potwierdzające równoważność oferowanego produktu z wymaganiami przedstawionymi w tabeli w języku polskim lub angielskim. Wymienione dokumenty nie muszą potwierdzać zastosowania odczynnika oraz wyglądu zewnętrznego."]
[]
[null,"Wymagania dodatkowe:"]
[]
[null,"1.","Do OFERTY i dostawy wymagany certyfikat/świadectwo potwierdzające jakość produktu wydanego w języku polskim lub angielskim w formie papierowej lub dostępny w formie elektronicznej w miejscu wskazanym przez wykonawcę (adres strony www). "]
[null,"2.","Certyfikat/świadectwo musi zawierać:"]
[null,null,"•  nazwę producenta, "]
[null,null,"•  numer katalogowy,"]
[null,null,"•  numer seryjny,"]
[null,null,"•  datę ważności,"]
[null,null,"•  powołanie na normę ISO 7704, "]
[null,null,"•  opis kontroli oddzysków za pomocą minimum dwóch szczepów z uznanych kolekcji wraz z uzyskanym wynikiem,"]
[null,null,"•  informację o zawartości metali Ag,Cu, Zn w filtrze (wymagane ≤ 0,001 mg/filtr). "]
[null,"3.","Okres ważności: min. 12 miesięcy od daty dostawy lub min. ¾ okresu ważności deklarowanego przez producenta (zapisanego w certyfikacie jakości / świadectwie kontroli jakości lub innym dokumencie do danej partii, o którym mowa w pkt. 1)."]
[null,"4.","Na opakowaniu podana czytelna nazwa odczynnika, zgodna z nazwą podaną w certyfikacie jakości / świadectwie kontroli jakości lub innym dokumencie, o którym mowa w pkt. 1."]
[null,"5.","Miejsce dostawy:","WSSE Kraków  ul. Prądnicka 76, 31-202 Kraków - dla poz. 1,4,"]
[{"$nulls":3},"WSSE Oddział Laboratoryjny w Tarnowie  ul. Mościckiego 10,  33-100 Tarnów -  - dla poz. 2"]
[{"$nulls":3},"WSSE Oddział Laboratoryjny w Wadowicach  ul. Teatralna 2, 34-100 Wadowice - dla poz. 3\n"]

{"sheet":"Część 08","index":8,"n_rows":21,"n_cols":10,"rows_kept":21,"merged":[[0,6,0,9],[2,0,2,9],[3,0,3,9],[4,0,4,9],[6,1,8,1],[6,2,8,2],[6,3,8,3],[6,4,6,5],[6,6,8,6],[6,7,8,7],[6,8,8,8],[6,9,8,9],[7,4,8,4],[7,5,8,5],[11,1,11,8],[12,2,12,9],[13,2,13,9],[17,2,17,9],[18,2,18,9]]}
[null,null,"AGZ.272.3.2024",{"$nulls":3},"Załącznik 1A do SWZ"]
[]
["OPIS PRZEDMIOTU ZAMÓWIENIA - KALKULACJA CENY OFERTY"]
[{"$f":"MID(CELL(\"nazwa_pliku\",A1),FIND(\"]\",CELL(\"nazwa_pliku\",A1),1)+1,100)","v":"Część 08"}]
["Butelki z tiosiarczanem sodu"]
[{"$f":"HYPERLINK(\"#'Suma'!A1\",\"wstecz\")","v":"wstecz"}]
[null,"L.p.","Przedmiot zamówienia","Szczegółowy opis","Opis oferowanego produktu",null,"Jednostka miary","Ilość","Cena jednostkowa brutto [zł] **","Wartość brutto [zł] "]
[{"$nulls":4},"Producent*","Nr katalogowy producenta*"]
[]
[null,"1.","Butelki polietylenowe z tiosiarczanem sodu","• butelki sterylne do badania próbek wody;\n• każda zawiera 20 mg/l tiosiarczanu sodu;\n• pojemność 500 ml;\n• pakowane pojedynczo w folię,\n• z szeroką szyjką, \n• szczelnie zamykane.\n",null,null,"szt.",200,null,{"$f":"H10*I10","v":{"v":0,"d":"0.00"}}]
[null,"2.","Butelki polietylenowe z tiosiarczanem sodu","• butelki sterylne do badania próbek wody;\n• każda zawiera 20 mg/l tiosiarczanu sodu;\n• pojemność 500 ml;\n• pakowane pojedynczo w folię,\n• z szeroką szyjką, \n• szczelnie zamykane.\n",null,null,"szt.",300,null,{"v":0,"d":"0.00"}]
[null,"Cena oferty (brutto):",{"$nulls":7},{"$f":"SUM(J10:J11)","v":{"v":0,"d":"0.00"}}]
[null,"*","Należy wpisać nazwę producenta oraz numer katalogowy producenta oferowanego produktu. Niepodanie ww. danych będzie skutkować odrzuceniem oferty, chyba że dane te będą jednoznacznie wynikać z innych dokumentów dołączonych do oferty."]
[null,"**","Zawiera podatek od towarów i usług (VAT) wg obowiązującej stawki oraz koszty wszystkich świadczeń niezbędnych do wykonania zamówienia, w szczególności koszty transportu, ubezpieczenia, opakowania (także kaucjonowanego) itp."]
[]
[null,"Wymagania dodatkowe:"]
[]
[null,"1.","Do dostawy wymagany certyfikat jakości /świadectwo kontroli jakości lub inny dokument potwierdzający spełnienie wymagań w zakresie pojemności i zawartości tiosiarczanu oraz sterylności i kształtu butelek w języku polskim lub angielskim w formie papierowej lub dostępny w formie elektronicznej w miejscu wskazanym przez wykonawcę (adres strony www)."]
[null,"2.","Okres ważności: min. 20 miesięcy od daty dostawy."]
[null,"3.","Miejsce dostawy:\n","WSSE Oddział Laboratoryjny w Tarnowie  ul. Mościckiego 10,  33-100 Tarnów -  - dla poz. 1"]
[{"$nulls":3},"WSSE Oddział Laboratoryjny w Wadowicach  ul. Teatralna 2, 34-100 Wadowice - dla poz. 2\n"]

{"sheet":"Część 09","index":9,"n_rows":20,"n_cols":10,"rows_kept":20,"merged":[[0,6,0,9],[2,0,2,9],[3,0,3,9],[4,0,4,9],[6,1,8,1],[6,2,8,2],[6,3,8,3],[6,4,6,5],[6,6,8,6],[6,7,8,7],[6,8,8,8],[6,9,8,9],[7,4,8,4],[7,5,8,5],[10,1,10,8],[11,2,11,9],[12,2,12,9],[16,2,16,9],[17,2,17,9],[18,2,18,9]]}
[null,null,"AGZ.272.3.2024",{"$nulls":3},"Załącznik 1A do SWZ"]
[]
["OPIS PRZEDMIOTU ZAMÓWIENIA - KALKULACJA CENY OFERTY"]
[{"$f":"MID(CELL(\"nazwa_pliku\",A1),FIND(\"]\",CELL(\"nazwa_pliku\",A1),1)+1,100)","v":"Część 09"}]
["Filrty membranowe, sterylne - średnica porów 0,22 µm"]
[{"$f":"HYPERLINK(\"#'Suma'!A1\",\"wstecz\")","v":"wstecz"}]
[null,"L.p.","Przedmiot zamówienia","Szczegółowy opis","Opis oferowanego produktu",null,"Jednostka miary","Ilość","Cena jednostkowa brutto [zł] **","Wartość brutto [zł] "]
[{"$nulls":4},"Producent*","Nr katalogowy producenta*"]
[]
[null,"1.","Filtry membranowe","• zastosowanie: do prowadzenia filtracji membranowej w mikrobiologii wody, \n• rodzaj membrany MCE ( mieszane estry celulozy),\n• średnica filtrów 47 mm,  \n• średnica porów: 0,22 µm, \n• sterylne, \n• BIAŁE,  \n• kratkowane.   \n                                                                                                                                                                 ",null,null,"szt.",100,null,{"$f":"H10*I10","v":{"v":0,"d":"0.00"}}]
[null,"Cena oferty (brutto):",{"$nulls":7},{"$f":"SUM(J10:J10)","v":{"v":0,"d":"0.00"}}]
[null,"*","Należy wpisać nazwę producenta oraz numer katalogowy producenta oferowanego produktu. Niepodanie ww. danych będzie skutkować odrzuceniem oferty, chyba że dane te będą jednoznacznie wynikać z innych dokumentów dołączonych do oferty."]
[null,"**","Zawiera podatek od towarów i usług (VAT) wg obowiązującej stawki oraz koszty wszystkich świadczeń niezbędnych do wykonania zamówienia, w szczególności koszty transportu, ubezpieczenia, opakowania (także kaucjonowanego) itp."]
[]
[null,"Wymagania dodatkowe:"]
[]
[null,"1.","Do dostawy wymagany certyfikat jakości /świadectwo kontroli jakości lub inny dokument potwierdzający jakość produktu w języku polskim lub angielskim w formie papierowej lub dostępny w formie elektronicznej w miejscu wskazanym przez wykonawcę (adres strony www). "]
[null,"2.","Okres ważności: min. 12 miesięcy od daty dostawy lub min. ¾ okresu ważności deklarowanego przez producenta (zapisanego w certyfikacie jakości / świadectwie kontroli jakości lub innym dokumencie do danej partii, o którym mowa w pkt. 1)."]
[null,"3.","Na opakowaniu podana czytelna nazwa odczynnika, zgodna z nazwą podaną w certyfikacie jakości / świadectwie kontroli jakości lub innym dokumencie, \no którym mowa w pkt. 1."]
[null,"4.","Miejsce dostawy: \n","WSSE Oddział Laboratoryjny w Wadowicach  ul. Teatralna 2, 34-100 Wadowice"]

{"sheet":"Część 10","index":10,"n_rows":27,"n_cols":10,"rows_kept":27,"merged":[[0,6,0,9],[2,0,2,9],[3,0,3,9],[4,0,4,9],[6,1,8,1],[6,2,8,2],[6,3,8,3],[6,4,6,5],[6,6,8,6],[6,7,8,7],[6,8,8,8],[6,9,8,9],[7,4,8,4],[7,5,8,5],[15,1,15,8],[16,2,16,9],[17,2,17,9],[18,2,18,9],[22,2,22,9],[23,2,23,6],[24,2,24,9]]}
[null,null,"AGZ.272.3.2024",{"$nulls":3},"Załącznik 1A do SWZ"]
[]
["OPIS PRZEDMIOTU ZAMÓWIENIA - KALKULACJA CENY OFERTY"]
[{"$f":"MID(CELL(\"nazwa_pliku\",A1),FIND(\"]\",CELL(\"nazwa_pliku\",A1),1)+1,100)","v":"Część 10"}]
["Materiały referencyjne do HPLC"]
[{"$f":"HYPERLINK(\"#'Suma'!A1\",\"wstecz\")","v":"wstecz"}]
[null,"L.p.","Przedmiot zamówienia","Szczegółowy opis","Opis oferowanego produktu",null,"Jednostka miary","Ilość","Cena jednostkowa brutto [zł] **","Wartość brutto [zł] "]
[{"$nulls":4},"Producent*","Nr katalogowy producenta*"]
[]
[null,"1.","Histamina konserwy rybne\n(Histamine canned fish) \n","np. producent:  Fapas                                           \nnr kat.T27375QC                                          \nlub produkt równoważny***                                    \n• zastosowanie: materiał certyfikowany do analizy histaminy;         \n• zawartość: 102  mg/kg.\n",null,null,"op.= \n145 g",1,null,{"$f":"H10*I10","v":{"v":0,"d":"0.00"}}]
[null,"2.","Carrot Puree (Puree z marchewki)\n","np. producent:  Fapas                                           \nnr kat. T15169QC                                                            \nlub produkt równoważny***                                           \n• zawartość azotanów (V) 270 mg/kg.      \n                      ",null,null,"op. = \n70 g",1,null,{"v":0,"d":"0.00"}]
[null,"3.","Dried Apricot (Morele Suszone)\n","np. producent:  Fapas                                           \nnr kat. T20212QC                                                          \nlub produkt równoważny***                                           \n• zawartość dwutlenku siarki: 2010 mg/kg.  \n                          ",null,null,"op. = \n100 g",1,null,{"v":0,"d":"0.00"}]
[null,"4.","Cola Drink\n","np. producent:  Fapas                                           \nnr kat. T03180QC                                                             \nlub produkt równoważny***                                          \n• zawartość: kwas benzoesowy 262 mg/l ;                            \n• zawartość: kofeina 87,1 mg/;                                      \n• zawartość: acesulfam-K 89,2 mg/;l                                      \n• zawartość: sacharyna 76,2 mg/l.\n",null,null,"op. = \n150 ml",1,null,{"v":0,"d":"0.00"}]
[null,"5.","Soft drink\n\n","np. producent:  FAPAS                           \nnr kat. T03183QC\nlub produkt równoważny***\n• materiał  do oznaczania substancji dodatkowych w żywności                \n•  zawartość:                                           \n- kwas sorbowy  \n- cyklaminiany  \n- sacharyna  \n- kwas benzoesowy  \n                    ",null,null,"op. = \n150 ml",1,null,{"v":0,"d":"0.00"}]
[null,"6.","Mleko w proszku\n\n","np. producent: Fapas \nnr kat. T21136QC\nlub produkt równoważny***\n• materiał kontrolny zawierający witaminy A, D3, E oraz C.\n",null,null,"op.=\n100g",1,null,{"v":0,"d":"0.00"}]
[null,"Cena oferty (brutto):",{"$nulls":7},{"$f":"SUM(J10:J15)","v":{"v":0,"d":"0.00"}}]
[null,"*","Należy wpisać nazwę producenta oraz numer katalogowy producenta oferowanego produktu. Niepodanie ww. danych będzie skutkować odrzuceniem oferty, chyba że dane te będą jednoznacznie wynikać z innych dokumentów dołączonych do oferty."]
[null,"**","Zawiera podatek od towarów i usług (VAT) wg obowiązującej stawki oraz koszty wszystkich świadczeń niezbędnych do wykonania zamówienia, w szczególności koszty transportu, ubezpieczenia, opakowania (także kaucjonowanego) itp."]
[null,"***","Wykonawca oferujący produkt innego producenta, o innym numerze katalogowym niż wskazany jako przykład zobowiązany jest dostarczyć certyfikaty potwierdzające równoważność oferowanego produktu z wymaganiami przedstawionymi w tabeli w języku polskim lub angielskim. Wymienione dokumenty nie muszą potwierdzać zastosowania odczynnika. "]
[]
[null,"Wymagania dodatkowe:"]
[]
[null,1,"Do dostawy wymagany certyfikat/świadectwo potwierdzające jakość produktu zawierające wartość parametru wraz z niepewnością, wydane w języku polskim lub angielskim, w formie papierowej lub dostępne w formie elektronicznej w miejscu wskazanym przez wykonawcę (adres strony www).  "]
[null,2,"Dla poz. 3,  okres ważności:  min. 6 miesiące od daty dostawy                                         \nDla poz. 2, 4 okres ważności:  min. 8  miesiący od daty dostawy                                        \nDla pozostałych pozycji okres ważności:  min. 12 miesiący od daty dostawy   "]
[null,3,"Na opakowaniu podana czytelna nazwa odczynnika, zgodna z nazwą podaną w dokumentach, o którym mowa w pkt. 1 i 2."]
[null,4,"Miejsce dostawy: \n","WSSE Kraków ul. Prądnicka 76, 31-202 Kraków - poz. 1, 5, 6"]
[{"$nulls":3},"WSSE Oddział Laboratoryjny w Tarnowie ul. Mościckiego 10, 33-100 Tarnów - dla poz. 2-4"]

{"sheet":"Część 11","index":11,"n_rows":28,"n_cols":10,"rows_kept":28,"merged":[[0,6,0,9],[2,0,2,9],[3,0,3,9],[4,0,4,9],[6,1,8,1],[6,2,8,2],[6,3,8,3],[6,4,6,5],[6,6,8,6],[6,7,8,7],[6,8,8,8],[6,9,8,9],[7,4,8,4],[7,5,8,5],[15,1,15,8],[16,2,16,9],[17,2,17,9],[18,2,18,9],[22,2,22,9]]}
[null,null,"AGZ.272.3.2024",{"$nulls":3},"Załącznik 1A do SWZ"]
[]
["OPIS PRZEDMIOTU ZAMÓWIENIA - KALKULACJA CENY OFERTY"]
[{"$f":"MID(CELL(\"nazwa_pliku\",A1),FIND(\"]\",CELL(\"nazwa_pliku\",A1),1)+1,100)","v":"Część 11"}]
["Wzorce pH"]
[{"$f":"HYPERLINK(\"#'Suma'!A1\",\"wstecz\")","v":"wstecz"}]
[null,"L.p.","Przedmiot zamówienia","Szczegółowy opis","Opis oferowanego produktu",null,"Jednostka miary","Ilość","Cena jednostkowa brutto [zł] **","Wartość brutto [zł] "]
[{"$nulls":4},"Producent*","Nr katalogowy producenta*"]
[]
[null,"1.","Wzorzec pH\npH=4,01\n\n\n","np. producent: LabStand \nnr kat. BLS 099.040 \nlub produkt równowazny***\n• roztwór wzorcowy w odniesieniu do SRM z NIST;\n• w temp. 25oC – pH=4,01±0,01.\n• wzorzec ftalanowy.",null,null,"op. = 100ml",1,null,{"$f":"H10*I10","v":{"v":0,"d":"0.00"}}]
[null,"2.","Wzorzec pH\npH=4,01\n\n","np. producent: LabStand \nnr kat. BLS 099.040 \nlub produkt równowazny***\n• roztwór wzorcowy w odniesieniu do SRM z NIST;\n• w temp. 25oC – pH=4,01±0,01.\n• wzorzec ftalanowy.",null,null,"op. = 250ml",2,null,{"v":0,"d":"0.00"}]
[null,"3.","Wzorzec pH\npH=7,00\n\n","np. producent: LabStand \nnr kat. BLS 099.070 \nlub produkt równowazny***\n• roztwór wzorcowy w odniesieniu do SRM z NIST;\n• w temp. 25oC – pH=7,00±0,01;\n• wzorzec fosforanowy.",null,null,"op. = 250ml",2,null,{"v":0,"d":"0.00"}]
[null,"4.","Wzorzec pH\npH=7,00\n\n","np. producent: LabStand \nnr kat. BLS 099.070 \nlub produkt równowazny***\n• roztwór wzorcowy w odniesieniu do SRM z NIST;\n• w temp. 25oC – pH=7,00±0,01;\n• wzorzec fosforanowy.",null,null,"op. = 100ml",1,null,{"v":0,"d":"0.00"}]
[null,"5.","Wzorzec pH\npH=9,18\n\n","np. producent: LabStand \nnr kat. BLS 099.090 \nlub produkt równowazny***\n• roztwór wzorcowy w odniesieniu do SRM z NIST;\n• w temp. 25oC – pH=9,18±0,02;\n• wzorzec boraksowy.",null,null,"op. = 100ml",2,null,{"v":0,"d":"0.00"}]
[null,"6.","Wzorzec pH\npH=10,01\n\n","np. producent: LabStand \nnr kat.  BLS 099.100 \nlub produkt równowazny***\n• roztwór wzorcowy w odniesieniu do SRM z NIST;\n• w temp. 25oC – pH=10,01±0,02.\n• wzorzec węglanowy.",null,null,"op. = 250ml",1,null,{"v":0,"d":"0.00"}]
[null,"Cena oferty (brutto):",{"$nulls":7},{"$f":"SUM(J10:J15)","v":{"v":0,"d":"0.00"}}]
[null,"*","Należy wpisać nazwę producenta oraz numer katalogowy producenta oferowanego produktu. Niepodanie ww. danych będzie skutkować odrzuceniem oferty, chyba że dane te będą jednoznacznie wynikać z innych dokumentów dołączonych do oferty."]
[null,"**","Zawiera podatek od towarów i usług (VAT) wg obowiązującej stawki oraz koszty wszystkich świadczeń niezbędnych do wykonania zamówienia, w szczególności koszty transportu, ubezpieczenia, opakowania (także kaucjonowanego) itp."]
[null,"***","Wykonawca oferujący produkt innego producenta, o innym numerze katalogowym niż wskazany jako przykład zobowiązany jest dostarczyć certyfikaty potwierdzające równoważność oferowanego produktu z wymaganiami przedstawionymi w tabeli w języku polskim lub angielskim. Wymienione dokumenty nie muszą potwierdzać zastosowania odczynnika. "]
[]
[null,"Wymagania dodatkowe:"]
[]
[null,"1.","Do dostawy wymagany certyfikat/świadectwo potwierdzające jakość produktu zawierające wartość parametru wraz z niepewnością, wydane w języku polskim lub angielskim, w formie papierowej lub dostępne w formie elektronicznej w miejscu wskazanym przez wykonawcę (adres strony www).  "]
[null,"2.","Dla poz. 1-4 Wymagany okres ważności: min. 11 miesięcy od daty dostawy. "]
[null,"3.","Dla poz. 5-6 wymagany okres ważności: min. 5 miesięcy od daty dostawy."]
[null,"4.","Na opakowaniu podana czytelna nazwa wzorca, zgodna z nazwą podaną na certyfikacie / świadectwie, o którym mowa w pkt. 1."]
[null,"5.","Miejsce dostawy: ","WSSE Kraków  ul. Prądnicka 76, 31-202 Kraków - dla poz. 1, 4, 5\n"]
[{"$nulls":3},"WSSE Oddział Laboratoryjny w Tarnowie  ul. Mościckiego 10,  33-100 Tarnów - dla poz. 2, 3, 6\n"]

{"sheet":"Część 12","index":12,"n_rows":28,"n_cols":10,"rows_kept":28,"merged":[[0,6,0,9],[2,0,2,9],[3,0,3,9],[4,0,4,9],[6,1,8,1],[6,2,8,2],[6,3,8,3],[6,4,6,5],[6,6,8,6],[6,7,8,7],[6,8,8,8],[6,9,8,9],[7,4,8,4],[7,5,8,5],[17,1,17,8],[18,2,18,9],[19,2,19,9],[23,2,23,9],[24,2,24,9]]}
[null,null,"AGZ.272.3.2024",{"$nulls":3},"Załącznik 1A do SWZ"]
[]
["OPIS PRZEDMIOTU ZAMÓWIENIA - KALKULACJA CENY OFERTY"]
[{"$f":"MID(CELL(\"nazwa_pliku\",A1),FIND(\"]\",CELL(\"nazwa_pliku\",A1),1)+1,100)","v":"Część 12"}]
["Rozpuszczalniki do HPLC"]
[{"$f":"HYPERLINK(\"#'Suma'!A1\",\"wstecz\")","v":"wstecz"}]
[null,"L.p.","Przedmiot zamówienia","Szczegółowy opis","Opis oferowanego produktu",null,"Jednostka miary","Ilość","Cena jednostkowa brutto [zł] **","Wartość brutto [zł] "]
[{"$nulls":4},"Producent*","Nr katalogowy producenta*"]
[]
[null,"1.","2-Propanol do HPLC","• czystość do HPLC;\n• zawartość: min. 99,8 %;\n• filtrowany przez filtr 0,2 μm.\n",null,null,"op. = 2,5l",1,null,{"$f":"H10*I10","v":{"v":0,"d":"0.00"}}]
[null,"2.","Acetonitryl\n","• czystość gradientowa do HPLC;\n• zawartość: min. 99,9 %;\n• woda: max. 300 ppm;\n• fluorescencja (j. chinina):\n- dla 254 nm: max. 1 ppb;\n• transmitancja:\n- dla 230 nm: min. 98 %;\n• filtrowany przez filtr 0,2 μm.\n",null,null,"op. = 2,5l",15,null,{"v":0,"d":"0.00"}]
[null,"3.","Cykloheksan \n","• czystość do HPLC;\n• zawartość: min. 99,5 %;\n• woda: max. 100 ppm;\n• transmitancja:\n- dla 240 nm: min. 90 %;\n• filtrowany przez filtr 0,2 µm.\n",null,null,"op. = 2,5l",14,null,{"v":0,"d":"0.00"}]
[null,"4.","Dichlorometan\n","• czystość do HPLC;\n• zawartość: min. 99.9 %;\n• woda: max. 100 ppm;\n• transmitancja:\n- dla 240 nm: min. 60 %;\n• filtrowany przez filtr 0,2 µm.\n",null,null,"op= 2,5l",2,null,{"v":0,"d":"0.00"}]
[null,"5.","Metanol\n","• czystość gradientowa do HPLC;\n• zawartość: min. 99,9 %;\n• woda: max. 300 ppm;\n• transmitancja:\n- dla 220 nm: min. 50 %,\n- dla 260 nm: min. 98 %;\n• filtrowany przez filtr 0,2 μm.\n",null,null,"op. =2,5l",54,null,{"v":0,"d":"0.00"}]
[null,"6.","n-Heksan\n","• czystość do HPLC;\n• zawartość: min. 95 %;\n• woda: max. 100 ppm;\n• transmitancja:\n- dla 220 nm: min. 82 %,\n- dla 245 nm: min. 98 %;\n• filtrowany przez filtr 0,2 μm.\n",null,null,"op. = 2,5l",21,null,{"v":0,"d":"0.00"}]
[null,"7.","Octan etylu\n","• czystość do HPLC;            \n• zawartość: min. 99,8 %;    \n• woda: max. 500 ppm;\n• transmitancja:\n- dla 260 nm: min. 50 %,\n- dla 270 nm: min. 90 %;\n• filtrowany przez filtr 0,2 μm.\n",null,null,"op. = 2,5l",6,null,{"v":0,"d":"0.00"}]
[null,"8.","Woda do HPLC\n","• czystość do HPLC;  \n• przewodność właściwa max. 1 µS/cm;\n• test gradientowy:\n- dla 210 nm: max. 5 mAU,\n- dla 254 nm: max 0,5 mAU;\n• ogólny węgiel organiczny (OWO): max. 30 ppb;\n• filtrowany przez filtr 0,2 μm.\n",null,null,"op. = 2,5l",26,null,{"v":0,"d":"0.00"}]
[null,"Cena oferty (brutto):",{"$nulls":7},{"$f":"SUM(J10:J17)","v":{"v":0,"d":"0.00"}}]
[null,"*","Należy wpisać nazwę producenta oraz numer katalogowy producenta oferowanego produktu. Niepodanie ww. danych będzie skutkować odrzuceniem oferty, chyba że dane te będą jednoznacznie wynikać z innych dokumentów dołączonych do oferty."]
[null,"**","Zawiera podatek od towarów i usług (VAT) wg obowiązującej stawki oraz koszty wszystkich świadczeń niezbędnych do wykonania zamówienia, w szczególności koszty transportu, ubezpieczenia, opakowania (także kaucjonowanego) itp."]
[]
[null,"Wymagania dodatkowe:"]
[]
[null,"1.","Do dostawy wymagany certyfikat jakości /świadectwo kontroli jakości lub inny dokument potwierdzający jakość produktu w języku polskim lub angielskim w formie papierowej lub dostępny w formie elektronicznej w miejscu wskazanym przez wykonawcę (adres strony www). "]
[null,"2.","Okres ważności: min. 24 miesięcy od daty dostawy lub  min. ¾ okresu ważności deklarowanego przez producenta (zapisanego w certyfikacie jakości / świadectwie kontroli jakości lub innym dokumencie do danej partii, o którym mowa w pkt. 1)."]
[null,"3.","Na opakowaniu podana czytelna nazwa odczynnika, zgodna z nazwą podaną w dokumentach, o którym mowa w pkt. 1."]
[null,"4.","Zamiawiający przewiduje max 3 dostawy."]
[null,"5.","Miejsce dostawy:  \n","WSSE Kraków  ul. Prądnicka 76, 31-202 Kraków"]

{"sheet":"Część 13","index":13,"n_rows":35,"n_cols":10,"rows_kept":35,"merged":[[0,6,0,9],[2,0,2,9],[3,0,3,9],[4,0,4,9],[6,1,8,1],[6,2,8,2],[6,3,8,3],[6,4,6,5],[6,6,8,6],[6,7,8,7],[6,8,8,8],[6,9,8,9],[7,4,8,4],[7,5,8,5],[22,1,22,8],[23,2,23,9],[24,2,24,9],[25,2,25,9],[29,2,29,9],[30,2,30,9],[32,2,32,6]]}
[null,null,"AGZ.272.3.2024",{"$nulls":3},"Załącznik 1A do SWZ - zmiana z dnia 3.04.2024 r."]
[]
["OPIS PRZEDMIOTU ZAMÓWIENIA - KALKULACJA CENY OFERTY"]
[{"$f":"MID(CELL(\"nazwa_pliku\",A1),FIND(\"]\",CELL(\"nazwa_pliku\",A1),1)+1,100)","v":"Część 13"}]
["Wzorce do chromatografii jonowej"]
[{"$f":"HYPERLINK(\"#'Suma'!A1\",\"wstecz\")","v":"wstecz"}]
[null,"L.p.","Przedmiot zamówienia","Szczegółowy opis","Opis oferowanego produktu",null,"Jednostka miary","Ilość","Cena jednostkowa brutto [zł] **","Wartość brutto [zł] "]
[{"$nulls":4},"Producent*","Nr katalogowy producenta*"]
[]
[null,"1.","Wzorzec jonów azotanowych NO3-\n","np. producent: CPAchem \nnr ref: H013.W.L1 \nlub produkt równoważny***\n• zastosowanie: do IC;   \n• stężenie 1000 mg/l;\n• roztwór wodny.\n",null,null,"op. = 100ml",2,null,{"$f":"H10*I10","v":{"v":0,"d":"0.00"}}]
[null,"2.","Wzorzec jonów azotanowych NO3-\n","np. producent: CPAchem \nnr ref: H013.W.L1 \nlub produkt równoważny***\n• zastosowanie: do IC;   \n• stężenie 1000 mg/l;\n• roztwór wodny.\n",null,null,"op. = 100ml",1,null,{"v":0,"d":"0.00"}]
[null,"3.","Wzorzec jonów azotynowych NO2-\n","np. producent: CPAchem \nnr ref: H012.W.L1 \nlub produkt równoważny***\n• zastosowanie: do IC;   \n• stężenie 1000 mg/l;\n• roztwór wodny.\n",null,null,"op. = 100ml",1,null,{"v":0,"d":"0.00"}]
[null,"4.","Wzorzec jonów azotynowych NO2-\n","np. producent: CPAchem \nnr ref: H012.W.L1 \nlub produkt równoważny***\n• zastosowanie: do IC;   \n• stężenie 1000 mg/l;\n• roztwór wodny                         \n",null,null,"op. = 100ml",1,null,{"v":0,"d":"0.00"}]
[null,"5.","Wzorzec jonów bromianowych BrO3-\n","np. producent: CPAchem \nnr ref: H020.W.L1 \nlub produkt równoważny***\n• zastosowanie: do IC;   \n• stężenie 1000 mg/l;\n• roztwór wodny.\n",null,null,"op. = 100ml",1,null,{"v":0,"d":"0.00"}]
[null,"6.","Wzorzec jonów chlorkowych Cl-\n","np. producent: CPAchem \nnr ref: H003.W.L1 \nlub produkt równoważny***\n• zastosowanie: do IC;   \n• stężenie 1000 mg/l;\n• roztwór wodny.\n",null,null,"op. = 100ml",2,null,{"v":0,"d":"0.00"}]
[null,"7.","Wzorzec jonów siarczanowych SO42-\n","np. producent: CPAchem \nnr ref: H015.W.L1 \nlub produkt równoważny***\n• zastosowanie: do IC;   \n• stężenie 1000 mg/l;\n• roztwór wodny.\n",null,null,"op. = 100ml",2,null,{"v":0,"d":"0.00"}]
[null,"8.","Wzorzec jonów fluorkowych F-\n\n","np. producent: CPAchem \nNr ref: H005.W.L1 \nlub produkt równoważny***\n• zastosowanie: do IC;   \n• stężenie 1000 mg/l;\n• roztwór wodny.\n",null,null,"op. = 100ml",1,null,{"v":0,"d":"0.00"}]
[null,"9.","Wzorzec jonów chloranowych ClO3-\n\n","np. producent: CPAchem \nNr ref: H025.W.L1 \nlub produkt równoważny***\n• zastosowanie: do IC;   \n• stężenie 1000 mg/l;\n• roztwór wodny.\n",null,null,"op. = 100ml",1,null,{"v":0,"d":"0.00"}]
[null,"10.","Wzorzec jonów chlorynowych ClO2-\n","np. producent: CPAchem \nnr ref: H028.01O.L1 \nlub produkt równoważny***\n• zastosowanie: do IC;   \n• stężenie 1000 mg/l;\n• matryca: wodny roztwór o stężeniu 0,1% NaOH\n",null,null,"op. = 100ml",1,null,{"v":0,"d":"0.00"}]
[null,"11.","Wzorzec do barwy \n","np. producent: CPAchem  HZN250.L5\nlub produkt równoważny***\n• zawartość: 250 mg/l Pt.\n",null,null,"op. = \n500 ml",1,null,{"v":0,"d":"0.00"}]
[null,"12.","Wzorzec do barwy \n","np. Producent: CPAchem  HZN250.L5\nlub produkt równoważny***\n• zawartość: 250 mg/l Pt.\n",null,null,"op. = \n500 ml",2,null,{"v":0,"d":"0.00"}]
[null,"13.","Wzorzec azotu amonowego","np. CPAchem            \nNr kat. H031.W.L1                  \nlub produkt równoważny***\n• stężenie 1000 mg/l;\n• roztwór wodny;\n",null,null,"op. = 100ml",2,null,{"v":0,"d":"0.00"}]
[null,"Cena oferty (brutto):",{"$nulls":7},{"$f":"SUM(J10:J22)","v":{"v":0,"d":"0.00"}}]
[null,"*","Należy wpisać nazwę producenta oraz numer katalogowy producenta oferowanego produktu. Niepodanie ww. danych będzie skutkować odrzuceniem oferty, chyba że dane te będą jednoznacznie wynikać z innych dokumentów dołączonych do oferty."]
[null,"**","Zawiera podatek od towarów i usług (VAT) wg obowiązującej stawki oraz koszty wszystkich świadczeń niezbędnych do wykonania zamówienia, w szczególności koszty transportu, ubezpieczenia, opakowania (także kaucjonowanego) itp."]
[null,"***","Wykonawca oferujący produkt innego producenta, o innym numerze katalogowym niż wskazany jako przykład zobowiązany jest dostarczyć certyfikaty potwierdzające równoważność oferowanego produktu z wymaganiami przedstawionymi w tabeli w języku polskim lub angielskim. Wymienione dokumenty nie muszą potwierdzać zastosowania odczynnika. "]
[]
[null,"Wymagania dodatkowe:"]
[]
[null,"1.","DO OFERTY wymagany certyfikat/świadectwo potwierdzające jakość produktu i wyprodukowanie CRMu/wzorca przez NMI zarejestrowane w bazie BIPM KCDB lub przez akredytowanego  producenta materiałów odniesienia w odniesieniu do wymagań normy PN-EN ISO 17034, wydane w języku polskim lub angielskim, w formie papierowej lub dostępny w formie elektronicznej w miejscu wskazanym przez wykonawcę (adres strony www).  Certyfikat/świadectwo musi zawierać: wartość parametru wraz z niepewnością."]
[null,"2.","Do dostawy  wymagany certyfikat/świadectwo potwierdzające jakość produktu i wyprodukowanie CRMu/wzorca przez NMI zarejestrowane w bazie BIPM KCDB lub przez akredytowanego  producenta materiałów odniesienia w odniesieniu do wymagań normy PN-EN ISO 17034, wydane w języku polskim lub angielskim, w formie papierowej lub dostępny w formie elektronicznej w miejscu wskazanym przez wykonawcę (adres strony www).  Certyfikat/świadectwo musi zawierać: wartość parametru wraz z niepewnością."]
[null,"3.","Na opakowaniu podana czytelna nazwa wzorca, zgodna z nazwą podaną na certyfikacie /świadectwie, o którym mowa w pkt. 1."]
[null,"4.","Okres ważności: min. 12 miesięcy od daty dostawy."]
[null,"5.","Miejsce dostawy:","WSSE Kraków ul. Prądnicka 76, 31-202 Kraków - dla poz. 1, 3, 5-11, 13"]
[{"$nulls":3},"WSSE Oddział Laboratoryjny w Tarnowie ul. Mościckiego 10, 33-100 Tarnów - dla poz. 2 ,4, 12"]

{"sheet":"Część 14","index":14,"n_rows":39,"n_cols":10,"rows_kept":39,"merged":[[0,6,0,9],[2,0,2,9],[3,0,3,9],[4,0,4,9],[6,1,8,1],[6,2,8,2],[6,3,8,3],[6,4,6,5],[6,6,8,6],[6,7,8,7],[6,8,8,8],[6,9,8,9],[7,4,8,4],[7,5,8,5],[26,1,26,8],[27,2,27,9],[28,2,28,9],[29,2,29,9],[33,2,33,9],[35,2,35,6]]}
[null,null,"AGZ.272.3.2024",{"$nulls":3},"Załącznik 1A do SWZ"]
[]
["OPIS PRZEDMIOTU ZAMÓWIENIA - KALKULACJA CENY OFERTY"]
[{"$f":"MID(CELL(\"nazwa_pliku\",A1),FIND(\"]\",CELL(\"nazwa_pliku\",A1),1)+1,100)","v":"Część 14"}]
["Wzorce do IC kontrolne"]
[{"$f":"HYPERLINK(\"#'Suma'!A1\",\"wstecz\")","v":"wstecz"}]
[null,"L.p.","Przedmiot zamówienia","Szczegółowy opis","Opis oferowanego produktu",null,"Jednostka miary","Ilość","Cena jednostkowa brutto [zł] **","Wartość brutto [zł] "]
[{"$nulls":4},"Producent*","Nr katalogowy producenta*"]
[]
[null,"1.","Wzorzec jonów azotanowych NO3-\n","np. Producent: Inorganic Ventures                    \nNr kat.ICNO31-125ml    \nlub produkt równoważny***\n• zastosowanie: do IC;   \n• stężenie 1000 mg/l;\n• roztwór wodny;\n• roztwór wzorcowy w odniesieniu do SRM z NIST.",null,null,"op. = 125ml",1,null,{"$f":"H10*I10","v":{"v":0,"d":"0.00"}}]
[null,"2.","Wzorzec jonów azotanowych NO3-\n","np. Producent: Inorganic Ventures                    \nNr kat.ICNO31-125ml    \nlub produkt równoważny***\n• zastosowanie: do IC;   \n• stężenie 1000 mg/l;\n• roztwór wodny;\n• roztwór wzorcowy w odniesieniu do SRM z NIST.",null,null,"op. = 125ml",1,null,{"v":0,"d":"0.00"}]
[null,"3.","Roztwór wzorcowy azotu azotanowego N NO3-\n","np. Producent: Inorganic Ventures                 \nNr kat. ICNNO31-125ml\nlub produkt równoważny***\n• zastosowanie: do IC;   \n• stężenie 1000 mg/l;\n• roztwór wodny;\n• roztwór wzorcowy w odniesieniu do SRM z NIST.",null,null,"op. = 125ml",1,null,{"v":0,"d":"0.00"}]
[null,"4.","Wzorzec jonów azotynowych NO2 -\n","np. Producent: Inorganic Ventures                 \nNr kat. ICNO21-125ml\nlub produkt równoważny***\n• zastosowanie: do IC;   \n• stężenie 1000 mg/l;\n• roztwór wodny;\n• roztwór wzorcowy w odniesieniu do SRM z NIST.",null,null,"op. = 125ml",1,null,{"v":0,"d":"0.00"}]
[null,"5.","Wzorzec jonów azotynowych NO2 -\n","np. Producent: Inorganic Ventures                 \nNr kat. ICNO21-125ml\nlub produkt równoważny***\n• zastosowanie: do IC;   \n• stężenie 1000 mg/l;\n• roztwór wodny;\n• roztwór wzorcowy w odniesieniu do SRM z NIST.",null,null,"op. = 125ml",1,null,{"v":0,"d":"0.00"}]
[null,"6.","Wzorzec jonów azotynowych NO2 -\n","np. Producent: Inorganic Ventures                 \nNr kat. ICNO21-125ml\nlub produkt równoważny***\n• zastosowanie: do IC;   \n• stężenie 1000 mg/l;\n• roztwór wodny;\n• roztwór wzorcowy w odniesieniu do SRM z NIST.",null,null,"op. = 125ml",1,null,{"v":0,"d":"0.00"}]
[null,"7.","Wzorzec jonów \nżelaza Fe\n","np. Producent: Inorganic Ventures                 \nNr kat. CGFE1-125ml\nlub produkt równoważny***\n• zastosowanie: do IC;   \n• stężenie 1000 mg/l;\n• roztwór wodny;\n• roztwór wzorcowy w odniesieniu do SRM z NIST.",null,null,"op. = 125ml",1,null,{"v":0,"d":"0.00"}]
[null,"8.","Wzorzec jonów \nżelaza Fe\n","np. Producent: Inorganic Ventures                 \nNr kat. CGFE1-125ml\nlub produkt równoważny***\n• zastosowanie: do IC;   \n• stężenie 1000 mg/l;\n• roztwór wodny;\n• roztwór wzorcowy w odniesieniu do SRM z NIST.",null,null,"op. = 125ml",1,null,{"v":0,"d":"0.00"}]
[null,"9.","Wzorzec jonów bromianowych BrO3-\n\n","np. Producent: Inorganic Ventures                   \nNr kat. ICBRO31-125ml  \nlub produkt równoważny***\n• zastosowanie: do IC;   \n• stężenie 1000 mg/l;\n• roztwór wodny;\n• roztwór wzorcowy w odniesieniu do SRM z NIST.",null,null,"op. = 125ml",1,null,{"v":0,"d":"0.00"}]
[null,"10.","Wzorzec jonów chloranowych ClO3-\n\n","np. Producent: Inorganic Ventures                    \nNr kat. ICCLO31-125ml\nlub produkt równoważny***\n• zastosowanie: do IC;   \n• stężenie 1000 mg/l;\n• roztwór wodny;\n• roztwór wzorcowy w odniesieniu do SRM z NIST",null,null,"op. = 125ml",1,null,{"v":0,"d":"0.00"}]
[null,"11.","Wzorzec jonów chlorkowych Cl-\n","np. Producent: Inorganic Ventures                 \nNr kat. ICCL1-125ml\nlub produkt równoważny***\n• zastosowanie: do IC;   \n• stężenie 1000 mg/l;\n• roztwór wodny;\n• roztwór wzorcowy w odniesieniu do SRM z NIST.",null,null,"op. = 125ml",1,null,{"v":0,"d":"0.00"}]
[null,"12.","Wzorzec jonów chlorkowych Cl-\n","np. Producent: Inorganic Ventures                 \nNr kat. ICCL1-125ml\nlub produkt równoważny***\n• zastosowanie: do IC;   \n• stężenie 1000 mg/l;\n• roztwór wodny;\n• roztwór wzorcowy w odniesieniu do SRM z NIST.",null,null,"op. = 125ml",1,null,{"v":0,"d":"0.00"}]
[null,"13.","Wzorzec jonów chlorynowych ClO2-\n","np. Producent: Inorganic Ventures                  \nNr kat. ICCLO21-125ml\nlub produkt równoważny***\n• zastosowanie: do IC;   \n• stężenie 1000 mg/l;\n• roztwór wodny;\n• roztwór wzorcowy w odniesieniu do SRM z NIST.",null,null,"op. = 125ml",1,null,{"v":0,"d":"0.00"}]
[null,"14.","Wzorzec jonów fluorkowych F-\n\n","np. Producent: Inorganic Ventures                \nNr kat. ICF1-125ml\nlub produkt równoważny***\n• zastosowanie: do IC;   \n• stężenie 1000 mg/l;\n• roztwór wodny;\n• roztwór wzorcowy w odniesieniu do SRM z NIST.",null,null,"op. = 125ml",1,null,{"v":0,"d":"0.00"}]
[null,"15.","Wzorzec jonów siarczanowych SO42-\n\n","np. Producent: Inorganic Ventures                 \nNr kat. ICSO41-125ml\nlub produkt równoważny***\n• zastosowanie: do IC;   \n• stężenie 1000 mg/l;\n• roztwór wodny;\n• roztwór wzorcowy w odniesieniu do SRM z NIST.",null,null,"op. = 125ml",1,null,{"v":0,"d":"0.00"}]
[null,"16.","Wzorzec jonów\nfosforanowych PO43-\n\n","np. Producent: Inorganic Ventures                 \nNr kat. ICPO41-125ml\nlub produkt równoważny***\n• zastosowanie: do IC;   \n• stężenie 1000 mg/l;\n• roztwór wodny;\n• roztwór wzorcowy w odniesieniu do SRM z NIST.",null,null,"op. = 125ml",1,null,{"v":0,"d":"0.00"}]
[null,"17.","Wzorzec jonu \namonu NH4+\n\n","np. Producent: Inorganic Ventures                   \nNr kat. ICNNH41-125ml  \nlub produkt równoważny***\n• zastosowanie: do IC;   \n• stężenie 1000 mg/l;\n• roztwór wodny;\n• roztwór wzorcowy w odniesieniu do SRM z NIST.",null,null,"op. = 125ml",1,null,{"v":0,"d":"0.00"}]
[null,"Cena oferty (brutto):",{"$nulls":7},{"$f":"SUM(J10:J26)","v":{"v":0,"d":"0.00"}}]
[null,"*","Należy wpisać nazwę producenta oraz numer katalogowy producenta oferowanego produktu. Niepodanie ww. danych będzie skutkować odrzuceniem oferty, chyba że dane te będą jednoznacznie wynikać z innych dokumentów dołączonych do oferty."]
[null,"**","Zawiera podatek od towarów i usług (VAT) wg obowiązującej stawki oraz koszty wszystkich świadczeń niezbędnych do wykonania zamówienia, w szczególności koszty transportu, ubezpieczenia, opakowania (także kaucjonowanego) itp."]
[null,"***","Wykonawca oferujący produkt innego producenta, o innym numerze katalogowym niż wskazany jako przykład zobowiązany jest dostarczyć certyfikaty potwierdzające równoważność oferowanego produktu z wymaganiami przedstawionymi w tabeli w języku polskim lub angielskim. Wymienione dokumenty nie muszą potwierdzać zastosowania odczynnika. "]
[]
[null,"Wymagania dodatkowe:"]
[]
[null,"1.","Do dostawy wymagany certyfikat/świadectwo potwierdzające jakość produktu i wyprodukowanie CRMu/wzorca przez NMI zarejestrowane w bazie BIPM KCDB lub przez akredytowanego  producenta materiałów odniesienia w odniesieniu do wymagań normy PN-EN ISO 17034, wydane w języku polskim lub angielskim, w formie papierowej lub dostępny w formie elektronicznej w miejscu wskazanym przez wykonawcę (adres strony www).  Certyfikat/świadectwo musi zawierać: wartość parametru wraz z niepewnością."]
[null,"2.","Na opakowaniu podana czytelna nazwa wzorca, zgodna z nazwą podaną na certyfikacie /świadectwie, o którym mowa w pkt. 1."]
[null,"3.","Okres ważności: min. 12 miesięcy od daty dostawy."]
[null,"4.","Miejsce dostawy: \n","WSSE Kraków  ul. Prądnicka 76, 31-202 Kraków - dla poz. 1, 4, 9-11, 13-15"]
[{"$nulls":3},"WSSE Oddział Laboratoryjny w Tarnowie  ul. Mościckiego 10,  33-100 Tarnów - dla poz.  3, 6, 8\n"]
[{"$nulls":3},"WSSE Oddział Laboratoryjny w Wadowicach  ul. Teatralna 2, 34-100 Wadowice - dla poz.2, 5, 7, 12, 16, 17"]

{"sheet":"Część 15","index":15,"n_rows":20,"n_cols":10,"rows_kept":20,"merged":[[0,6,0,9],[2,0,2,9],[3,0,3,9],[4,0,4,9],[6,1,8,1],[6,2,8,2],[6,3,8,3],[6,4,6,5],[6,6,8,6],[6,7,8,7],[6,8,8,8],[6,9,8,9],[7,4,8,4],[7,5,8,5],[10,1,10,8],[11,2,11,9],[12,2,12,9],[16,2,16,9],[17,2,17,9],[18,2,18,9]]}
[null,null,"AGZ.272.3.2024",{"$nulls":3},"Załącznik 1A do SWZ"]
[]
["OPIS PRZEDMIOTU ZAMÓWIENIA - KALKULACJA CENY OFERTY"]
[{"$f":"MID(CELL(\"nazwa_pliku\",A1),FIND(\"]\",CELL(\"nazwa_pliku\",A1),1)+1,100)","v":"Część 15"}]
["Wzorce do GC"]
[{"$f":"HYPERLINK(\"#'Suma'!A1\",\"wstecz\")","v":"wstecz"}]
[null,"L.p.","Przedmiot zamówienia","Szczegółowy opis","Opis oferowanego produktu",null,"Jednostka miary","Ilość","Cena jednostkowa brutto [zł] **","Wartość brutto [zł] "]
[{"$nulls":4},"Producent*","Nr katalogowy producenta*"]
[]
[null,"1.","1,2-Dichloroetan","• roztwór wzorcowy do GC;\n• stężenie 2000 µg/ml ± 3%;\n• roztwór w metanolu.\n",null,null,"op. = 1ml",1,null,{"$f":"H10*I10","v":{"v":0,"d":"0.00"}}]
[null,"Cena oferty (brutto):",{"$nulls":7},{"$f":"SUM(J10:J10)","v":{"v":0,"d":"0.00"}}]
[null,"*","Należy wpisać nazwę producenta oraz numer katalogowy producenta oferowanego produktu. Niepodanie ww. danych będzie skutkować odrzuceniem oferty, chyba że dane te będą jednoznacznie wynikać z innych dokumentów dołączonych do oferty."]
[null,"**","Zawiera podatek od towarów i usług (VAT) wg obowiązującej stawki oraz koszty wszystkich świadczeń niezbędnych do wykonania zamówienia, w szczególności koszty transportu, ubezpieczenia, opakowania (także kaucjonowanego) itp."]
[]
[null,"Wymagania dodatkowe:"]
[]
[null,"1.","Do dostawy wymagany certyfikat/świadectwo potwierdzające jakość produktu i wyprodukowanie CRMu/wzorca przez NMI zarejestrowane w bazie BIPM KCDB lub przez akredytowanego  producenta materiałów odniesienia w odniesieniu do wymagań normy PN-EN ISO 17034, wydane w języku polskim lub angielskim, w formie papierowej lub dostępny w formie elektronicznej w miejscu wskazanym przez wykonawcę (adres strony www).  Certyfikat/świadectwo musi zawierać: wartość parametru wraz z niepewnością."]
[null,"2.","Okresy ważności: min.18 miesięcy od daty dostawy."]
[null,"3.","Na opakowaniu podana czytelna nazwa odczynnika, zgodna z nazwą podaną w dokumentach, o którym mowa w pkt. 1"]
[null,"4.","Miejsce dostawy:\n","WSSE Kraków  ul. Prądnicka 76, 31-202 Kraków \n"]

{"sheet":"Część 16","index":16,"n_rows":30,"n_cols":10,"rows_kept":30,"merged":[[0,6,0,9],[2,0,2,9],[3,0,3,9],[4,0,4,9],[6,1,8,1],[6,2,8,2],[6,3,8,3],[6,4,6,5],[6,6,8,6],[6,7,8,7],[6,8,8,8],[6,9,8,9],[7,4,8,4],[7,5,8,5],[18,1,18,8],[19,2,19,9],[20,2,20,9],[21,2,21,9],[25,2,25,9],[26,2,26,9],[27,2,27,9],[28,2,28,9]]}
[null,null,"AGZ.272.3.2024",{"$nulls":3},"Załącznik 1A do SWZ"]
[]
["OPIS PRZEDMIOTU ZAMÓWIENIA - KALKULACJA CENY OFERTY"]
[{"$f":"MID(CELL(\"nazwa_pliku\",A1),FIND(\"]\",CELL(\"nazwa_pliku\",A1),1)+1,100)","v":"Część 16"}]
["Wzorce do mikotoksyn oraz witaminy A"]
[{"$f":"HYPERLINK(\"#'Suma'!A1\",\"wstecz\")","v":"wstecz"}]
[null,"L.p.","Przedmiot zamówienia","Szczegółowy opis","Opis oferowanego produktu",null,"Jednostka miary","Ilość","Cena jednostkowa brutto [zł] **","Wartość brutto [zł] "]
[{"$nulls":4},"Producent*","Nr katalogowy producenta*"]
[]
[null,"1.","Aflatoxin M1 solution","• zastosowanie: materiał referencyjny;\n• stężenie: 10 μg/ml                                                                             • rozpuszczalnik: acetonitryl\n",null,null,"op.= \n1,1 ml ",1,null,{"$f":"H10*I10","v":{"v":0,"d":"0.00"}}]
[null,"2.","Fumonizyna B1 \n","• zastosowanie: materiał referencyjny do HPLC;\n• stężenie 50 µg/ml ;\n• rozpuszczalnik: acetonitryl : woda.\n",null,null,"op. = \n1,1 ml",1,null,{"v":0,"d":"0.00"}]
[null,"3.","Fumonizyna B2\n","• zastosowanie: materiał referencyjny do HPLC;\n• stężenie 50 µg/ml ;\n• rozpuszczalnik: acetonitryl : woda.\n",null,null,"op. = \n1,1 ml",1,null,{"v":0,"d":"0.00"}]
[null,"4.","Aflatoxin mix 4 solution\n\n","• zastosowanie: wzorzec analityczny;\n• stężenia dla poszczególnych składników:\n - B1 – 2 μg/ml \n - B2 – 0,5 μg/ml  \n - G1 – 2 μg/ml \n - G2 – 0,5 μg/ml                                                             • rozpuszczalnik: acetonitryl\n",null,null,"op.=\n1,1 ml",2,null,{"v":0,"d":"0.00"}]
[null,"5.","Deoxynivalenol \n\n","• zastosowanie: wzorzec analityczny;\n• stężenie 100 µg/ml; \n• rozpuszczalnik: acetonitryl.\n",null,null,"op.=\n1,1 ml",2,null,{"v":0,"d":"0.00"}]
[null,"6.","Patulina \n","• zastosowanie: wzorzec do analizy HPLC;\n• stężenie 100 µg/ml;\n• rozpuszczalnik acetonitryl.\n",null,null,"op. = \n1,1 ml",2,null,{"v":0,"d":"0.00"}]
[null,"7.","Zearalenon    \n","• zastosowanie: certyfikowany materiał referencyjny;\n• stężenie 50 µg/ml;\n• rozpuszczalnik: acetonitryl.\n",null,null,"op.= \n1,1 ml",2,null,{"v":0,"d":"0.00"}]
[null,"8.","Witamina D2 (Ergokalcyferol","• substancja wrorcowa\n• zawartość: min. 90%\n• numer CAS: 50-14-6\n",null,null,"op.=50mg",1,null,{"v":0,"d":"0.00"}]
[null,"9.","Witamina A                              all-trans-retinol ","np. Producent: LabStandard\nnr kat.: LBS1Y6O3110\nlub produkt równoważny***                                                               • certyfikowany materiał referencyjny;\n• zastosowanie: do analizy HPLC;\n• czystość ≥ 95%\n• numer CAS: 68-26-8\n",null,null,"op.=50mg",1,null,{"v":0,"d":"0.00"}]
[null,"Cena oferty (brutto):",{"$nulls":7},{"$f":"SUM(J10:J18)","v":{"v":0,"d":"0.00"}}]
[null,"*","Należy wpisać nazwę producenta oraz numer katalogowy producenta oferowanego produktu. Niepodanie ww. danych będzie skutkować odrzuceniem oferty, chyba że dane te będą jednoznacznie wynikać z innych dokumentów dołączonych do oferty."]
[null,"**","Zawiera podatek od towarów i usług (VAT) wg obowiązującej stawki oraz koszty wszystkich świadczeń niezbędnych do wykonania zamówienia, w szczególności koszty transportu, ubezpieczenia, opakowania (także kaucjonowanego) itp."]
[null,"***","Wykonawca oferujący produkt innego producenta, o innym numerze katalogowym niż wskazany jako przykład zobowiązany jest dostarczyć certyfikaty potwierdzające równoważność oferowanego produktu z wymaganiami przedstawionymi w tabeli w języku polskim lub angielskim. Wymienione dokumenty nie muszą potwierdzać zastosowania odczynnika."]
[]
[null,"Wymagania dodatkowe:"]
[]
[null,"1.","Do dostawy wymagany certyfikat/świadectwo potwierdzające jakość produktu i wyprodukowanie CRMu/wzorca przez NMI zarejestrowane w bazie BIPM KCDB lub przez akredytowanego  producenta materiałów odniesienia w odniesieniu do wymagań normy PN-EN ISO 17034, wydane w języku polskim lub angielskim, w formie papierowej lub dostępny w formie elektronicznej w miejscu wskazanym przez wykonawcę (adres strony www).  Certyfikat/świadectwo musi zawierać: wartość parametru wraz z niepewnością."]
[null,"2.","Dla poz. 2, 3 okres ważności: min. 12 miesięcy od daty dostawy  lub min. ¾ okresu ważności deklarowanego przez producenta (zapisanego w certyfikacie / świadectwie lub innym dokumencie do danej partii, o którym mowa w pkt. 1)    "]
[null,"3.","Dla pozostałych pozycji okres ważności: min. 15 miesięcy od daty dostawy  lub min. ¾ okresu ważności deklarowanego przez producenta (zapisanego w certyfikacie / świadectwie lub innym dokumencie do danej partii, o którym mowa w pkt. 1)    "]
[null,"4.","Na opakowaniu podana czytelna nazwa odczynnika, zgodna z nazwą podaną w dokumentach, o którym mowa w pkt. 1"]
[null,"5.","Miejsce dostawy:\n","WSSE Kraków  ul. Prądnicka 76, 31-202 Kraków \n"]

{"sheet":"Część 17","index":17,"n_rows":22,"n_cols":10,"rows_kept":22,"merged":[[0,6,0,9],[2,0,2,9],[3,0,3,9],[4,0,4,9],[6,1,8,1],[6,2,8,2],[6,3,8,3],[6,4,6,5],[6,6,8,6],[6,7,8,7],[6,8,8,8],[6,9,8,9],[7,4,8,4],[7,5,8,5],[11,1,11,8],[12,2,12,9],[13,2,13,9],[14,2,14,9],[18,2,18,9],[19,2,19,9],[20,2,20,9]]}
[null,null,"AGZ.272.3.2024",{"$nulls":3},"Załącznik 1A do SWZ"]
[]
["OPIS PRZEDMIOTU ZAMÓWIENIA - KALKULACJA CENY OFERTY"]
[{"$f":"MID(CELL(\"nazwa_pliku\",A1),FIND(\"]\",CELL(\"nazwa_pliku\",A1),1)+1,100)","v":"Część 17"}]
["Wzorce do IPC"]
[{"$f":"HYPERLINK(\"#'Suma'!A1\",\"wstecz\")","v":"wstecz"}]
[null,"L.p.","Przedmiot zamówienia","Szczegółowy opis","Opis oferowanego produktu",null,"Jednostka miary","Ilość","Cena jednostkowa brutto [zł] **","Wartość brutto [zł] "]
[{"$nulls":4},"Producent*","Nr katalogowy producenta*"]
[]
[null,"1.","NexION Setup  Solution   \n","np. Producent: Inorganic Ventures \nnr kat. IV-STOCK-77-500ML \nlub produkt równoważny***\n• zastosowanie : ICP/MS;\n• stężenie 1 µg/l;   dla następujących pierwiastków Be, Ce, Fe, In, Li, Mg, Pb, U\n ▪ rozpuszczalnik: rozcieńczony kwas azotowy (1%).\n",null,null,"op.= 500ml",1,null,{"$f":"H10*I10","v":{"v":0,"d":"0.00"}}]
[null,"2.","Quality Control Standardu,21 Elements Pure            \n","np. Producent: Inorganic Ventures \nnr kat.IV-21-125ML \nlub produkt równoważny***\n• zastosowanie : ICP;\n• stężenie 100 µg/ml dla następujących pierwiastków: As,Be,Ca,Cd,Co,Cr,Cu,Fe, Li,Mg,Mn,Mo,Ni,Pb,Sb,Se,Sr,Ti,Tl,V,Zn\n ▪ rozpuszczalnik: rozcieńczony kwas azotowy (5-10%).\n",null,null,"op.= 125ml",1,null,{"v":0,"d":"0.00"}]
[null,"Cena oferty (brutto):",{"$nulls":7},{"$f":"SUM(J10:J11)","v":{"v":0,"d":"0.00"}}]
[null,"*","Należy wpisać nazwę producenta oraz numer katalogowy producenta oferowanego produktu. Niepodanie ww. danych będzie skutkować odrzuceniem oferty, chyba że dane te będą jednoznacznie wynikać z innych dokumentów dołączonych do oferty."]
[null,"**","Zawiera podatek od towarów i usług (VAT) wg obowiązującej stawki oraz koszty wszystkich świadczeń niezbędnych do wykonania zamówienia, w szczególności koszty transportu, ubezpieczenia, opakowania (także kaucjonowanego) itp."]
[null,"***","Wykonawca oferujący produkt innego producenta, o innym numerze katalogowym niż wskazany jako przykład zobowiązany jest dostarczyć certyfikaty potwierdzające równoważność oferowanego produktu z wymaganiami przedstawionymi w tabeli w języku polskim lub angielskim. Wymienione dokumenty nie muszą potwierdzać zastosowania odczynnik."]
[]
[null,"Wymagania dodatkowe:"]
[]
[null,"1.","Do dostawy wymagany certyfikat/świadectwo potwierdzające jakość produktu i wyprodukowanie CRMu/wzorca przez NMI zarejestrowane w bazie BIPM KCDB lub przez akredytowanego  producenta materiałów odniesienia w odniesieniu do wymagań normy PN-EN ISO 17034, wydane w języku polskim lub angielskim, w formie papierowej lub dostępny w formie elektronicznej w miejscu wskazanym przez wykonawcę (adres strony www).  Certyfikat/świadectwo musi zawierać: wartość parametru wraz z niepewnością."]
[null,"2.","Okres ważności: min. 24 miesięcy od daty dostawy lub min. ¾ okresu ważności deklarowanego przez producenta (zapisanego w certyfikacie/ świadectwie, o którym mowa w pkt. 1)."]
[null,"3.","Na opakowaniu podana czytelna nazwa odczynnika, zgodna z nazwą podaną w dokumentach, o którym mowa w pkt. 1"]
[null,"4.","Miejsce dostawy:\n","WSSE Kraków  ul. Prądnicka 76, 31-202 Kraków \n"]

{"sheet":"Część 18","index":18,"n_rows":32,"n_cols":10,"rows_kept":32,"merged":[[0,6,0,9],[2,0,2,9],[3,0,3,9],[4,0,4,9],[6,1,8,1],[6,2,8,2],[6,3,8,3],[6,4,6,5],[6,6,8,6],[6,7,8,7],[6,8,8,8],[6,9,8,9],[7,4,8,4],[7,5,8,5],[19,1,19,8],[20,2,20,9],[21,2,21,9],[22,2,22,9],[26,2,26,9],[27,2,27,9],[29,2,29,9],[30,2,30,9]]}
[null,null,"AGZ.272.3.2024",{"$nulls":3},"Załącznik 1A do SWZ"]
[]
["OPIS PRZEDMIOTU ZAMÓWIENIA - KALKULACJA CENY OFERTY"]
[{"$f":"MID(CELL(\"nazwa_pliku\",A1),FIND(\"]\",CELL(\"nazwa_pliku\",A1),1)+1,100)","v":"Część 18"}]
["Wzorce do analiz instrumentalnych"]
[{"$f":"HYPERLINK(\"#'Suma'!A1\",\"wstecz\")","v":"wstecz"}]
[null,"L.p.","Przedmiot zamówienia","Szczegółowy opis","Opis oferowanego produktu",null,"Jednostka miary","Ilość","Cena jednostkowa brutto [zł] **","Wartość brutto [zł] "]
[{"$nulls":4},"Producent*","Nr katalogowy producenta*"]
[]
[null,"1.","Wzorzec zespolony - 23 pierwiastki \n\n","np. Producent: AccuStandard \nnr kat. QCS-01-1 \nlub produkt równoważny***\n• zastosowanie : ICP;\n• stężenie 100 µg/ml dla następujących\npierwiastków: Sb, As, Be, Cd, Ca, Cr, Co, Cu, Fe, Pb, Li, Mg, Mn, Mo, Ni, P, Se, Sr, Tl, Sn, Ti, V, Zn;\n• rozpuszczalnik:  kwas azotowy 2-5%.",null,null,"op.= \n100ml",1,null,{"$f":"H10*I10","v":{"v":0,"d":"0.00"}}]
[null,"2.","Witamina E-                   DL-a-Tocopherol                                   ","np. Producent: AccuStandard\nnr kat.: VIT-012N \nlub produkt równoważny***\n• zastosowanie: wzorzec do HPLC;\n• czystość min. 95 %;\n• Nr CAS 10191-41-0\n",null,null,"op. =\n100 mg",2,null,{"v":0,"d":"0.00"}]
[null,"3.","Woda (Supply Inorganic Disinfection) \n","np. Producent: ERA\nnr kat. 5272 \nlub produkt równoważny***\n• zastosowanie: materiał certyfikowany do analizy wody;\n• zawartość:\n chlorany \n chloryny \n ",null,null,"op. = \n24 ml",1,null,{"v":0,"d":"0.00"}]
[null,"4.","Wzorzec arsenu\n\n","np. producent: AccuStandard \nnr kat. ICP-MS-03N-0.01X-1\nlub produkt równoważny***\n• zastosowanie : ICP-MS;\n• stężenie 100 µg/ml;\n•  rozpuszczalnik: rozcieńczony kwas azotowy (2-5%).\n",null,null,"op.= \n100 ml",1,null,{"v":0,"d":"0.00"}]
[null,"5.","Wzorzec żelaza ","np. producent: AccuStandard \nnr kat. ICP-27N-10X-1\nlub produkt równoważny***\n• zastosowanie : ICP;\n• stężenie 10000 µg/ml;\n•  rozpuszczalnik: rozcieńczony kwas azotowy (2-5%).\n",null,null,"op.= \n100 ml",1,null,{"v":0,"d":"0.00"}]
[null,"6.","Wzorzec potas ","np. producent: AccuStandard \nnr kat.  ICP-43N-10X-1\nlub produkt równoważny***\n• zastosowanie : ICP;\n• stężenie 10000 µg/ml;\n•  rozpuszczalnik: rozcieńczony kwas azotowy (2-5%).\n",null,null,"op.= \n100 ml",1,null,{"v":0,"d":"0.00"}]
[null,"7.","Wzorzec magnezu","np. producent: AccuStandard \nnr kat. ICP-32N-10X-1\nlub produkt równoważny***\n• zastosowanie : ICP;\n• stężenie 10000 µg/ml;\n•  rozpuszczalnik: rozcieńczony kwas azotowy (2-5%).\n",null,null,"op.= \n100 ml",1,null,{"v":0,"d":"0.00"}]
[null,"8.","Benzo(b)fluoranthene\n","np.Producent: AccuStandard\nnr kat. H-128N\nlub produkt równoważny***\n• zastosowanie: do HPLC;\n• substancja wzorcowa;\n• stopień czystości: min. 98%.\n",null,null,"op.= \n10 mg",1,null,{"v":0,"d":"0.00"}]
[null,"9.","Benzo(a)pyrene\n","Producent: AccuStandard\nnr kat. H-169N\nlub produkt równoważny***\n• zastosowanie: do HPLC;\n• substancja wzorcowa;\n• stopień czystości: min. 98%.\n",null,null,"op.= \n10 mg",1,null,{"v":0,"d":"0.00"}]
[null,"10.","Zestaw witamin rozpuszczalnych w wodzie         ","• zastosowanie: wzorzec do HPLC;\n• zawartość: 10 wzorców witamin rozpuszczalnych w wodzie:\n• Witamina C - 1 g\n• Chlorowodorek Witaminy B1 - 1 g\n• Witamina B2 (Ryboflawina), 1 g\n• Witamina B6 (Chlorowodorek pirydoksyny), 1 g\n• Nikotynamid - 1 g\n• Niacyna (kwas nikotynowy) - 1 g\n• Witamina M (kwas foliowy) - 1 g\n• Kwas pantotenowy B5 (D-pantotenian wapnia), 100 mg\n• Witamina H (biotyna), 100 mg\n• Witamina B12 (Cyjanokobalamina)- 25 mg.\n",null,null,"zestaw = 10 szt.",1,null,{"v":0,"d":"0.00"}]
[null,"Cena oferty (brutto):",{"$nulls":7},{"$f":"SUM(J10:J19)","v":{"v":0,"d":"0.00"}}]
[null,"*","Należy wpisać nazwę producenta oraz numer katalogowy producenta oferowanego produktu. Niepodanie ww. danych będzie skutkować odrzuceniem oferty, chyba że dane te będą jednoznacznie wynikać z innych dokumentów dołączonych do oferty."]
[null,"**","Zawiera podatek od towarów i usług (VAT) wg obowiązującej stawki oraz koszty wszystkich świadczeń niezbędnych do wykonania zamówienia, w szczególności koszty transportu, ubezpieczenia, opakowania (także kaucjonowanego) itp."]
[null,"***","Wykonawca oferujący produkt innego producenta, o innym numerze katalogowym niż wskazany jako przykład zobowiązany jest dostarczyć certyfikaty potwierdzające równoważność oferowanego produktu z wymaganiami przedstawionymi w tabeli w języku polskim lub angielskim. Wymienione dokumenty nie muszą potwierdzać zastosowania odczynnika."]
[]
[null,"Wymagania dodatkowe:"]
[]
[null,"1.","Dla poz. 1, 3-10 do dostawy wymagany certyfikat/świadectwo potwierdzające jakość produktu i wyprodukowanie CRMu/wzorca przez NMI zarejestrowane w bazie BIPM KCDB lub przez akredytowanego  producenta materiałów odniesienia w odniesieniu do wymagań normy PN-EN ISO 17034, wydane w języku polskim lub angielskim, w formie papierowej lub dostępny w formie elektronicznej w miejscu wskazanym przez wykonawcę (adres strony www).  Certyfikat/świadectwo musi zawierać: wartość parametru wraz z niepewnością."]
[null,"2.","Dla poz. 2, 10 do dostawy wymagany certyfikat jakości / świadectwo kontroli jakości lub inny dokument potwierdzający jakość  produktu w języku polskim lub angielskim, w formie papierowej lub dostępny w formie elektronicznej w miejscu wskazanym przez wykonawcę (adres strony www). "]
[null,"3.","Dla poz. 2, 8-10 okres ważności: min. 12 miesiecy od daty dostawy."]
[null,"4.","Dla pozostałych pozycji okresy ważności: min. 24 miesiące od daty dostawy lub min. ¾ okresu ważności deklarowanego przez producenta (zapisanego w certyfikacie / świadectwie lub innym dokumencie do danej partii, o którym mowa w pkt. 1 i 2).  "]
[null,"5.","Na opakowaniu podana czytelna nazwa odczynnika, zgodna z nazwą podaną w dokumentach, o którym mowa w pkt. 1 i 2"]
[null,"6.","Miejsce dostawy:","WSSE w Krakowie  ul. Prądnicka 76, 31-202 Kraków\n"]

{"sheet":"Część 19","index":19,"n_rows":30,"n_cols":10,"rows_kept":30,"merged":[[0,6,0,9],[2,0,2,9],[3,0,3,9],[4,0,4,9],[6,1,8,1],[6,2,8,2],[6,3,8,3],[6,4,6,5],[6,6,8,6],[6,7,8,7],[6,8,8,8],[6,9,8,9],[7,4,8,4],[7,5,8,5],[19,1,19,8],[20,2,20,9],[21,2,21,9],[22,2,22,9],[26,2,26,9],[27,2,27,9],[28,2,28,9]]}
[null,null,"AGZ.272.3.2024",{"$nulls":3},"Załącznik 1A do SWZ - zmiana z dnia 3.04.2024 r."]
[]
["OPIS PRZEDMIOTU ZAMÓWIENIA - KALKULACJA CENY OFERTY"]
[{"$f":"MID(CELL(\"nazwa_pliku\",A1),FIND(\"]\",CELL(\"nazwa_pliku\",A1),1)+1,100)","v":"Część 19"}]
["Wzorce do analiz instrumentalnych 2"]
[{"$f":"HYPERLINK(\"#'Suma'!A1\",\"wstecz\")","v":"wstecz"}]
[null,"L.p.","Przedmiot zamówienia","Szczegółowy opis","Opis oferowanego produktu",null,"Jednostka miary","Ilość","Cena jednostkowa brutto [zł] **","Wartość brutto [zł] "]
[{"$nulls":4},"Producent*","Nr katalogowy producenta*"]
[]
[null,"1.","Wzorzec Quinoline Yellow (E 104)\n","np. Producent: CPAchem\nnr kat.: SB29550.250\nlub produkt równoważny***\n• certyfikowany materiał referencyjny;\n• zastosowanie: do analizy HPLC;\n• Nr CAS: 8004-92-0;\n• czystość min. 95%.\n",null,null,"op. = \n250 mg",1,null,{"$f":"H10*I10","v":{"v":0,"d":"0.00"}}]
[null,"2.","all-trans-Retinol ","np. Producent: CPAchem\nnr kat.: SB52780.50MG \nlub produkt równoważny***                                              • zastosowanie: do analizy HPLC;\n• Nr CAS: 68-26-8;\n• certyfikowany materiał referencyjny.\n",null,null,"op.=\n50mg",1,null,{"v":0,"d":"0.00"}]
[null,"3.","Wzorzec Tartazyna (E 102)\n","np. Producent: CPAchem\nnr kat.: SB29520.250\nlub produkt równoważny***\n• certyfikowany materiał referencyjny;\n• zastosowanie: do analizy HPLC;\n• Nr CAS: 1934-21-0;\n• czystość min. 95%.\n",null,null,"op. = \n250 mg",1,null,{"v":0,"d":"0.00"}]
[null,"4.","Wzorzec Azorubina (E 122)\n","np. Producent: CPAchem\nnr kat.: SB45394.100\nlub produkt równoważny***\n• certyfikowany materiał referencyjny;\n• zastosowanie: do analizy HPLC;\n• Nr CAS: 3567-69-9;\n• czystość min. 95%.",null,null,"op. = \n100 mg",1,null,{"v":0,"d":"0.00"}]
[null,"5.","1,5-Diaminonaftalen     \n","np. Producent: CPAchem\nnr kat.  SB32550.1G\nlub produkt równoważny***\n• zastosowanie: substancja wzorcowa\n• cas nr 2243-62-1\n• czystoścć min. 98%\n",null,null,"op. = \n1g",1,null,{"v":0,"d":"0.00"}]
[null,"6.","Wzorzec Ponceau 4RC  (E 124)\n\n","np. Producent: CPAchem\nnr kat.: SB29540.100\nlub produkt równoważny***\n• certyfikowany materiał referencyjny;\n• zastosowanie: do analizy HPLC;\n• Nr CAS: 2611-82-7;\n• czystość min. 95%.\n",null,null,"op. = \n100 mg",1,null,{"v":0,"d":"0.00"}]
[null,"7.","Wzorzec Amaranth (E 123)\n","np. Producent: CPAchem\nnr kat.: SB29530.250\nlub produkt równoważny***\n• certyfikowany materiał referencyjny;\n• zastosowanie: do analizy HPLC;\n• Nr CAS: 915-67-3;\n• czystość min. 93%.\n",null,null,"op. = \n250 mg",1,null,{"v":0,"d":"0.00"}]
[null,"8.","Wzorzec Allura Red (E 129)\n","np. Producent: CPAchem\nnr kat.: SB45424.100\nlub produkt równoważny***\n• certyfikowany materiał referencyjny;\n• zastosowanie: do analizy HPLC;\n• Nr CAS: 25956-17-6;\n• czystość min. 91%.\n",null,null,"op. = \n100 mg",1,null,{"v":0,"d":"0.00"}]
[null,"9.","Wzorzec Brilliant Blue (E 133)\n","np. Producent: CPAchem\nnr kat.: SB45444.250\nlub produkt równoważny***\n• certyfikowany materiał referencyjny;\n• zastosowanie: do analizy HPLC;\n• Nr CAS: 3844-45-9;\n• czystość min. 88%.\n",null,null,"op. = \n250 mg",1,null,{"v":0,"d":"0.00"}]
[null,"10.","Kwas benzoesowy\n","np. Producent: CPAchem\nnr kat.: SB1017.250\nlub produkt równoważny***\n• certyfikowany materiał referencyjny;\n• zastosowanie: do analizy HPLC;\n• Nr CAS: 65-85-0;\n• czystość min. 95%.\n",null,null,"op. = \n250 mg",1,null,{"v":0,"d":"0.00"}]
[null,"Cena oferty (brutto):",{"$nulls":7},{"$f":"SUM(J10:J19)","v":{"v":0,"d":"0.00"}}]
[null,"*","Należy wpisać nazwę producenta oraz numer katalogowy producenta oferowanego produktu. Niepodanie ww. danych będzie skutkować odrzuceniem oferty, chyba że dane te będą jednoznacznie wynikać z innych dokumentów dołączonych do oferty."]
[null,"**","Zawiera podatek od towarów i usług (VAT) wg obowiązującej stawki oraz koszty wszystkich świadczeń niezbędnych do wykonania zamówienia, w szczególności koszty transportu, ubezpieczenia, opakowania (także kaucjonowanego) itp."]
[null,"***","Wykonawca oferujący produkt innego producenta, o innym numerze katalogowym niż wskazany jako przykład zobowiązany jest dostarczyć certyfikaty potwierdzające równoważność oferowanego produktu z wymaganiami przedstawionymi w tabeli w języku polskim lub angielskim. Wymienione dokumenty nie muszą potwierdzać zastosowania odczynnika."]
[]
[null,"Wymagania dodatkowe:"]
[]
[null,"1.","Do dostawy wymagany certyfikat/świadectwo potwierdzające jakość produktu i wyprodukowanie CRMu/wzorca przez NMI zarejestrowane w bazie BIPM KCDB lub przez akredytowanego  producenta materiałów odniesienia w odniesieniu do wymagań normy PN-EN ISO 17034, wydane w języku polskim lub angielskim, w formie papierowej lub dostępny w formie elektronicznej w miejscu wskazanym przez wykonawcę (adres strony www). Certyfikat/świadectwo musi zawierać: wartość parametru wraz z niepewnością."]
[null,"2.","Okresy ważności: min.18 miesięcy od daty dostawy."]
[null,"3.","Na opakowaniu podana czytelna nazwa odczynnika, zgodna z nazwą podaną w dokumentach, o którym mowa w pkt. 1"]
[null,"4.","Miejsce dostawy:\n","WSSE Kraków  ul. Prądnicka 76, 31-202 Kraków\n"]

{"sheet":"Część 20","index":20,"n_rows":21,"n_cols":10,"rows_kept":21,"merged":[[0,6,0,9],[2,0,2,9],[3,0,3,9],[4,0,4,9],[6,1,8,1],[6,2,8,2],[6,3,8,3],[6,4,6,5],[6,6,8,6],[6,7,8,7],[6,8,8,8],[6,9,8,9],[7,4,8,4],[7,5,8,5],[11,1,11,8],[12,2,12,9],[13,2,13,9],[14,2,14,9],[18,2,18,9],[19,2,19,9]]}
[null,null,"AGZ.272.3.2024",{"$nulls":3},"Załącznik 1A do SWZ"]
[]
["OPIS PRZEDMIOTU ZAMÓWIENIA - KALKULACJA CENY OFERTY"]
[{"$f":"MID(CELL(\"nazwa_pliku\",A1),FIND(\"]\",CELL(\"nazwa_pliku\",A1),1)+1,100)","v":"Część 20"}]
["Scyntylator"]
[{"$f":"HYPERLINK(\"#'Suma'!A1\",\"wstecz\")","v":"wstecz"}]
[null,"L.p.","Przedmiot zamówienia","Szczegółowy opis","Opis oferowanego produktu",null,"Jednostka miary","Ilość","Cena jednostkowa brutto [zł] **","Wartość brutto [zł] "]
[{"$nulls":4},"Producent*","Nr katalogowy producenta*"]
[]
[null,"1.","Scyntylator \n\n","np. Producent: Perkin Elmer \ntyp: ULTIMA Gold LLT  \nnr kat. 6013371\nlub produkt równoważny***\n•  zastosowanie: do oznaczania niskiej zawartości trytu w wodzie metodą ciekłoscyntylacyjną (LSC) oraz do oznaczania strontu Sr-90;\n•  możliwość wiązania do 50% wody;                                                \n•  wygląd zewnętrzny: gęsta ciecz w ciemnej szklanej butelce; \n•  butelka z możliwością zainstalowania na niej dozownika;",null,null,"op. = 1l",2,null,{"$f":"H10*I10","v":{"v":0,"d":"0.00"}}]
[null,"2.","Scyntylator \n\n","np. Producent: Perkin Elmer \ntyp: High Efficiency Mineral Oil \nnr kat. 6NE9571 \nlub produkt równoważny***\n•  zastosowanie: do pomiaru radonu metodą ciekłoscyntylacyjną (LSC) w wodzie;\n•  wygląd zewnętrzny: oleista ciecz w ciemnej szklanej butelce ;\n•  butelka z możliwością zainstalowania na niej dozownika.\n",null,null,"op. = 1l",2,null,{"v":0,"d":"0.00"}]
[null,"Cena oferty (brutto):",{"$nulls":7},{"$f":"SUM(J10:J11)","v":{"v":0,"d":"0.00"}}]
[null,"*","Należy wpisać nazwę producenta oraz numer katalogowy producenta oferowanego produktu. Niepodanie ww. danych będzie skutkować odrzuceniem oferty, chyba że dane te będą jednoznacznie wynikać z innych dokumentów dołączonych do oferty."]
[null,"**","Zawiera podatek od towarów i usług (VAT) wg obowiązującej stawki oraz koszty wszystkich świadczeń niezbędnych do wykonania zamówienia, w szczególności koszty transportu, ubezpieczenia, opakowania (także kaucjonowanego) itp."]
[null,"***","Wykonawca oferujący produkt innego producenta, o innym numerze katalogowym niż wskazany jako przykład zobowiązany jest dostarczyć certyfikaty potwierdzające równoważność oferowanego produktu z wymaganiami przedstawionymi w tabeli w języku polskim lub angielskim. Wymienione dokumenty nie muszą potwierdzać zastosowania odczynnika oraz wyglądu zewnętrznego."]
[]
[null,"Wymagania dodatkowe:"]
[]
[null,"1.","Okres ważności: min. 12 miesięcy od daty dostawy lub min. ¾ okresu ważności deklarowanego przez producenta (zapisanego w certyfikacie jakości / świadectwie kontroli jakości lub innym dokumencie do danej partii)."]
[null,"2.","Na opakowaniu podana czytelna nazwa odczynnika, zgodna z nazwą podaną w dokumentach, o którym mowa w pkt. 1."]
[null,"3.","Miejsce dostawy:\n","WSSE Kraków  ul. Prądnicka 76, 31-202 Kraków\n"]

{"sheet":"Część 21","index":21,"n_rows":23,"n_cols":10,"rows_kept":23,"merged":[[0,6,0,9],[2,0,2,9],[3,0,3,9],[4,0,4,9],[6,1,8,1],[6,2,8,2],[6,3,8,3],[6,4,6,5],[6,6,8,6],[6,7,8,7],[6,8,8,8],[6,9,8,9],[7,4,8,4],[7,5,8,5],[11,1,11,8],[12,2,12,9],[13,2,13,9],[14,2,14,9],[18,2,18,9],[21,2,21,9]]}
[null,null,"AGZ.272.3.2024",{"$nulls":3},"Załącznik 1A do SWZ"]
[]
["OPIS PRZEDMIOTU ZAMÓWIENIA - KALKULACJA CENY OFERTY"]
[{"$f":"MID(CELL(\"nazwa_pliku\",A1),FIND(\"]\",CELL(\"nazwa_pliku\",A1),1)+1,100)","v":"Część 21"}]
["Wzorzec ogólnego węgla organicznego"]
[{"$f":"HYPERLINK(\"#'Suma'!A1\",\"wstecz\")","v":"wstecz"}]
[null,"L.p.","Przedmiot zamówienia","Szczegółowy opis","Opis oferowanego produktu",null,"Jednostka miary","Ilość","Cena jednostkowa brutto [zł] **","Wartość brutto [zł] "]
[{"$nulls":4},"Producent*","Nr katalogowy producenta*"]
[]
[null,"1.","Wzorzec ogólnego węgla organicznego\n","np. Producent: CPAchem \nnr kat. TOC5.L5 \nlub produkt równoważny***\n• zastosowanie: wzorzec;\n• stężenie 5 mg/l;\n",null,null,"op. = 500ml",3,null,{"$f":"H10*I10","v":{"v":0,"d":"0.00"}}]
[null,"2.","Wzorzec ogólnego węgla organicznego\n","np. Producent: CPAchem \nnr kat. TOC100.L5 \nlub produkt równoważny***\n• zastosowanie: wzorzec;\n• stężenie 100 mg/l;\n• roztwór wodny.\n",null,null,"op. = 500ml",1,null,{"v":0,"d":"0.00"}]
[null,"Cena oferty (brutto):",{"$nulls":7},{"$f":"SUM(J10:J11)","v":{"v":0,"d":"0.00"}}]
[null,"*","Należy wpisać nazwę producenta oraz numer katalogowy producenta oferowanego produktu. Niepodanie ww. danych będzie skutkować odrzuceniem oferty, chyba że dane te będą jednoznacznie wynikać z innych dokumentów dołączonych do oferty."]
[null,"**","Zawiera podatek od towarów i usług (VAT) wg obowiązującej stawki oraz koszty wszystkich świadczeń niezbędnych do wykonania zamówienia, w szczególności koszty transportu, ubezpieczenia, opakowania (także kaucjonowanego) itp."]
[null,"***","Wykonawca oferujący produkt innego producenta, o innym numerze katalogowym niż wskazany jako przykład zobowiązany jest dostarczyć certyfikaty potwierdzające równoważność oferowanego produktu z wymaganiami przedstawionymi w tabeli w języku polskim lub angielskim. Wymienione dokumenty nie muszą potwierdzać zastosowania odczynnika. "]
[]
[null,"Wymagania dodatkowe:"]
[]
[null,"1.","Do OFERTY i do dostawy wymagany certyfikat/świadectwo potwierdzające jakość produktu i wyprodukowanie CRMu/wzorca przez NMI zarejestrowane w bazie BIPM KCDB lub przez akredytowanego producenta materiałów odniesienia w odniesieniu do wymagań normy PN-EN ISO 17034, wydane w języku polskim lub angielskim, w formie papierowej lub dostępny w formie elektronicznej w miejscu wskazanym przez wykonawcę (adres strony www).  Certyfikat/świadectwo musi zawierać: wartość parametru wraz z niepewnością."]
[null,"2.","Dla poz. 1 okres ważności: min. 11 miesięcy od daty dostawy."]
[null,"3.","Dla poz. 2 okres ważności: min. 23 miesiące od daty dostawy."]
[null,"4.","Na opakowaniu podana czytelna nazwa odczynnika, zgodna z nazwą podaną w certyfikacie jakości / świadectwie kontroli jakości lub innym dokumencie, o którym mowa w pkt. 1."]
[null,"5.","Miejsce dostawy:","WSSE w Krakowie: ul. Prądnicka 76, 31-202 Kraków "]

{"sheet":"Część 22","index":22,"n_rows":34,"n_cols":10,"rows_kept":34,"merged":[[0,6,0,9],[2,0,2,9],[3,0,3,9],[4,0,4,9],[6,1,8,1],[6,2,8,2],[6,3,8,3],[6,4,6,5],[6,6,8,6],[6,7,8,7],[6,8,8,8],[6,9,8,9],[7,4,8,4],[7,5,8,5],[21,1,21,8],[22,2,22,9],[23,2,23,9],[27,2,27,9]]}
[null,null,"AGZ.272.3.2024",{"$nulls":3},"Załącznik 1A do SWZ"]
[]
["OPIS PRZEDMIOTU ZAMÓWIENIA - KALKULACJA CENY OFERTY"]
[{"$f":"MID(CELL(\"nazwa_pliku\",A1),FIND(\"]\",CELL(\"nazwa_pliku\",A1),1)+1,100)","v":"Część 22"}]
["Wzorce do przewodnictwa"]
[{"$f":"HYPERLINK(\"#'Suma'!A1\",\"wstecz\")","v":"wstecz"}]
[null,"L.p.","Przedmiot zamówienia","Szczegółowy opis","Opis oferowanego produktu",null,"Jednostka miary","Ilość","Cena jednostkowa brutto [zł] **","Wartość brutto [zł] "]
[{"$nulls":4},"Producent*","Nr katalogowy producenta*"]
[]
[null,"1.","Wzorzec konduktometryczny\n10 µS/cm \n","• zastosowanie: do przewodnictwa; \n• przewodność w 25oC - od 9 do 11 µS/cm.\n\n",null,null,"op. = \n500ml",2,null,{"$f":"H10*I10","v":{"v":0,"d":"0.00"}}]
[null,"2.","Wzorzec konduktometryczny \n10 µS/cm\n","• zastosowanie: do przewodnictwa; \n• przewodność w 25°C - od 9 do 11 µS/cm.",null,null,"op. = \n500ml",1,null,{"v":0,"d":"0.00"}]
[null,"3.","Wzorzec konduktometryczny\n147 µS/cm\n","• zastosowanie: do przewodnictwa; \n• przewodność w 25oC - od 140 do 150 µS/cm.\n",null,null,"op. = \n500ml",4,null,{"v":0,"d":"0.00"}]
[null,"4.","Wzorzec konduktometryczny\n147 µS/cm\n","• zastosowanie: do przewodnictwa; \n• przewodność w 25oC - od 140 do 150 µS/cm.\n",null,null,"op. = \n500ml",2,null,{"v":0,"d":"0.00"}]
[null,"5.","Wzorzec konduktometryczny\n500 µS/cm\n","• zastosowanie : do przewodnictwa, \n• przewodność w 25oC - od 480 do 520 µS/cm;\n",null,null,"op. = \n500ml",3,null,{"v":0,"d":"0.00"}]
[null,"6.","Wzorzec konduktometryczny\n500 µS/cm\n","• zastosowanie : do przewodnictwa, \n• przewodność w 25oC - od 480 do 520 µS/cm.",null,null,"op. = \n500ml",3,null,{"v":0,"d":"0.00"}]
[null,"7.","Wzorzec konduktometryczny 500 µS/cm\n","• zastosowanie: do przewodnictwa, \n• przewodność w 25°C - od 480 do 520 µS/cm.\n",null,null,"op. = \n500ml",3,null,{"v":0,"d":"0.00"}]
[null,"8.","Wzorzec konduktometryczny\n1413µS/cm\n","• zastosowanie: do przewodnictwa, \n• przewodność w 25oC - od 1410 do 1416 µS/cm;\n",null,null,"op. = \n500ml",1,null,{"v":0,"d":"0.00"}]
[null,"9.","Wzorzec konduktometryczny\n1413µS/cm\n","• zastosowanie: do przewodnictwa, \n• przewodność w 25oC - od 1410 do 1416 µS/cm;\n",null,null,"op. = \n500ml",1,null,{"v":0,"d":"0.00"}]
[null,"10.","Wzorzec konduktometryczny\n2500 µS/cm","• zastosowanie: do przewodnictwa; \n• przewodność w 25oC - od 2400 do 2600 µS/cm.\n",null,null,"op. = \n500ml",1,null,{"v":0,"d":"0.00"}]
[null,"11.","Wzorzec konduktometryczny\n2500 µS/cm","• zastosowanie: do przewodnictwa; \n• przewodność w 25oC - od 2400 do 2600 µS/cm.\n",null,null,"op. = \n500ml",1,null,{"v":0,"d":"0.00"}]
[null,"12.","Wzorzec konduktometryczny 5000 µS/cm","• zastosowanie: do przewodnictwa; \n• przewodność w 25oC - od 4900 do 5100  µS/cm;\n",null,null,"op. = \n500ml",1,null,{"v":0,"d":"0.00"}]
[null,"Cena oferty (brutto):",{"$nulls":7},{"$f":"SUM(J10:J21)","v":{"v":0,"d":"0.00"}}]
[null,"*","Należy wpisać nazwę producenta oraz numer katalogowy producenta oferowanego produktu. Niepodanie ww. danych będzie skutkować odrzuceniem oferty, chyba że dane te będą jednoznacznie wynikać z innych dokumentów dołączonych do oferty."]
[null,"**","Zawiera podatek od towarów i usług (VAT) wg obowiązującej stawki oraz koszty wszystkich świadczeń niezbędnych do wykonania zamówienia, w szczególności koszty transportu, ubezpieczenia, opakowania (także kaucjonowanego) itp."]
[]
[null,"Wymagania dodatkowe:"]
[]
[null,"1.","Do OFERTY i dostawy wymagany certyfikat/świadectwo potwierdzające jakość produktu i wyprodukowanie CRMu/wzorca przez NMI zarejestrowane w bazie BIPM KCDB lub przez akredytowanego  producenta materiałów odniesienia w odniesieniu do wymagań normy PN-EN ISO 17034, wydane w języku polskim lub angielskim, w formie papierowej lub dostępny w formie elektronicznej w miejscu wskazanym przez wykonawcę (adres strony www).  Certyfikat/świadectwo musi zawierać: wartość parametru wraz z niepewnością."]
[null,"2.","Dla poz. 1,2  okres ważności: min. 5 miesięcy od daty dostawy."]
[null,"3.","Dla poz. 3-12 okres ważności: min. 11 miesięcy od daty dostawy. "]
[null,"4.","Na opakowaniu podana czytelna nazwa wzorca, zgodna z nazwą podaną na certyfikacie/ świadectwie, o którym mowa w pkt.2."]
[null,"5.","Miejsce dostawy:\n","WSSE Kraków  ul. Prądnicka 76, 31-202 Kraków - dla poz. 1, 4, 5, 8, 10, 12\n"]
[{"$nulls":3},"WSSE Oddział Laboratoryjny w Tarnowie  ul. Mościckiego 10,  33-100 Tarnów - dla poz. 2, 7, 9, 11\n"]
[{"$nulls":3},"WSSE Oddział Laboratoryjny w Wadowicach  ul. Teatralna 2, 34-100 Wadowice - dla poz. 3, 6"]

{"sheet":"Część 23","index":23,"n_rows":35,"n_cols":10,"rows_kept":35,"merged":[[0,6,0,9],[2,0,2,9],[3,0,3,9],[4,0,4,9],[6,1,8,1],[6,2,8,2],[6,3,8,3],[6,4,6,5],[6,6,8,6],[6,7,8,7],[6,8,8,8],[6,9,8,9],[7,4,8,4],[7,5,8,5],[15,1,15,8],[16,2,16,9],[17,2,17,9],[21,2,21,9],[22,2,22,6],[23,2,23,6],[24,2,24,6],[25,2,25,9],[30,2,30,9],[33,2,33,9]]}
[null,null,"AGZ.272.3.2024",{"$nulls":3},"Załącznik 1A do SWZ"]
[]
["OPIS PRZEDMIOTU ZAMÓWIENIA - KALKULACJA CENY OFERTY"]
[{"$f":"MID(CELL(\"nazwa_pliku\",A1),FIND(\"]\",CELL(\"nazwa_pliku\",A1),1)+1,100)","v":"Część 23"}]
["Kolumienki do mikotoksyn"]
[{"$f":"HYPERLINK(\"#'Suma'!A1\",\"wstecz\")","v":"wstecz"}]
[null,"L.p.","Przedmiot zamówienia","Szczegółowy opis","Opis oferowanego produktu",null,"Jednostka miary","Ilość","Cena jednostkowa brutto [zł] **","Wartość brutto [zł] "]
[{"$nulls":4},"Producent*","Nr katalogowy producenta*"]
[]
[null,"1.","Kolumienki powinowactwa immunologicznego do przygotowania próbek przed analizą  aflatoksyn: B1, B2, G1, G2\n\n","• zastosowanie: kolumny do przygotowania próbek przed analizą aflatoksyn metodą HPLC w różnych produktach spożywczych; \n• zastosowanie przeciwciał monoklonalnych przeciw aflatoksynom B1, B2, G1, G2;\n• pojemność kolumny 1 ml;    \n• odzysk aflatoksyn: 85 -110 % dla roztworu standardowego 20 ng aflatoksyn(B1, B2, G1, G2)  w 10 ml 10% roztworu metanolu.\n",null,null,"op. = 50szt.",2,null,{"$f":"H10*I10","v":{"v":0,"d":"0.00"}}]
[null,"2.","Kolumienki powinowactwa immunologicznego do przygotowania próbek przed analizą  aflatoksyn: M1\n\n\n","• zastosowanie: kolumny do przygotowania próbek przed analizą aflatoksyn M1 metodą HPLC w próbkach mleka i produktach mlecznych; \n• zastosowanie przeciwciał monoklonalnych przeciw aflatoksynom M1;  \n• pojemnośc koumny 3 ml;\n• odzysk aflatoksyn M1: 80 -110 % dla roztworu standardowego 4 ng aflatoksyny M1 w 25 ml 10% wodnego roztworu próbki mleka.\n",null,null,"op. = 10szt.",1,null,{"v":0,"d":"0.00"}]
[null,"3.","Kolumienki powinowactwa immunologicznego do przygotowania próbek przed analizą Deoxyniwalenolu\n\n\n","• zastosowanie: kolumny do przygotowania próbek przed analizą deoxynivalenolu metodami HPLC,     w próbkach zbóż oraz produktach zbożowych dla małych dzieci;\n• zastosowanie przeciwciał monoklonalnych przeciw deoxynivalenolowi;    \n• pojemnośc kolumny 3 ml;\n• odzysk deoxynivalenolu: 85 -110 % dla roztworu standardowego 500 ng deoxynivalenolu w 2 ml wody.\n",null,null,"op. = 50 szt",2,null,{"v":0,"d":"0.00"}]
[null,"4.","Kolumienki powinowactwa immunologicznego do przygotowania próbek przed analizą fumonizyn\n\n\n","• zastosowanie: kolumny do przygotowania próbek przed analizą Fumonizyn metodą HPLC w produktach takich jak płatki kukurydziane, popcorn oraz żywność dla dzieci;\n• zastosowanie: przeciwciał monoklonalnych przeciw fumonizynom B1,B2;\n• pojemnośc kolumny 3 ml;\n• odzysk fumonizyny: 85 -110 % dla roztworu standardowego 2000 ng w 10 ml    r-ru (80:5:5:10) PBS: acetonitryl: metanol: woda.",null,null,"op. = 50szt.",1,null,{"v":0,"d":"0.00"}]
[null,"5.","Kolumienki powinowactwa immunologicznego do przygotowania próbek przed analizą ochratoksyny A\n\n\n","• zastosowanie: kolumny do przygotowania próbek przed analizą ochratoksyny A metodami HPLC w szerokim asortymencie produktów;\n• zastosowanie przeciwciał monoklonalnych przeciw ochratoksynie A;\n• pojemnośc kolumny 3 ml;\n• odzysk ochratoksyny A: 85 -110 % dla roztworu standardowego 100 ng ochratoksyny A w 48 ml 5 % acetonitrylu w PBS.\n",null,null,"op. = 50szt.",3,null,{"v":0,"d":"0.00"}]
[null,"6.","Kolumienki powinowactwa immunologicznego do przygotowania próbek przed analizą zearalenonu\n\n\n","• zastosowanie: kolumny do przygotowania próbek przed analizą zearalenonu metodami HPLC w próbkach zbóż oraz paszach;\n• zastosowanie przeciwciał monoklonalnych przeciw zearalenonowi;\n• pojemność kolumny 3 ml; \n• odzysk zearalenonu: 85 -110 % dla roztworu standardowego 75 ng zearalenonu w 10 ml 15 % acetonitrylu w PBS.\n",null,null,"op. = 50szt.",1,null,{"v":0,"d":"0.00"}]
[null,"Cena oferty (brutto):",{"$nulls":7},{"$f":"SUM(J10:J15)","v":{"v":0,"d":"0.00"}}]
[null,"*","Należy wpisać nazwę producenta oraz numer katalogowy producenta oferowanego produktu. Niepodanie ww. danych będzie skutkować odrzuceniem oferty, chyba że dane te będą jednoznacznie wynikać z innych dokumentów dołączonych do oferty."]
[null,"**","Zawiera podatek od towarów i usług (VAT) wg obowiązującej stawki oraz koszty wszystkich świadczeń niezbędnych do wykonania zamówienia, w szczególności koszty transportu, ubezpieczenia, opakowania (także kaucjonowanego) itp."]
[]
[null,"Wymagania dodatkowe:"]
[]
[null,"1.","Do dostawy wymagany certyfikat jakości /świadectwo kontroli jakości lub inny dokument potwierdzający jakości produktu w języku polskim lub angielskim w formie papierowej lub dostępny w formie elektronicznej w miejscu wskazanym przez wykonawcę (adres strony www). "]
[null,"2.","Dla poz.6 okres ważności: min. 5 miesięcy od daty dostawy. "]
[null,null,"Dla poz.2 okres ważności: min. 6 miesięcy od daty dostawy. "]
[null,null,"Dla poz. 1, 3-5  okres ważności: min. 8 miesięcy od daty dostawy. "]
[null,"3.","Do oferty i dostawy wymagane aplikacje (opis przygotowania i wykonania analizy z użyciem kolumienek dla wymaganej matrycy)  w języku polskim do oznaczenia poszczególnych mikotoksyn. Zamawiajacy dopuszcza aplikacje w wersji elektronicznej potwierdzone podpisem elektronicznym."]
[null,null," - dla poz. 1 matryce: suszone owoce, przyprawy:pieprz, kurkuma, papryka, gałka muszkatałowa, orzechy, produkty zbożowe"]
[null,null," - dla poz. 2 matryce: mleko i produkty mleczne "]
[null,null," - dla poz. 3 matryce: produkty zbożowe, żywność dla dzieci."]
[null,null," - dla poz. 4 matryce: maka kukurydziana, płatki kukurydziane, żywność dla dzieci, "]
[null,null," - dla poz. 5  matryce: wina, produkty zbożowe, kawa instant i palona, przyprawy: papryka, gałka musztakałowa, lukrecja, suszone owoce,                                 \n "]
[null,null," - dla poz. 6 matryce: produkty zbożowe"]
[null,"4.","Do oferty i do dostawy do każdej serii wymagany certyfikat potwierdzający pojemność kolumienek w języku polskim lub angielskim."]
[null,"5.","Na opakowaniu podana czytelna nazwa odczynnika, zgodna z nazwą podaną w certyfikacie jakości / świadectwie kontroli jakości lub innym dokumencie, o którym mowa w pkt. 1."]
[null,"6.","Miejsce dostawy:\n","WSSE Kraków  ul. Prądnicka 76, 31-202 Kraków \n"]

{"sheet":"Część 24","index":24,"n_rows":27,"n_cols":10,"rows_kept":27,"merged":[[0,6,0,9],[2,0,2,9],[3,0,3,9],[4,0,4,9],[6,1,8,1],[6,2,8,2],[6,3,8,3],[6,4,6,5],[6,6,8,6],[6,7,8,7],[6,8,8,8],[6,9,8,9],[7,4,8,4],[7,5,8,5],[15,1,15,8],[16,2,16,9],[17,2,17,9],[18,2,18,9],[21,2,21,9],[22,2,22,9],[23,2,23,9]]}
[null,null,"AGZ.272.3.2024",{"$nulls":3},"Załącznik 1A do SWZ - zmiana z dnia 3.04.2024 r."]
[]
["OPIS PRZEDMIOTU ZAMÓWIENIA - KALKULACJA CENY OFERTY"]
[{"$f":"MID(CELL(\"nazwa_pliku\",A1),FIND(\"]\",CELL(\"nazwa_pliku\",A1),1)+1,100)","v":"Część 24"}]
["Wzorce do spektrofotometrii"]
[{"$f":"HYPERLINK(\"#'Suma'!A1\",\"wstecz\")","v":"wstecz"}]
[null,"L.p.","Przedmiot zamówienia","Szczegółowy opis","Opis oferowanego produktu",null,"Jednostka miary","Ilość","Cena jednostkowa brutto [zł] **","Wartość brutto [zł] "]
[{"$nulls":4},"Producent*","Nr katalogowy producenta*"]
[]
[null,"1.","Roztwór wzorcowy NaCl\n","np. Producent: OUM               \nNr kat. 21.1.b                     \nlub produkt równoważny***\n• stężenie 20 mmol/l;\n• roztwór wodny.\n",null,null,"op. = \n50ml",1,null,{"$f":"H10*I10","v":{"v":0,"d":"0.00"}}]
[null,"2.","Wzorcowy roztwór wodny jonów azotynowych NO2-\n","np. Producent: OUM               \nNr kat. 13.03e                     \nlub produkt równoważny***\n• stężenie 1000 mg/dm3;\n• roztwór wodny;\n• certyfikowany materiał odniesienia akredytowany przez PCA.\n",null,null,"op. = \n50ml",1,null,{"v":0,"d":"0.00"}]
[null,"3.","Wzorzec jonów fosforanowych PO43-\n","np. Producent: OUM               \nnr kat. 13.13                             \nlub produkt równoważny***\n• stężenie 1 g/l;\n• roztwór wodny.\n",null,null,"op. = \n50ml",1,null,{"v":0,"d":"0.00"}]
[null,"4.","Wzorzec twardości ogólnej wody\n","np. Producent: OUM                     \nnr kat. 20.AF.1c                     \nlub produkt równoważny***\n• stężenie 10,00 mmol/l CaCO3\n• roztwór wodny.\n",null,null,"op. = 100ml",1,null,{"v":0,"d":"0.00"}]
[null,"5.","Wzorzec twardości ogólnej wody\n","np. Producent: OUM                 \nnr kat. 20.AF.1b                   \nlub równoważny***\n• stężenie 35,7 mmol/l CaCO3 (2000d st. niemieckich);\n• roztwór wodny.\n",null,null,"op. = 100ml",2,null,{"v":0,"d":"0.00"}]
[null,"6.","Wzorzec jonów żelaza Fe3+\n","np. Producent: OUM               \nnr kat. 13.32.b                            \nlub produkt równoważny***\n• stężenie 1 g/l;\n• roztwór wodny.\n",null,null,"op. = \n50ml",1,null,{"v":0,"d":"0.00"}]
[null,"Cena oferty (brutto):",{"$nulls":7},{"$f":"SUM(J10:J15)","v":{"v":0,"d":"0.00"}}]
[null,"*","Należy wpisać nazwę producenta oraz numer katalogowy producenta oferowanego produktu. Niepodanie ww. danych będzie skutkować odrzuceniem oferty, chyba że dane te będą jednoznacznie wynikać z innych dokumentów dołączonych do oferty."]
[null,"**","Zawiera podatek od towarów i usług (VAT) wg obowiązującej stawki oraz koszty wszystkich świadczeń niezbędnych do wykonania zamówienia, w szczególności koszty transportu, ubezpieczenia, opakowania (także kaucjonowanego) itp."]
[null,"***","Wykonawca oferujący produkt innego producenta, o innym numerze katalogowym niż wskazany jako przykład zobowiązany jest dostarczyć certyfikaty potwierdzające równoważność oferowanego produktu z wymaganiami przedstawionymi w tabeli w języku polskim lub angielskim. Wymienione dokumenty nie muszą potwierdzać zastosowania odczynnika."]
[]
[null,"Wymagania dodatkowe:"]
[null,"1.","Do OFERTY i dostawy wymagany certyfikat/świadectwo potwierdzające jakość produktu i wyprodukowanie CRMu/wzorca przez NMI zarejestrowane w bazie BIPM KCDB lub przez akredytowanego  producenta materiałów odniesienia w odniesieniu do wymagań normy PN-EN ISO 17034, wydane w języku polskim lub angielskim, w formie papierowej lub dostępny w formie elektronicznej w miejscu wskazanym przez wykonawcę (adres strony www).  Certyfikat/świadectwo musi zawierać: wartość parametru wraz z niepewnością."]
[null,"2.","Dla poz. 1, 3-6 okres ważności: min. 12 miesięcy od daty dostawy lub  min. ¾ okresu ważności deklarowanego przez producenta (zapisanego w certyfikacie / świadectwie, o którym mowa w pkt. 1)."]
[null,"3.","Dla poz. 2 okres ważności: min. 5 miesięcy od daty dostawy lub  min. ¾ okresu ważności deklarowanego przez producenta (zapisanego w certyfikacie/ świadectwie do danej partii, o którym mowa w pkt. 1)."]
[null,"4.","Na opakowaniu podana czytelna nazwa wzorca, zgodna z nazwą podaną na certyfikacie /świadectwie, o którym mowa w pkt. 1."]
[null,"5.","Miejsce dostawy:\n","WSSE Kraków  ul. Prądnicka 76, 31-202 Kraków - dla poz. 2\n"]
[{"$nulls":3},"WSSE Oddział Laboratoryjny w Tarnowie  ul. Mościckiego 10,  33-100 Tarnów - dla poz.  1, 3-6\n"]

{"sheet":"Część 25","index":25,"n_rows":30,"n_cols":10,"rows_kept":30,"merged":[[0,6,0,9],[2,0,2,9],[3,0,3,9],[4,0,4,9],[6,1,8,1],[6,2,8,2],[6,3,8,3],[6,4,6,5],[6,6,8,6],[6,7,8,7],[6,8,8,8],[6,9,8,9],[7,4,8,4],[7,5,8,5],[17,1,17,8],[18,2,18,9],[19,2,19,9],[23,2,23,9],[24,2,24,9],[25,2,25,9]]}
[null,null,"AGZ.272.3.2024",{"$nulls":3},"Załącznik 1A do SWZ"]
[]
["OPIS PRZEDMIOTU ZAMÓWIENIA - KALKULACJA CENY OFERTY"]
[{"$f":"MID(CELL(\"nazwa_pliku\",A1),FIND(\"]\",CELL(\"nazwa_pliku\",A1),1)+1,100)","v":"Część 25"}]
["Wzorce mętności"]
[{"$f":"HYPERLINK(\"#'Suma'!A1\",\"wstecz\")","v":"wstecz"}]
[null,"L.p.","Przedmiot zamówienia","Szczegółowy opis","Opis oferowanego produktu",null,"Jednostka miary","Ilość","Cena jednostkowa brutto [zł] **","Wartość brutto [zł] "]
[{"$nulls":4},"Producent*","Nr katalogowy producenta*"]
[]
[null,"1.","Wzorzec mętności \n1 NTU","• zawartość: 1 ± 0,1 NTU;\n• wzorzec formazynowy;\n• stabilizowany.\n",null,null,"op. = \n500 ml",3,null,{"$f":"H10*I10","v":{"v":0,"d":"0.00"}}]
[null,"2.","Wzorzec mętności \n1 NTU","• zawartość: 1 ± 0,1 NTU;\n• wzorzec formazynowy;\n• stabilizowany.\n",null,null,"op. = \n500 ml",4,null,{"v":0,"d":"0.00"}]
[null,"3.","Wzorzec mętności \n1 NTU","• zawartość: 1 ± 0,1 NTU;\n• wzorzec formazynowy;\n• stabilizowany.\n",null,null,"op. = \n500 ml",3,null,{"v":0,"d":"0.00"}]
[null,"4.","Wzorzec mętności\n10 NTU","• zawartość: 10 ± 0,5 NTU;\n• wzorzec formazynowy;\n• stabilizowany.\n",null,null,"op. = \n500 ml",1,null,{"v":0,"d":"0.00"}]
[null,"5.","Wzorzec mętności\n10 NTU","• zawartość: 10 ± 0,5 NTU;\n• wzorzec formazynowy;\n• stabilizowany.\n",null,null,"op. = \n500 ml",1,null,{"v":0,"d":"0.00"}]
[null,"6.","Wzorzec mętności\n10 NTU\n","• zawartość: 10 ± 0,5 NTU;\n• wzorzec formazynowy;\n• stabilizowany.\n",null,null,"op. = \n500 ml",2,null,{"v":0,"d":"0.00"}]
[null,"7.","Wzorzec mętności\n100 NTU","• zawartość: 100 ± 5 NTU;\n• wzorzec formazynowy;\n• stabilizowany.\n",null,null,"op. = \n500 ml",1,null,{"v":0,"d":"0.00"}]
[null,"8.","Wzorzec mętności\n100 NTU","• zawartość: 100 ± 5 NTU;\n• wzorzec formazynowy;\n• stabilizowany.\n",null,null,"op. = \n500 ml",1,null,{"v":0,"d":"0.00"}]
[null,"Cena oferty (brutto):",{"$nulls":7},{"$f":"SUM(J10:J17)","v":{"v":0,"d":"0.00"}}]
[null,"*","Należy wpisać nazwę producenta oraz numer katalogowy producenta oferowanego produktu. Niepodanie ww. danych będzie skutkować odrzuceniem oferty, chyba że dane te będą jednoznacznie wynikać z innych dokumentów dołączonych do oferty."]
[null,"**","Zawiera podatek od towarów i usług (VAT) wg obowiązującej stawki oraz koszty wszystkich świadczeń niezbędnych do wykonania zamówienia, w szczególności koszty transportu, ubezpieczenia, opakowania (także kaucjonowanego) itp."]
[]
[null,"Wymagania dodatkowe:"]
[]
[null,"1.","Do OFERTY wymagany certyfikat/świadectwo potwierdzające jakość produktu i wyprodukowanie CRMu/wzorca przez NMI zarejestrowane w bazie BIPM KCDB lub przez akredytowanego  producenta materiałów odniesienia w odniesieniu do wymagań normy PN-EN ISO 17034, wydane w języku polskim lub angielskim, w formie papierowej lub dostępny w formie elektronicznej w miejscu wskazanym przez wykonawcę (adres strony www). Certyfikat/świadectwo musi zawierać: wartość parametru wraz z niepewnością."]
[null,"2.","Do dostawy wymagany certyfikat/świadectwo potwierdzające jakość produktu i wyprodukowanie CRMu/wzorca przez NMI zarejestrowane w bazie BIPM KCDB lub przez akredytowanego  producenta materiałów odniesienia w odniesieniu do wymagań normy PN-EN ISO 17034, wydane w języku polskim lub angielskim, w formie papierowej lub dostępny w formie elektronicznej w miejscu wskazanym przez wykonawcę (adres strony www). Certyfikat/świadectwo musi zawierać: wartość parametru wraz z niepewnością."]
[null,"3.","Okres ważności minimum 12 miesięcy od daty dostawy."]
[null,"4.","Na opakowaniu podana czytelna nazwa wzorca, zgodna z nazwą podaną na certyfikacie/ świadectwie, o którym mowa w pkt. 1."]
[null,"5.","Miejsce dostawy:\n","WSSE Kraków  ul. Prądnicka 76, 31-202 Kraków - dla poz. 1, 6"]
[{"$nulls":3},"WSSE Oddział Laboratoryjny w Tarnowie  ul. Mościckiego 10,  33-100 Tarnów - dla poz. 3, 5, 8"]
[{"$nulls":3},"WSSE Oddział Laboratoryjny w Wadowicach  ul. Teatralna 2, 34-100 Wadowice - dla poz. 2, 4, 7"]

{"sheet":"Część 26","index":26,"n_rows":24,"n_cols":10,"rows_kept":24,"merged":[[0,6,0,9],[2,0,2,9],[3,0,3,9],[4,0,4,9],[6,1,8,1],[6,2,8,2],[6,3,8,3],[6,4,6,5],[6,6,8,6],[6,7,8,7],[6,8,8,8],[6,9,8,9],[7,4,8,4],[7,5,8,5],[12,1,12,8],[13,2,13,9],[14,2,14,9],[18,2,18,9]]}
[null,null,"AGZ.272.3.2024",{"$nulls":3},"Załącznik 1A do SWZ"]
[]
["OPIS PRZEDMIOTU ZAMÓWIENIA - KALKULACJA CENY OFERTY"]
[{"$f":"MID(CELL(\"nazwa_pliku\",A1),FIND(\"]\",CELL(\"nazwa_pliku\",A1),1)+1,100)","v":"Część 26"}]
["Zestaw kalibracyjny do mętności"]
[{"$f":"HYPERLINK(\"#'Suma'!A1\",\"wstecz\")","v":"wstecz"}]
[null,"L.p.","Przedmiot zamówienia","Szczegółowy opis","Opis oferowanego produktu",null,"Jednostka miary","Ilość","Cena jednostkowa brutto [zł] **","Wartość brutto [zł] "]
[{"$nulls":4},"Producent*","Nr katalogowy producenta*"]
[]
[null,"1.","Zestaw kalibracyjny do mętności","• zastosowanie: do mętnościomierza typu TURB 430 IR;\n• zestaw zawiera komplet 3 wzorców: \n0,02 NTU; 10,0 NTU; 1000 NTU. \n",null,null,"zestaw",1,null,{"$f":"H10*I10","v":{"v":0,"d":"0.00"}}]
[null,"2.","Zestaw kalibracyjny do mętności","• zastosowania: do mętnościomierza typu TURB 550 IR oraz CyberScan IR TB 1000;\n• zestaw zawiera komplet 3 wzorców: \n0,02 NTU; 10,0 NTU; 1000 NTU. \n",null,null,"zestaw",1,null,{"v":0,"d":"0.00"}]
[null,"3.","Zestaw kalibracyjny do mętności","• zastosowanie: do mętnościomierza typu TURB 550 IR oraz CyberScan IR TB 1000;\n• zestaw zawiera komplet 3 wzorców: \n0,02 NTU; 10,0 NTU; 1000 NTU. \n",null,null,"zestaw",1,null,{"v":0,"d":"0.00"}]
[null,"Cena oferty (brutto):",{"$nulls":7},{"$f":"SUM(J10:J12)","v":{"v":0,"d":"0.00"}}]
[null,"*","Należy wpisać nazwę producenta oraz numer katalogowy producenta oferowanego produktu. Niepodanie ww. danych będzie skutkować odrzuceniem oferty, chyba że dane te będą jednoznacznie wynikać z innych dokumentów dołączonych do oferty."]
[null,"**","Zawiera podatek od towarów i usług (VAT) wg obowiązującej stawki oraz koszty wszystkich świadczeń niezbędnych do wykonania zamówienia, w szczególności koszty transportu, ubezpieczenia, opakowania (także kaucjonowanego) itp."]
[]
[null,"Wymagania dodatkowe:"]
[]
[null,"1.","Do dostawy wymagany certyfikat/świadectwo potwierdzające jakość produktu zawierające wartość parametru wraz z niepewnością, wydane w języku polskim lub angielskim, w formie papierowej lub dostępne w formie elektronicznej w miejscu wskazanym przez wykonawcę (adres strony www).  "]
[null,"2.","Okres ważności: min. 12 miesięcy od daty dostawy lub min. ¾ okresu ważności deklarowanego przez producenta (zapisanego w certyfikacie / świadectwie, o którym mowa w pkt. 1)."]
[null,"3.","Na opakowaniu podana czytelna nazwa wzorca, zgodna z nazwą podaną na certyfikacie/świadectwie, o którym mowa w pkt. 1."]
[null,"4.","Miejsce dostawy:\n","WSSE Krakowie ul. Prądnicka 76, 31-202 Kraków - dla poz. 1"]
[{"$nulls":3},"WSSE Oddział Laboratoryjny w Tarnowie ul. Mościckiego 10, 33-100 Tarnów - dla poz. 3"]
[{"$nulls":3},"WSSE Oddział Laboratoryjny w Wadowicach  ul. Teatralna 2, 34-100 Wadowice - dla poz. 2"]

{"sheet":"Część 27","index":27,"n_rows":21,"n_cols":10,"rows_kept":21,"merged":[[0,6,0,9],[2,0,2,9],[3,0,3,9],[4,0,4,9],[6,1,8,1],[6,2,8,2],[6,3,8,3],[6,4,6,5],[6,6,8,6],[6,7,8,7],[6,8,8,8],[6,9,8,9],[7,4,8,4],[7,5,8,5],[10,1,10,8],[11,2,11,9],[12,2,12,9],[13,2,13,9],[17,2,17,9],[18,2,18,6],[19,2,19,9]]}
[null,null,"AGZ.272.3.2024",{"$nulls":3},"Załącznik 1A do SWZ"]
[]
["OPIS PRZEDMIOTU ZAMÓWIENIA - KALKULACJA CENY OFERTY"]
[{"$f":"MID(CELL(\"nazwa_pliku\",A1),FIND(\"]\",CELL(\"nazwa_pliku\",A1),1)+1,100)","v":"Część 27"}]
["Zestaw kuwetowy do oznaczania cyjanków w wodzie"]
[{"$f":"HYPERLINK(\"#'Suma'!A1\",\"wstecz\")","v":"wstecz"}]
[null,"L.p.","Przedmiot zamówienia","Szczegółowy opis","Opis oferowanego produktu",null,"Jednostka miary","Ilość","Cena jednostkowa brutto [zł] **","Wartość brutto [zł] "]
[{"$nulls":4},"Producent*","Nr katalogowy producenta*"]
[]
[null,"1.","Zestaw kuwetowy do oznaczania cyjanków w wodzie  ","np. Producent HACH\nnr kat. LCK 315 \nlub produkt równoważny***\n• zastosowanie: do oznaczania cyjanków w wodzie;\n• zakres oznaczeń 0,01-0,6 mg/l CN-;\n• pasujący do spektrofotometrów firmy HACH.\n",null,null,"op. = 25szt.",15,null,{"$f":"H10*I10","v":{"v":0,"d":"0.00"}}]
[null,"Cena oferty (brutto):",{"$nulls":7},{"$f":"SUM(J10:J10)","v":{"v":0,"d":"0.00"}}]
[null,"*","Należy wpisać nazwę producenta oraz numer katalogowy producenta oferowanego produktu. Niepodanie ww. danych będzie skutkować odrzuceniem oferty, chyba że dane te będą jednoznacznie wynikać z innych dokumentów dołączonych do oferty."]
[null,"**","Zawiera podatek od towarów i usług (VAT) wg obowiązującej stawki oraz koszty wszystkich świadczeń niezbędnych do wykonania zamówienia, w szczególności koszty transportu, ubezpieczenia, opakowania (także kaucjonowanego) itp."]
[null,"***","Wykonawca oferujący produkt innego producenta, o innym numerze katalogowym niż wskazany jako przykład zobowiązany jest dostarczyć certyfikaty potwierdzające równoważność oferowanego produktu z wymaganiami przedstawionymi w tabeli w języku polskim lub angielskim. Wymienione dokumenty nie muszą potwierdzać zastosowania odczynnika."]
[]
[null,"Wymagania dodatkowe:"]
[]
[null,"1.","Do dostawy wymagany certyfikat jakości /świadectwo kontroli jakości lub inny dokument potwierdzający spełnienie wymagań w języku polskim lub angielskim w formie papierowej lub dostępny w formie elektronicznej w miejscu wskazanym przez wykonawcę (adres strony www) oraz karta charakterystyki substancji niebezpiecznej. Wymienione dokumenty nie muszą potwierdzać zastosowania."]
[null,"2.","Okres ważności: min. 18 miesięcy od daty dostawy."]
[null,"3.","Na opakowaniu podana czytelna nazwa odczynnika, zgodna z nazwą podaną w certyfikacie jakości / świadectwie kontroli jakości lub innym dokumencie, o którym mowa w pkt. 1."]
[null,"4.","Miejsce dostawy:\n","WSSE Kraków  ul. Prądnicka 76, 31-202 Kraków \n"]

{"sheet":"Część 28","index":28,"n_rows":22,"n_cols":10,"rows_kept":22,"merged":[[0,6,0,9],[2,0,2,9],[3,0,3,9],[4,0,4,9],[6,1,8,1],[6,2,8,2],[6,3,8,3],[6,4,6,5],[6,6,8,6],[6,7,8,7],[6,8,8,8],[6,9,8,9],[7,4,8,4],[7,5,8,5],[9,1,10,1],[9,2,10,2],[9,6,10,6],[9,7,10,7],[9,8,10,8],[9,9,10,9],[11,1,11,8],[12,2,12,9],[13,2,13,9],[14,2,14,9],[18,2,18,9],[19,2,19,9]]}
[null,null,"AGZ.272.3.2024",{"$nulls":3},"Załącznik 1A do SWZ"]
[]
["OPIS PRZEDMIOTU ZAMÓWIENIA - KALKULACJA CENY OFERTY"]
[{"$f":"MID(CELL(\"nazwa_pliku\",A1),FIND(\"]\",CELL(\"nazwa_pliku\",A1),1)+1,100)","v":"Część 28"}]
["Kolumienki do WWA"]
[{"$f":"HYPERLINK(\"#'Suma'!A1\",\"wstecz\")","v":"wstecz"}]
[null,"L.p.","Przedmiot zamówienia","Szczegółowy opis","Opis oferowanego produktu",null,"Jednostka miary","Ilość","Cena jednostkowa brutto [zł] **","Wartość brutto [zł] "]
[{"$nulls":4},"Producent*","Nr katalogowy producenta*"]
[]
[null,"1.","Kolumienka dwuwarstwowe  \nSPE do oznaczania WWA w wodzie\n","np Producent: SiliCycle \nnr kat. SP2-R0610030B-06T \nlub produkt równoważny***\n• dwuwarstwowe do WWA\n• pojemność kolumienki  6 ml\n• masa złoża: 1,5 g;\n• kształt cząstek: Nieregularny\n\nSpecyfikacja górnej warstwy aminowej\n- specyficzne pole powierzchni 480 - 550 m2/g,\n- średnica porów 55-65 Å,\n- objętość porów 0,7 – 0,85 mL/g,\n- zawartość azotu co najmniej 1,68 %,\n- zawartość substancji lotnych w 110oC – nie więcej niż 4 %,\n- ładowność molekularna nie mniej niż 1,2 mmol/g, \n- pokrycie powierzchni: nie mniej niż 2,67 μmol/m2,\n- END-CAPPING- Tak,\n\n",null,null,"op.= \n50 szt.",8,null,{"$f":"H10*I10","v":{"v":0,"d":"0.00"}}]
[{"$nulls":3},"Specyfikacja dolnej warstwy C18\n- dolna warstwa:  specyficzne pole powierzchni ≥175 (m2/g);\n- objętość porów ≥ 0,25 mL/g,\n- zawartość węgla co najmniej 15,3 %,\n- zawartość substancji lotnych w 110oC nie więcej niż 4,0 %, \n- ładowność molekularna nie mniej niż 0,71 mmol/g, \n- pokrycie powierzchni: nie mniej niż 1,77 μmol/m2,\n- END-CAPPING - Tak.\n"]
[null,"Cena oferty (brutto):",{"$nulls":7},{"$f":"SUM(J10)","v":{"v":0,"d":"0.00"}}]
[null,"*","Należy wpisać nazwę producenta oraz numer katalogowy producenta oferowanego produktu. Niepodanie ww. danych będzie skutkować odrzuceniem oferty, chyba że dane te będą jednoznacznie wynikać z innych dokumentów dołączonych do oferty."]
[null,"**","Zawiera podatek od towarów i usług (VAT) wg obowiązującej stawki oraz koszty wszystkich świadczeń niezbędnych do wykonania zamówienia, w szczególności koszty transportu, ubezpieczenia, opakowania (także kaucjonowanego) itp."]
[null,"***","Wykonawca oferujący produkt innego producenta, o innym numerze katalogowym niż wskazany jako przykład zobowiązany jest dostarczyć certyfikaty potwierdzające równoważność oferowanego produktu z wymaganiami przedstawionymi w tabeli w języku polskim lub angielskim. Wymienione dokumenty nie muszą potwierdzać zastosowania odczynnika."]
[]
[null,"Wymagania dodatkowe:"]
[]
[null,"1.","Do dostawy wymagany certyfikat jakości /świadectwo kontroli jakości lub inny dokument potwierdzający spełnienie wymagań w języku polskim lub angielskim w formie papierowej lub dostępny w formie elektronicznej w miejscu wskazanym przez wykonawcę (adres strony www). "]
[null,"2.","Okres ważności: min. 12 miesięcy od daty dostawy  lub  min. ¾ okresu ważności deklarowanego przez producenta (zapisanego w certyfikacie jakości / świadectwie kontroli jakości lub innym dokumencie do danej partii, o którym mowa w pkt. 1)."]
[null,"3.","Na opakowaniu podana czytelna nazwa odczynnika, zgodna z nazwą podaną w certyfikacie jakości / świadectwie kontroli jakości lub innym dokumencie, o którym mowa w pkt. 1."]
[null,"5.","Miejsce dostawy:\n","WSSE Kraków  ul. Prądnicka 76, 31-202 Kraków\n"]